{"text_format":"1","workbook":"xlsx","n_sheets":3,"sheets":["Hoja1","Proyectos vigentes","NOTA"],"not_rendered":{"charts":0,"images":0,"macros":1,"external_links":0,"defined_names":4,"comments":0,"pivot_tables":0},"unopened":[],"bounds":{"document_bytes":16777216,"sheet_cells":100000,"rows_first":2000,"rows_last":500,"rows_between":2000,"halvings":0,"cell_chars":16384,"cell_head_chars":4096},"cells_cut":0,"cells_raw":0,"read":"whole","date_system":"1900"}

{"sheet":"Hoja1","index":0,"n_rows":550,"n_cols":13,"rows_kept":550,"cut":false,"hidden":true,"merged":[]}
[null,"No.","NUM. REG.","DEPENDENCIA","CARRERA","NOMBRE DEL PROYECTO","ASESOR (ES)","TELEFONO"]
[{"$f":"COUNTIF($E$1:E2,'Proyectos vigentes'!$C$4)","v":0},1,52,"Alcaldía Gustavo A. Madero","Civil","Infraestructura urbana y servicios públicos","Lic. Oscar José Ramírez Rojas                 Lic. María Elena Pelayo Maldonado               ","55 51182800 EXT. 6209 y 6211",null,null,null,null,"Ambiental"]
[{"$f":"COUNTIF($E$1:E3,'Proyectos vigentes'!$C$4)","v":0},2,52,"Alcaldía Gustavo A. Madero","Eléctrica","Infraestructura urbana y servicios públicos","Lic. Oscar José Ramírez Rojas                 Lic. María Elena Pelayo Maldonado               ","55 51182800 EXT. 6209 y 6211",null,null,null,null,"Civil"]
[{"$f":"COUNTIF($E$1:E4,'Proyectos vigentes'!$C$4)","v":0},3,55,"Alcaldía Gustavo A. Madero","Electrónica","Tecnologías de la información","Lic. Oscar José Ramírez Rojas                 Lic. María Elena Pelayo Maldonado               ","55 51182800 EXT. 6209 y 6211",null,null,null,null,"Computación"]
[{"$f":"COUNTIF($E$1:E5,'Proyectos vigentes'!$C$4)","v":0},4,55,"Alcaldía Gustavo A. Madero","Computación","Tecnologías de la información","Lic. Oscar José Ramírez Rojas                 Lic. María Elena Pelayo Maldonado               ","55 51182800 EXT. 6209 y 6211",null,null,null,null,"Eléctrica"]
[{"$f":"COUNTIF($E$1:E6,'Proyectos vigentes'!$C$4)","v":0},5,56,"Alcaldía Gustavo A. Madero","Ambiental","Transformación del entorno urbano","Lic. Oscar José Ramírez Rojas                 Lic. María Elena Pelayo Maldonado               ","55 51182800 EXT. 6209 y 6211",null,null,null,null,"Electrónica"]
[{"$f":"COUNTIF($E$1:E7,'Proyectos vigentes'!$C$4)","v":0},6,60,"Instituto Mexicano del Petróleo","Ambiental","Formación y desarrollo del factor humano del IMP","M. en C. María Guadalupe Alvarado Maldonado","9175-6373",null,null,null,null,"Física "]
[{"$f":"COUNTIF($E$1:E8,'Proyectos vigentes'!$C$4)","v":0},7,60,"Instituto Mexicano del Petróleo","Civil","Formación y desarrollo del factor humano del IMP","M. en C. María Guadalupe Alvarado Maldonado","9175-6373",null,null,null,null,"Industrial"]
[{"$f":"COUNTIF($E$1:E9,'Proyectos vigentes'!$C$4)","v":0},8,60,"Instituto Mexicano del Petróleo","Eléctrica","Formación y desarrollo del factor humano del IMP","M. en C. María Guadalupe Alvarado Maldonado","9175-6373",null,null,null,null,"Mecánica"]
[{"$f":"COUNTIF($E$1:E10,'Proyectos vigentes'!$C$4)","v":0},9,60,"Instituto Mexicano del Petróleo","Electrónica","Formación y desarrollo del factor humano del IMP","M. en C. María Guadalupe Alvarado Maldonado","9175-6373",null,null,null,null,"Metalúrgica"]
[{"$f":"COUNTIF($E$1:E11,'Proyectos vigentes'!$C$4)","v":0},10,60,"Instituto Mexicano del Petróleo","Computación","Formación y desarrollo del factor humano del IMP","M. en C. María Guadalupe Alvarado Maldonado","9175-6373",null,null,null,null,"Química"]
[{"$f":"COUNTIF($E$1:E12,'Proyectos vigentes'!$C$4)","v":0},11,60,"Instituto Mexicano del Petróleo","Física ","Formación y desarrollo del factor humano del IMP","M. en C. María Guadalupe Alvarado Maldonado","9175-6373",null,null,null,null,"Todas las carreras CBI"]
[{"$f":"COUNTIF($E$1:E13,'Proyectos vigentes'!$C$4)","v":0},12,60,"Instituto Mexicano del Petróleo","Industrial","Formación y desarrollo del factor humano del IMP","M. en C. María Guadalupe Alvarado Maldonado","9175-6373"]
[{"$f":"COUNTIF($E$1:E14,'Proyectos vigentes'!$C$4)","v":1},13,60,"Instituto Mexicano del Petróleo","Mecánica","Formación y desarrollo del factor humano del IMP","M. en C. María Guadalupe Alvarado Maldonado","9175-6373"]
[{"$f":"COUNTIF($E$1:E15,'Proyectos vigentes'!$C$4)","v":1},14,60,"Instituto Mexicano del Petróleo","Química","Formación y desarrollo del factor humano del IMP","M. en C. María Guadalupe Alvarado Maldonado","9175-6373"]
[{"$f":"COUNTIF($E$1:E16,'Proyectos vigentes'!$C$4)","v":1},15,85,"Alcaldía Gustavo A. Madero","Industrial","Modernización administrativa","Lic. Javier Sánchez Camacho                 Lic. María Elena Pelayo Maldonado               ","55 51182800 EXT:2115 Y 2107"]
[{"$f":"COUNTIF($E$1:E17,'Proyectos vigentes'!$C$4)","v":1},16,179,"Alcaldía Gustavo A. Madero","Industrial","Fomento a la micro y pequeña empresa","Lic. Javier Sánchez Camacho                 Lic. María Elena Pelayo Maldonado               ","55 51182800    EXT. 2114 y 2115"]
[{"$f":"COUNTIF($E$1:E18,'Proyectos vigentes'!$C$4)","v":1},17,179,"Alcaldía Gustavo A. Madero","Química","Fomento a la micro y pequeña empresa","Lic. Javier Sánchez Camacho                 Lic. María Elena Pelayo Maldonado               ","55 51182800    EXT. 2114 y 2115"]
[{"$f":"COUNTIF($E$1:E19,'Proyectos vigentes'!$C$4)","v":1},18,180,"Alcaldía Gustavo A. Madero","Industrial","Atención a la comunidad","Lic. Javier Sánchez Camacho                 Lic. María Elena Pelayo Maldonado               ","55  51182800    EXT. 2115 Y 2107"]
[{"$f":"COUNTIF($E$1:E20,'Proyectos vigentes'!$C$4)","v":1},19,285,"Secretaría de Medio Ambiente y Recursos Naturales","Ambiental","Educación Superior y Conservación del Medio Ambiente","Lic. Claudia Anel Guerrero Martín,       Lic. José Pablo J. Sósol Morgado","5490-2100 ext. 14568"]
[{"$f":"COUNTIF($E$1:E21,'Proyectos vigentes'!$C$4)","v":1},20,285,"Secretaría de Medio Ambiente y Recursos Naturales","Computación","Educación Superior y Conservación del Medio Ambiente","Lic. Claudia Anel Guerrero Martín,       Lic. José Pablo J. Sósol Morgado","5490-2100 ext. 14568"]
[{"$f":"COUNTIF($E$1:E22,'Proyectos vigentes'!$C$4)","v":1},21,361,"Sistema de Transporte Colectivo (Metro)","Computación","Mantenimiento preventivo y correctivo a las instalaciones que conforman la operatividad del S. T. C. ","Lic. Carlos Enrique Gómez Alonso","5709-1133 ext. 2546, 2547"]
[{"$f":"COUNTIF($E$1:E23,'Proyectos vigentes'!$C$4)","v":1},22,361,"Sistema de Transporte Colectivo (Metro)","Eléctrica","Mantenimiento preventivo y correctivo a las instalaciones que conforman la operatividad del S. T. C. ","Lic. Carlos Enrique Gómez Alonso","5709-1133 ext. 2546, 2547"]
[{"$f":"COUNTIF($E$1:E24,'Proyectos vigentes'!$C$4)","v":1},23,361,"Sistema de Transporte Colectivo (Metro)","Electrónica","Mantenimiento preventivo y correctivo a las instalaciones que conforman la operatividad del S. T. C. ","Lic. Carlos Enrique Gómez Alonso","5709-1133 ext. 2546, 2547"]
[{"$f":"COUNTIF($E$1:E25,'Proyectos vigentes'!$C$4)","v":1},24,361,"Sistema de Transporte Colectivo (Metro)","Industrial","Mantenimiento preventivo y correctivo a las instalaciones que conforman la operatividad del S. T. C. ","Lic. Carlos Enrique Gómez Alonso","5709-1133 ext. 2546, 2547"]
[{"$f":"COUNTIF($E$1:E26,'Proyectos vigentes'!$C$4)","v":2},25,361,"Sistema de Transporte Colectivo (Metro)","Mecánica","Mantenimiento preventivo y correctivo a las instalaciones que conforman la operatividad del S. T. C. ","Lic. Carlos Enrique Gómez Alonso","5709-1133 ext. 2546, 2547"]
[{"$f":"COUNTIF($E$1:E27,'Proyectos vigentes'!$C$4)","v":2},26,361,"Sistema de Transporte Colectivo (Metro)","Civil","Mantenimiento preventivo y correctivo a las instalaciones que conforman la operatividad del S. T. C. ","Lic. Carlos Enrique Gómez Alonso","5709-1133 ext. 2546, 2547"]
[{"$f":"COUNTIF($E$1:E28,'Proyectos vigentes'!$C$4)","v":2},27,378,"Alcaldía Benito Juárez","Civil","Protección, Conservación y Mejoramiento de Obras Públicas y Desarrollo Urbano","C. Jesús Velázquez Morán","55-5422-5300"]
[{"$f":"COUNTIF($E$1:E29,'Proyectos vigentes'!$C$4)","v":2},28,"829-396","Petróleos Mexicanos ","Ambiental","PROSER Capital Humano","Ing. María Esther Torruco Ruiz                      ","1944-2500 ext. 37771"]
[{"$f":"COUNTIF($E$1:E30,'Proyectos vigentes'!$C$4)","v":2},29,"829-396","Petróleos Mexicanos ","Civil","PROSER Capital Humano","Ing. María Esther Torruco Ruiz                      ","1944-2500 ext. 37771"]
[{"$f":"COUNTIF($E$1:E31,'Proyectos vigentes'!$C$4)","v":2},30,"829-396","Petróleos Mexicanos ","Computación","PROSER Capital Humano","Ing. María Esther Torruco Ruiz                      ","1944-2500 ext. 37771"]
[{"$f":"COUNTIF($E$1:E32,'Proyectos vigentes'!$C$4)","v":2},31,"829-396","Petróleos Mexicanos ","física","PROSER Capital Humano","Ing. María Esther Torruco Ruiz                      ","1944-2500 ext. 37771"]
[{"$f":"COUNTIF($E$1:E33,'Proyectos vigentes'!$C$4)","v":2},32,"829-396","Petróleos Mexicanos ","Industrial","PROSER Capital Humano","Ing. María Esther Torruco Ruiz                      ","1944-2500 ext. 37771"]
[{"$f":"COUNTIF($E$1:E34,'Proyectos vigentes'!$C$4)","v":3},33,"829-396","Petróleos Mexicanos ","Mecánica","PROSER Capital Humano","Ing. María Esther Torruco Ruiz                      ","1944-2500 ext. 37771"]
[{"$f":"COUNTIF($E$1:E35,'Proyectos vigentes'!$C$4)","v":3},34,"829-396","Petróleos Mexicanos ","Eléctrica","PROSER Capital Humano","Ing. María Esther Torruco Ruiz                      ","1944-2500 ext. 37771"]
[{"$f":"COUNTIF($E$1:E36,'Proyectos vigentes'!$C$4)","v":3},35,"829-396","Petróleos Mexicanos ","Electrónica","PROSER Capital Humano","Ing. María Esther Torruco Ruiz                      ","1944-2500 ext. 37771"]
[{"$f":"COUNTIF($E$1:E37,'Proyectos vigentes'!$C$4)","v":3},36,"829-396","Petróleos Mexicanos ","Química","PROSER Capital Humano","Ing. María Esther Torruco Ruiz                      ","1944-2500 ext. 37771"]
[{"$f":"COUNTIF($E$1:E38,'Proyectos vigentes'!$C$4)","v":3},37,"829-398","Secretaría de Desarrollo Urbano y Vivienda (SEDUVI)","Civil","Planeación, ordenamiento y políticas de regulación del desarrollo urbano","Lic. Lic. Guadalupe \nIvette Oyala Cruz                                  C. José Juan Quinto Ortega","555130-2100 ext. 2257, 2221, 2166"]
[{"$f":"COUNTIF($E$1:E39,'Proyectos vigentes'!$C$4)","v":3},38,"829-398","Secretaría de Desarrollo Urbano y Vivienda (SEDUVI)","Computación","Planeación, ordenamiento y políticas de regulación del desarrollo urbano","Lic. Lic. Guadalupe \nIvette Oyala Cruz                                  C. José Juan Quinto Ortega","5130-2100 ext. 2257, 2221"]
[{"$f":"COUNTIF($E$1:E40,'Proyectos vigentes'!$C$4)","v":3},39,"829-398","Secretaría de Desarrollo Urbano y Vivienda (SEDUVI)","Eléctrica","Planeación, ordenamiento y políticas de regulación del desarrollo urbano","Lic. Lic. Guadalupe \nIvette Oyala Cruz                                  C. José Juan Quinto Ortega","5130-2100 ext. 2257, 2221"]
[{"$f":"COUNTIF($E$1:E41,'Proyectos vigentes'!$C$4)","v":3},40,"829-415","Alcaldía Iztapalapa","Civil","Servicio Social Multidisciplinario","Lic. Alfonso Salvador Armenta Rojas","55.89.97.81.22"]
[{"$f":"COUNTIF($E$1:E42,'Proyectos vigentes'!$C$4)","v":3},41,"830-065","Instituto Mexicano de la Construcción en Acero (IMCA)","Civil","Diseño, fabricación, montaje y supervisión de estructuras de acero","Ing. Octavio Álvarez Valadez                 Dr. Tiziano Perea Olvera.","55-5572-3196"]
[{"$f":"COUNTIF($E$1:E43,'Proyectos vigentes'!$C$4)","v":4},42,"830-065","Instituto Mexicano de la Construcción en Acero (IMCA)","Mecánica","Diseño, fabricación, montaje y supervisión de estructuras de acero","Ing. Octavio Álvarez Valadez                 Dr. Tiziano Perea Olvera.","55-5572-3196"]
[{"$f":"COUNTIF($E$1:E44,'Proyectos vigentes'!$C$4)","v":4},43,"829-423","Secretaría de Educación, Ciencia, Tecnología e Innovación de la Ciudad De México","Todas las carreras CBI","Apoyo a actividades de Fortalecimiento a la Educación Básica en ambientes escolarizados y no escolarizados","M. en C. Liliana Sánchez Estrada,                                       Lic. María Estela Del Valle Guerrero","5134-0770 ext 1919"]
[{"$f":"COUNTIF($E$1:E45,'Proyectos vigentes'!$C$4)","v":4},44,"829-426","Centro de Investigación en Ciencia Aplicada y Tecnología Avanzada (CICATA) del Instituto Politécnico Nacional, Unidad Legaría","Computación","Caracterización luminiscente de materiales cerámicos sintéticos para la detección de radiación ionizante","Dr. Teodoro Rivera Montalvo, Dr. Ernesto Rodrigo Vázquez Cerón","53956738 Ext 67791"]
[{"$f":"COUNTIF($E$1:E46,'Proyectos vigentes'!$C$4)","v":4},45,"829-426","Centro de Investigación en Ciencia Aplicada y Tecnología Avanzada (CICATA) del Instituto Politécnico Nacional, Unidad Legaría","Electrónica","Caracterización luminiscente de materiales cerámicos sintéticos para la detección de radiación ionizante","Dr. Teodoro Rivera Montalvo, Dr. Ernesto Rodrigo Vázquez Cerón","53956738 Ext 67791"]
[{"$f":"COUNTIF($E$1:E47,'Proyectos vigentes'!$C$4)","v":4},46,"829-426","Centro de Investigación en Ciencia Aplicada y Tecnología Avanzada (CICATA) del Instituto Politécnico Nacional, Unidad Legaría","Física","Caracterización luminiscente de materiales cerámicos sintéticos para la detección de radiación ionizante","Dr. Teodoro Rivera Montalvo, Dr. Ernesto Rodrigo Vázquez Cerón","53956738 Ext 67791"]
[{"$f":"COUNTIF($E$1:E48,'Proyectos vigentes'!$C$4)","v":4},47,"829-430","Alcaldía Azcapotzalco","Civil","Desarrollo urbano y mantenimiento a infraestructura"," Ing. Arq. Nina Hermosillo Miranda, Arq. Rafael Posadas Rodríguez, C. P. Beatriz Loyola Barrera. Lic. Alejandro Flores García","55-5354-9994"]
[{"$f":"COUNTIF($E$1:E49,'Proyectos vigentes'!$C$4)","v":4},48,"829-430","Alcaldía Azcapotzalco","Eléctrica","Desarrollo urbano y mantenimiento a infraestructura"," Ing. Arq. Nina Hermosillo Miranda, Arq. Rafael Posadas Rodríguez, C. P. Beatriz Loyola Barrera. Lic. Alejandro Flores García","55-5354-9994"]
[{"$f":"COUNTIF($E$1:E50,'Proyectos vigentes'!$C$4)","v":4},49,"829-431","Alcaldía Azcapotzalco","Civil","Protección Civil","Lic. Jafet Dayan Anzaldo Medero, C. P. Beatriz Loyola Barrera. Lic. Alejandro Flores García","55-5347-1527  55-5354-9994 ext. 2109"]
[{"$f":"COUNTIF($E$1:E51,'Proyectos vigentes'!$C$4)","v":4},50,"829-431","Alcaldía Azcapotzalco","Industrial","Protección Civil","Lic. Jafet Dayan Anzaldo Medero, C. P. Beatriz Loyola Barrera. Lic. Alejandro Flores García","55-5347-1527  55-5354-9994 ext. 2109"]
[{"$f":"COUNTIF($E$1:E52,'Proyectos vigentes'!$C$4)","v":4},51,"829-431","Alcaldía Azcapotzalco","Química","Protección Civil","Lic. Jafet Dayan Anzaldo Medero, C. P. Beatriz Loyola Barrera. Lic. Alejandro Flores García","55-5347-1527  55-5354-9994 ext. 2109"]
[{"$f":"COUNTIF($E$1:E53,'Proyectos vigentes'!$C$4)","v":4},52,"829-433","Secretaría de Seguridad Ciudadana de la Ciudad de México (SSC CDMX)","Computación","Apoyar el desarrollo, mantenimiento y mejora del sistema informático de la SSC CDMX","Lic. Juan de Dios Maciel Pérez                  Lic. Luis Javier Ramírez Reyes.","55-5132-5400 ext. 1314"]
[{"$f":"COUNTIF($E$1:E54,'Proyectos vigentes'!$C$4)","v":4},53,"829-434","Secretaría de Seguridad Ciudadana de la Ciudad de México (SSC CDMX)","Civil","Apoyo en los servicios de obra, mantenimiento y conservación de los inmuebles de la SSC CDMX","Lic. Juan de Dios Maciel Pérez                  Lic. Luis Javier Ramírez Reyes.","55-5132-5400 ext. 1314"]
[{"$f":"COUNTIF($E$1:E55,'Proyectos vigentes'!$C$4)","v":4},54,"829-435","Secretaría de Seguridad Ciudadana de la Ciudad de México (SSC CDMX)","Eléctrica","Apoyo en actividades de infraestructura y de tecnología de la SSC CDMX","Lic. Juan de Dios Maciel Pérez                  Lic. Luis Javier Ramírez Reyes.","55-5132-5400 ext. 1314"]
[{"$f":"COUNTIF($E$1:E56,'Proyectos vigentes'!$C$4)","v":4},55,"829-435","Secretaría de Seguridad Ciudadana de la Ciudad de México (SSC CDMX)","Electrónica","Apoyo en actividades de infraestructura y de tecnología de la SSC CDMX","Lic. Juan de Dios Maciel Pérez                  Lic. Luis Javier Ramírez Reyes.","55-5132-5400 ext. 1314"]
[{"$f":"COUNTIF($E$1:E57,'Proyectos vigentes'!$C$4)","v":4},56,"829-435","Secretaría de Seguridad Ciudadana de la Ciudad de México (SSC CDMX)","Eléctrica","Apoyo en actividades de infraestructura y de tecnología de la SSC CDMX","Lic. Juan de Dios Maciel Pérez                  Lic. Luis Javier Ramírez Reyes.","55-5132-5400 ext. 1314"]
[{"$f":"COUNTIF($E$1:E58,'Proyectos vigentes'!$C$4)","v":4},57,"829-435","Secretaría de Seguridad Ciudadana de la Ciudad de México (SSC CDMX)","Industrial","Apoyo en actividades de infraestructura y de tecnología de la SSC CDMX","Lic. Juan de Dios Maciel Pérez                  Lic. Luis Javier Ramírez Reyes.","55-5132-5400 ext. 1314"]
[{"$f":"COUNTIF($E$1:E59,'Proyectos vigentes'!$C$4)","v":5},58,"829-435","Secretaría de Seguridad Ciudadana de la Ciudad de México (SSC CDMX)","Mecánica","Apoyo en actividades de infraestructura y de tecnología de la SSC CDMX","Lic. Juan de Dios Maciel Pérez                  Lic. Luis Javier Ramírez Reyes.","55-5132-5400 ext. 1314"]
[{"$f":"COUNTIF($E$1:E60,'Proyectos vigentes'!$C$4)","v":5},59,"829-436","Alcaldía Álvaro Obregón","Ambiental","Contribución al fortalecimiento y optimización de los recursos en Álvaro Obregón","Lic. Flor Itzel Ortiz Cruz","55-5276-6949, 55-5276-6700 ext. 2548"]
[{"$f":"COUNTIF($E$1:E61,'Proyectos vigentes'!$C$4)","v":5},60,"829-436","Alcaldía Álvaro Obregón","Civil","Contribución al fortalecimiento y optimización de los recursos en Álvaro Obregón","Lic. Flor Itzel Ortiz Cruz","55-5276-6949, 55-5276-6700 ext. 2548"]
[{"$f":"COUNTIF($E$1:E62,'Proyectos vigentes'!$C$4)","v":5},61,"829-436","Alcaldía Álvaro Obregón","Industrial","Contribución al fortalecimiento y optimización de los recursos en Álvaro Obregón","Lic. Flor Itzel Ortiz Cruz","55-5276-6949, 55-5276-6700 ext. 2548"]
[{"$f":"COUNTIF($E$1:E63,'Proyectos vigentes'!$C$4)","v":5},62,"829-436","Alcaldía Álvaro Obregón","Computación","Contribución al fortalecimiento y optimización de los recursos en Álvaro Obregón","Lic. Flor Itzel Ortiz Cruz","55-5276-6949, 55-5276-6700 ext. 2548"]
[{"$f":"COUNTIF($E$1:E64,'Proyectos vigentes'!$C$4)","v":5},63,"829-439","Hospital General Dr. Manuel Gea González","Electrónica","Introducción al medio hospitalario en servicios de mantenimiento preventivos y correctivos al equipo médico I","Ing. Adriana González Balderas, Ing. Israel Sánchez Rivera, Dr. Ernesto Rodrigo Vázquez Cerón.","5540003000 ext.5200"]
[{"$f":"COUNTIF($E$1:E65,'Proyectos vigentes'!$C$4)","v":5},64,"829-439","Hospital General Dr. Manuel Gea González","Física","Introducción al medio hospitalario en servicios de mantenimiento preventivos y correctivos al equipo médico I","Ing. Adriana González Balderas, Ing. Israel Sánchez Rivera, Dr. Ernesto Rodrigo Vázquez Cerón.","5540003000 ext.5200"]
[{"$f":"COUNTIF($E$1:E66,'Proyectos vigentes'!$C$4)","v":5},65,"829-443","Financiera para el Bienestar","Computación","Apoyo Administrativo en Telecomm","Lic. Karla Beatriz Dávila García,         Mtro. Carlos Fernando Roldán Zarate","5550901100 ext.1202"]
[{"$f":"COUNTIF($E$1:E67,'Proyectos vigentes'!$C$4)","v":5},66,"829-443","Financiera para el Bienestar","Eléctrica","Apoyo Administrativo en Telecomm","Lic. Karla Beatriz Dávila García,         Mtro. Carlos Fernando Roldán Zarate","5550901100 ext.1202"]
[{"$f":"COUNTIF($E$1:E68,'Proyectos vigentes'!$C$4)","v":5},67,"829-443","Financiera para el Bienestar","Electrónica","Apoyo Administrativo en Telecomm","Lic. Karla Beatriz Dávila García,         Mtro. Carlos Fernando Roldán Zarate","5550901100 ext.1202"]
[{"$f":"COUNTIF($E$1:E69,'Proyectos vigentes'!$C$4)","v":6},68,"829-443","Financiera para el Bienestar","Mecánica","Apoyo Administrativo en Telecomm","Lic. Karla Beatriz Dávila García,         Mtro. Carlos Fernando Roldán Zarate","5550901100 ext.1202"]
[{"$f":"COUNTIF($E$1:E70,'Proyectos vigentes'!$C$4)","v":6},69,"829-444","Unidad Profesional Interdisciplinaria de Ingeniería y Ciencias Sociales y Administrativas (UPIICSA)","Ambiental","Emprendimiento de cooperativas de GICOOPS ","Dr. Igor Antonio Rivera González","55-5624 2000 ext. 70265 "]
[{"$f":"COUNTIF($E$1:E71,'Proyectos vigentes'!$C$4)","v":6},70,"829-445","Secretaría de Energía","Química","Análisis del mercado de petrolíferos en México","Lic. Julieta Acosta Minquini","55-5000 6000 ext. 3119"]
[{"$f":"COUNTIF($E$1:E72,'Proyectos vigentes'!$C$4)","v":6},71,"829-447","Red de Transporte de pasajeros de la Ciudad de México","Ambiental","Servicio Social para la administración Integral de la Red de Transporte de pasajeros de la Ciudad de México","C. P. Tania Edith Reyes Varela                Lic. Lucia Paola Carrillo Olvera                                       Lic. Valeria Jacqueline Ávila Arias                                      Lic. Elliots Luis Miranda León","55-1328-6300 ext. 6423, 6387"]
[{"$f":"COUNTIF($E$1:E73,'Proyectos vigentes'!$C$4)","v":6},72,"829-447","Red de Transporte de pasajeros de la Ciudad de México","Civil","Servicio Social para la administración Integral de la Red de Transporte de pasajeros de la Ciudad de México","C. P. Tania Edith Reyes Varela                Lic. Lucia Paola Carrillo Olvera                                       Lic. Valeria Jacqueline Ávila Arias                                      Lic. Elliots Luis Miranda León","55-1328-6300 ext. 6423, 6387"]
[{"$f":"COUNTIF($E$1:E74,'Proyectos vigentes'!$C$4)","v":6},73,"829-447","Red de Transporte de pasajeros de la Ciudad de México","Computación","Servicio Social para la administración Integral de la Red de Transporte de pasajeros de la Ciudad de México","C. P. Tania Edith Reyes Varela                Lic. Lucia Paola Carrillo Olvera                                       Lic. Valeria Jacqueline Ávila Arias                                      Lic. Elliots Luis Miranda León","55-1328-6300 ext. 6423, 6387"]
[{"$f":"COUNTIF($E$1:E75,'Proyectos vigentes'!$C$4)","v":6},74,"829-447","Red de Transporte de pasajeros de la Ciudad de México","Eléctrica","Servicio Social para la administración Integral de la Red de Transporte de pasajeros de la Ciudad de México","C. P. Tania Edith Reyes Varela                Lic. Lucia Paola Carrillo Olvera                                       Lic. Valeria Jacqueline Ávila Arias                                      Lic. Elliots Luis Miranda León","55-1328-6300 ext. 6423, 6387"]
[{"$f":"COUNTIF($E$1:E76,'Proyectos vigentes'!$C$4)","v":6},75,"829-447","Red de Transporte de pasajeros de la Ciudad de México","Electrónica","Servicio Social para la administración Integral de la Red de Transporte de pasajeros de la Ciudad de México","C. P. Tania Edith Reyes Varela                Lic. Lucia Paola Carrillo Olvera                                       Lic. Valeria Jacqueline Ávila Arias                                      Lic. Elliots Luis Miranda León","55-1328-6300 ext. 6423, 6387"]
[{"$f":"COUNTIF($E$1:E77,'Proyectos vigentes'!$C$4)","v":6},76,"829-447","Red de Transporte de pasajeros de la Ciudad de México","Industrial","Servicio Social para la administración Integral de la Red de Transporte de pasajeros de la Ciudad de México","C. P. Tania Edith Reyes Varela                Lic. Lucia Paola Carrillo Olvera                                       Lic. Valeria Jacqueline Ávila Arias                                      Lic. Elliots Luis Miranda León","55-1328-6300 ext. 6423, 6387"]
[{"$f":"COUNTIF($E$1:E78,'Proyectos vigentes'!$C$4)","v":7},77,"829-447","Red de Transporte de pasajeros de la Ciudad de México","Mecánica","Servicio Social para la administración Integral de la Red de Transporte de pasajeros de la Ciudad de México","C. P. Tania Edith Reyes Varela                Lic. Lucia Paola Carrillo Olvera                                       Lic. Valeria Jacqueline Ávila Arias                                      Lic. Elliots Luis Miranda León","55-1328-6300 ext. 6423, 6387"]
[{"$f":"COUNTIF($E$1:E79,'Proyectos vigentes'!$C$4)","v":7},78,"829-447","Red de Transporte de pasajeros de la Ciudad de México","Metalúrgica","Servicio Social para la administración Integral de la Red de Transporte de pasajeros de la Ciudad de México","C. P. Tania Edith Reyes Varela                Lic. Lucia Paola Carrillo Olvera                                       Lic. Valeria Jacqueline Ávila Arias                                      Lic. Elliots Luis Miranda León","55-1328-6300 ext. 6423, 6387"]
[{"$f":"COUNTIF($E$1:E80,'Proyectos vigentes'!$C$4)","v":7},79,"829-449","Instituto Politécnico Nacional, Escuela Nacional de Ciencias Biológicas, Casco de Santo Tomás","Ambiental","Análisis de Agua Potable, Residual y Residual Tratada","M. en E. María Magdalena Monroy Mendieta","55-5341-2335"]
[{"$f":"COUNTIF($E$1:E81,'Proyectos vigentes'!$C$4)","v":7},80,"829-449","Instituto Politécnico Nacional, Escuela Nacional de Ciencias Biológicas, Casco de Santo Tomás","Computación","Análisis de Agua Potable, Residual y Residual Tratada","M. en E. María Magdalena Monroy Mendieta","55-5341-2335"]
[{"$f":"COUNTIF($E$1:E82,'Proyectos vigentes'!$C$4)","v":7},81,"829-449","Instituto Politécnico Nacional, Escuela Nacional de Ciencias Biológicas, Casco de Santo Tomás","Química","Análisis de Agua Potable, Residual y Residual Tratada","M. en E. María Magdalena Monroy Mendieta","55-5341-2335"]
[{"$f":"COUNTIF($E$1:E83,'Proyectos vigentes'!$C$4)","v":7},82,"830-066","Asociación Nacional de Industriales del Presfuerzo y la Prefabricación, Asociación Civil. ANIPPAC","Civil","Experimentación de conexiones prefabricadas de concreto","Lic. Leticia Amador Nova                      Dr. Eduardo Arellano Méndez","55-4122-5194  55-5318-9000 ext. 9461"]
[{"$f":"COUNTIF($E$1:E84,'Proyectos vigentes'!$C$4)","v":7},83,"829-451","Centros de Integración Juvenil, A.C.","Computación","Prevención, tratamiento e investigación de las adicciones","Lic. Laura Marcela Rodríguez Pérez","55 5999 4949, ext. 1634 y 1635"]
[{"$f":"COUNTIF($E$1:E85,'Proyectos vigentes'!$C$4)","v":7},84,"829-453"," Universidad Nacional Autónoma de México-Facultad de Ingeniería","Química","Apoyo en investigación, docencia e innovación científica y tecnológica en Ingeniería Ambiental ","Dr. Luis Antonio García Villanueva                    Ing. Claudia Elisa Sánchez Navarro","5556228001 ext 1223 5556228000 ext 1237 "]
[{"$f":"COUNTIF($E$1:E86,'Proyectos vigentes'!$C$4)","v":7},85,"829-457","Ayuntamiento de Chapa de Mota, Estado de México","Ambiental","Desarrollo de documentos del PROMACC y del POEL","Ing. Elizabeth Ruiz Arreazola, Mtra. Griselda González Cardoso","588 9920209"]
[{"$f":"COUNTIF($E$1:E87,'Proyectos vigentes'!$C$4)","v":7},86,959,"UAM","Ambiental","Mantenimiento y clasificación de la población de las lombrices de tierra Eisenia foetida utilizadas para el composteo de residuos orgánicos.","Mtra. María del Rocío Cruz Colín\nDra. María Teresa Castañeda Briones            Mtro. Miguel Ávila Jiménez","55-5318-9000 ext. 9029"]
[{"$f":"COUNTIF($E$1:E88,'Proyectos vigentes'!$C$4)","v":7},87,959,"UAM","Química","Mantenimiento y clasificación de la población de las lombrices de tierra Eisenia foetida utilizadas para el composteo de residuos orgánicos.","Mtra. María del Rocío Cruz Colín\nDra. María Teresa Castañeda Briones            Mtro. Miguel Ávila Jiménez","55-5318-9000 ext. 9029"]
[{"$f":"COUNTIF($E$1:E89,'Proyectos vigentes'!$C$4)","v":7},88,964,"UAM","Ambiental","Simulación y análisis experimental en energía solar.","Hilario Terres Peña","5318-9061"]
[{"$f":"COUNTIF($E$1:E90,'Proyectos vigentes'!$C$4)","v":8},89,964,"UAM","Mecánica","Simulación y análisis experimental en energía solar.","Hilario Terres Peña","5318-9061"]
[{"$f":"COUNTIF($E$1:E91,'Proyectos vigentes'!$C$4)","v":8},90,964,"UAM","Química","Simulación y análisis experimental en energía solar.","Hilario Terres Peña","5318-9061"]
[{"$f":"COUNTIF($E$1:E92,'Proyectos vigentes'!$C$4)","v":8},91,964,"UAM","Electrónica","Simulación y análisis experimental en energía solar.","Hilario Terres Peña","5318-9061"]
[{"$f":"COUNTIF($E$1:E93,'Proyectos vigentes'!$C$4)","v":8},92,964,"UAM","Física ","Simulación y análisis experimental en energía solar.","Hilario Terres Peña","5318-9061"]
[{"$f":"COUNTIF($E$1:E94,'Proyectos vigentes'!$C$4)","v":8},93,991,"UAM","Ambiental","Operación de la planta piloto de tratamiento de aguas residuales de la UAM-A.","Dr. Israel Labastida Núñez                    M. en C. I. Margarita Beltrán Villavicencio                     Dra. Maribel Velasco Pérez                 Dr. Jaime Alejandro Paulino Granados Samaniego","55-5318-9075 "]
[{"$f":"COUNTIF($E$1:E95,'Proyectos vigentes'!$C$4)","v":8},94,991,"UAM","Eléctrica","Operación de la planta piloto de tratamiento de aguas residuales de la UAM-A.","Dr. Israel Labastida Núñez                    M. en C. I. Margarita Beltrán Villavicencio                     Dra. Maribel Velasco Pérez                 Dr. Jaime Alejandro Paulino Granados Samaniego","55-5318-9075 "]
[{"$f":"COUNTIF($E$1:E96,'Proyectos vigentes'!$C$4)","v":8},95,991,"UAM","Computación","Operación de la planta piloto de tratamiento de aguas residuales de la UAM-A.","Dr. Israel Labastida Núñez                    M. en C. I. Margarita Beltrán Villavicencio                     Dra. Maribel Velasco Pérez                 Dr. Jaime Alejandro Paulino Granados Samaniego","55-5318-9075 "]
[{"$f":"COUNTIF($E$1:E97,'Proyectos vigentes'!$C$4)","v":8},96,991,"UAM","Física ","Operación de la planta piloto de tratamiento de aguas residuales de la UAM-A.","Dr. Israel Labastida Núñez                    M. en C. I. Margarita Beltrán Villavicencio                     Dra. Maribel Velasco Pérez                 Dr. Jaime Alejandro Paulino Granados Samaniego","55-5318-9075 "]
[{"$f":"COUNTIF($E$1:E98,'Proyectos vigentes'!$C$4)","v":8},97,991,"UAM","Industrial","Operación de la planta piloto de tratamiento de aguas residuales de la UAM-A.","Dr. Israel Labastida Núñez                    M. en C. I. Margarita Beltrán Villavicencio                     Dra. Maribel Velasco Pérez                 Dr. Jaime Alejandro Paulino Granados Samaniego","55-5318-9075 "]
[{"$f":"COUNTIF($E$1:E99,'Proyectos vigentes'!$C$4)","v":9},98,991,"UAM","Mecánica","Operación de la planta piloto de tratamiento de aguas residuales de la UAM-A.","Dr. Israel Labastida Núñez                    M. en C. I. Margarita Beltrán Villavicencio                     Dra. Maribel Velasco Pérez                 Dr. Jaime Alejandro Paulino Granados Samaniego","55-5318-9075 "]
[{"$f":"COUNTIF($E$1:E100,'Proyectos vigentes'!$C$4)","v":9},99,991,"UAM","Química","Operación de la planta piloto de tratamiento de aguas residuales de la UAM-A.","Dr. Israel Labastida Núñez                    M. en C. I. Margarita Beltrán Villavicencio                     Dra. Maribel Velasco Pérez                 Dr. Jaime Alejandro Paulino Granados Samaniego","55-5318-9075 "]
[{"$f":"COUNTIF($E$1:E101,'Proyectos vigentes'!$C$4)","v":9},100,816,"UAM","Ambiental","Apoyo al Programa Interno de Protección Civil  de la UAM-Azcapotzalco.","Ing. Roberto Carlos Vázquez Solís      Dra. Rosa María Espinosa Valdemar ","555318-9545"]
[{"$f":"COUNTIF($E$1:E102,'Proyectos vigentes'!$C$4)","v":9},101,816,"UAM","Civil","Apoyo al Programa Interno de Protección Civil  de la UAM-Azcapotzalco.","Ing. Roberto Carlos Vázquez Solís      Dra. Rosa María Espinosa Valdemar ","555318-9545"]
[{"$f":"COUNTIF($E$1:E103,'Proyectos vigentes'!$C$4)","v":9},102,816,"UAM","Computación","Apoyo al Programa Interno de Protección Civil  de la UAM-Azcapotzalco.","Ing. Roberto Carlos Vázquez Solís      Dra. Rosa María Espinosa Valdemar ","555318-9545"]
[{"$f":"COUNTIF($E$1:E104,'Proyectos vigentes'!$C$4)","v":9},103,816,"UAM","Eléctrica","Apoyo al Programa Interno de Protección Civil  de la UAM-Azcapotzalco.","Ing. Roberto Carlos Vázquez Solís      Dra. Rosa María Espinosa Valdemar ","555318-9545"]
[{"$f":"COUNTIF($E$1:E105,'Proyectos vigentes'!$C$4)","v":9},104,816,"UAM","Electrónica","Apoyo al Programa Interno de Protección Civil  de la UAM-Azcapotzalco.","Ing. Roberto Carlos Vázquez Solís      Dra. Rosa María Espinosa Valdemar ","555318-9545"]
[{"$f":"COUNTIF($E$1:E106,'Proyectos vigentes'!$C$4)","v":9},105,816,"UAM","Física ","Apoyo al Programa Interno de Protección Civil  de la UAM-Azcapotzalco.","Ing. Roberto Carlos Vázquez Solís      Dra. Rosa María Espinosa Valdemar ","555318-9545"]
[{"$f":"COUNTIF($E$1:E107,'Proyectos vigentes'!$C$4)","v":9},106,816,"UAM","Industrial","Apoyo al Programa Interno de Protección Civil  de la UAM-Azcapotzalco.","Ing. Roberto Carlos Vázquez Solís      Dra. Rosa María Espinosa Valdemar ","555318-9545"]
[{"$f":"COUNTIF($E$1:E108,'Proyectos vigentes'!$C$4)","v":10},107,816,"UAM","Mecánica","Apoyo al Programa Interno de Protección Civil  de la UAM-Azcapotzalco.","Ing. Roberto Carlos Vázquez Solís      Dra. Rosa María Espinosa Valdemar ","555318-9545"]
[{"$f":"COUNTIF($E$1:E109,'Proyectos vigentes'!$C$4)","v":10},108,816,"UAM","Metalúrgica","Apoyo al Programa Interno de Protección Civil  de la UAM-Azcapotzalco.","Ing. Roberto Carlos Vázquez Solís      Dra. Rosa María Espinosa Valdemar ","555318-9545"]
[{"$f":"COUNTIF($E$1:E110,'Proyectos vigentes'!$C$4)","v":10},109,816,"UAM","Química","Apoyo al Programa Interno de Protección Civil  de la UAM-Azcapotzalco.","Ing. Roberto Carlos Vázquez Solís      Dra. Rosa María Espinosa Valdemar ","555318-9545"]
[{"$f":"COUNTIF($E$1:E111,'Proyectos vigentes'!$C$4)","v":10},110,764,"UAM","Industrial","Apoyo  a la Coordinación de la Carrera de Ingeniería Industrial.","Dr. Miguel Ángel López Ontiveros","555318-9016"]
[{"$f":"COUNTIF($E$1:E112,'Proyectos vigentes'!$C$4)","v":10},111,474,"UAM","Ambiental","Calidad sanitaria de los alimentos preparados en el comedor de la UAM-Azcapotzalco","Dra. Maria Teresa Castañeda Briones\nM. en C. I. Maria del Rocío Cruz Colín","5318-9596        5318-9361"]
[{"$f":"COUNTIF($E$1:E113,'Proyectos vigentes'!$C$4)","v":10},112,474,"UAM","Química","Calidad sanitaria de los alimentos preparados en el comedor de la UAM-Azcapotzalco","Dra. Maria Teresa Castañeda Briones\nM. en C. I. Maria del Rocío Cruz Colín","5318-9596        5318-9361"]
[{"$f":"COUNTIF($E$1:E114,'Proyectos vigentes'!$C$4)","v":10},113,733,"UAM","Todas las carreras CBI","Apoyo en actividades universitarias a los alumnos de nuevo ingreso","Marina Salazar Antúnez","5318-9494"]
[{"$f":"COUNTIF($E$1:E115,'Proyectos vigentes'!$C$4)","v":10},114,742,"UAM","Computación","Sistemas de información","Ing. Juan Carlos Pedral Valencia           Ing. Rafael Alvarado Ramírez               Dra. Yadira Zavala Osorio","5318-9351"]
[{"$f":"COUNTIF($E$1:E116,'Proyectos vigentes'!$C$4)","v":10},115,742,"UAM","Eléctrica","Sistemas de información","Ing. Juan Carlos Pedral Valencia           Ing. Rafael Alvarado Ramírez               Dra. Yadira Zavala Osorio","5318-9351"]
[{"$f":"COUNTIF($E$1:E117,'Proyectos vigentes'!$C$4)","v":10},116,742,"UAM","Electrónica","Sistemas de información","Ing. Juan Carlos Pedral Valencia           Ing. Rafael Alvarado Ramírez               Dra. Yadira Zavala Osorio","5318-9351"]
[{"$f":"COUNTIF($E$1:E118,'Proyectos vigentes'!$C$4)","v":10},117,742,"UAM","Industrial","Sistemas de información","Ing. Juan Carlos Pedral Valencia           Ing. Rafael Alvarado Ramírez               Dra. Yadira Zavala Osorio","5318-9351"]
[{"$f":"COUNTIF($E$1:E119,'Proyectos vigentes'!$C$4)","v":10},118,744,"UAM","Computación","Paquetes de software","Juan Carlos Pedral Valencia                       Saúl Figueroa Garcia                           Yadira Zavala Osorio",53189263]
[{"$f":"COUNTIF($E$1:E120,'Proyectos vigentes'!$C$4)","v":10},119,744,"UAM","Eléctrica","Paquetes de software","Juan Carlos Pedral Valencia                       Saúl Figueroa Garcia                           Yadira Zavala Osorio",53189263]
[{"$f":"COUNTIF($E$1:E121,'Proyectos vigentes'!$C$4)","v":10},120,744,"UAM","Electrónica","Paquetes de software","Juan Carlos Pedral Valencia                       Saúl Figueroa Garcia                           Yadira Zavala Osorio",53189263]
[{"$f":"COUNTIF($E$1:E122,'Proyectos vigentes'!$C$4)","v":10},121,744,"UAM","Industrial","Paquetes de software","Juan Carlos Pedral Valencia                       Saúl Figueroa Garcia                           Yadira Zavala Osorio",53189263]
[{"$f":"COUNTIF($E$1:E123,'Proyectos vigentes'!$C$4)","v":10},122,745,"UAM","Electrónica","Fallas en equipos de cómputo y redes de datos","Juan Carlos Pedral Valencia                        Justino Alfonso Barrera Pérez                    Yadira Zavala Osorio",53189259]
[{"$f":"COUNTIF($E$1:E124,'Proyectos vigentes'!$C$4)","v":10},123,745,"UAM","Computación","Fallas en equipos de cómputo y redes de datos","Juan Carlos Pedral Valencia                        Justino Alfonso Barrera Pérez                    Yadira Zavala Osorio",53189259]
[{"$f":"COUNTIF($E$1:E125,'Proyectos vigentes'!$C$4)","v":10},124,945,"UAM","Todas las carreras CBI","Implementación, desarrollo y automatización de equipos de laboratorio para investigación, desarrollados en L.S.D.","Dra. María Gabriela Báez Juárez                  Dr. Enrique Flores Olmedo                   Dr. Arturo Arreola Lucas,                     Dr. Víctor Domínguez Rocha                M. en C. Elisa Guillaumín \nEspaña      ","5318-9575"]
[{"$f":"COUNTIF($E$1:E126,'Proyectos vigentes'!$C$4)","v":10},125,946,"UAM","Todas las carreras CBI","Implementación y desarrollo de aplicaciones informáticas en el Laboratorio de Sistemas Dinámicos (L.S.D.)","Dra. María Gabriela Báez Juárez                  Dr. Enrique Flores Olmedo                   Dr. Arturo Arreola Lucas,                     Dr. Víctor Domínguez Rocha                M. en C. Elisa Guillaumín \nEspaña      ","5318-9575"]
[{"$f":"COUNTIF($E$1:E127,'Proyectos vigentes'!$C$4)","v":10},126,919,"UAM","Ambiental","Creación, mantenimiento y actualización de la colección de cultivos microbianos del laboratorio de microbiología ambiental de la UAM-Azcapotzalco","Mtra. María del Roció Cruz Colín\nDra. María Teresa Castañeda Briones           Mtro. Miguel Ávila Jiménez","5318-9361, 5318-9000 ext. 2220"]
[{"$f":"COUNTIF($E$1:E128,'Proyectos vigentes'!$C$4)","v":10},127,919,"UAM","Química","Creación, mantenimiento y actualización de la colección de cultivos microbianos del laboratorio de microbiología ambiental de la UAM-Azcapotzalco","Mtra. María del Roció Cruz Colín\nDra. María Teresa Castañeda Briones           Mtro. Miguel Ávila Jiménez","5318-9361, 5318-9000 ext. 2220"]
[{"$f":"COUNTIF($E$1:E129,'Proyectos vigentes'!$C$4)","v":10},128,1076,"UAM","Ambiental","P.G.I.R.S. de la UAM-Azcapotzalco SEPARACCIÓN","Dra. Rosa María Espinosa Valdemar","5318-9062"]
[{"$f":"COUNTIF($E$1:E130,'Proyectos vigentes'!$C$4)","v":10},129,1076,"UAM","Computación","P.G.I.R.S. de la UAM-Azcapotzalco SEPARACCIÓN","Dra. Rosa María Espinosa Valdemar","5318-9062"]
[{"$f":"COUNTIF($E$1:E131,'Proyectos vigentes'!$C$4)","v":10},130,1076,"UAM","Eléctrica","P.G.I.R.S. de la UAM-Azcapotzalco SEPARACCIÓN","Dra. Rosa María Espinosa Valdemar","5318-9062"]
[{"$f":"COUNTIF($E$1:E132,'Proyectos vigentes'!$C$4)","v":10},131,1076,"UAM","Física ","P.G.I.R.S. de la UAM-Azcapotzalco SEPARACCIÓN","Dra. Rosa María Espinosa Valdemar","5318-9062"]
[{"$f":"COUNTIF($E$1:E133,'Proyectos vigentes'!$C$4)","v":10},132,1076,"UAM","Industrial","P.G.I.R.S. de la UAM-Azcapotzalco SEPARACCIÓN","Dra. Rosa María Espinosa Valdemar","5318-9062"]
[{"$f":"COUNTIF($E$1:E134,'Proyectos vigentes'!$C$4)","v":11},133,1076,"UAM","Mecánica","P.G.I.R.S. de la UAM-Azcapotzalco SEPARACCIÓN","Dra. Rosa María Espinosa Valdemar","5318-9062"]
[{"$f":"COUNTIF($E$1:E135,'Proyectos vigentes'!$C$4)","v":11},134,1076,"UAM","Química","P.G.I.R.S. de la UAM-Azcapotzalco SEPARACCIÓN","Dra. Rosa María Espinosa Valdemar","5318-9062"]
[{"$f":"COUNTIF($E$1:E136,'Proyectos vigentes'!$C$4)","v":11},135,1107,"UAM","Ambiental","Muestreo y análisis de compuestos tóxicos en el ambiente","Dra. Violeta Mugica Álvarez                                                 Dra. Brenda Liz Valle Hernández      Mtra. Griselda González Cardoso         Dr. José de Jesús Figueroa Lara          Dr. Adolfo Hernández Moreno",5553189570]
[{"$f":"COUNTIF($E$1:E137,'Proyectos vigentes'!$C$4)","v":11},136,1107,"UAM","Computación","Muestreo y análisis de compuestos tóxicos en el ambiente","Dra. Violeta Mugica Álvarez                                                 Dra. Brenda Liz Valle Hernández      Mtra. Griselda González Cardoso         Dr. José de Jesús Figueroa Lara          Dr. Adolfo Hernández Moreno",5553189570]
[{"$f":"COUNTIF($E$1:E138,'Proyectos vigentes'!$C$4)","v":11},137,1107,"UAM","Física ","Muestreo y análisis de compuestos tóxicos en el ambiente","Dra. Violeta Mugica Álvarez                                                 Dra. Brenda Liz Valle Hernández      Mtra. Griselda González Cardoso         Dr. José de Jesús Figueroa Lara          Dr. Adolfo Hernández Moreno",5553189570]
[{"$f":"COUNTIF($E$1:E139,'Proyectos vigentes'!$C$4)","v":11},138,1107,"UAM","Metalúrgica","Muestreo y análisis de compuestos tóxicos en el ambiente","Dra. Violeta Mugica Álvarez                                                 Dra. Brenda Liz Valle Hernández      Mtra. Griselda González Cardoso         Dr. José de Jesús Figueroa Lara          Dr. Adolfo Hernández Moreno",5553189570]
[{"$f":"COUNTIF($E$1:E140,'Proyectos vigentes'!$C$4)","v":11},139,1107,"UAM","Industrial","Muestreo y análisis de compuestos tóxicos en el ambiente","Dra. Violeta Mugica Álvarez                                                 Dra. Brenda Liz Valle Hernández      Mtra. Griselda González Cardoso         Dr. José de Jesús Figueroa Lara          Dr. Adolfo Hernández Moreno",5553189570]
[{"$f":"COUNTIF($E$1:E141,'Proyectos vigentes'!$C$4)","v":11},140,1107,"UAM","Química","Muestreo y análisis de compuestos tóxicos en el ambiente","Dra. Violeta Mugica Álvarez                                                 Dra. Brenda Liz Valle Hernández      Mtra. Griselda González Cardoso         Dr. José de Jesús Figueroa Lara          Dr. Adolfo Hernández Moreno",5553189570]
[{"$f":"COUNTIF($E$1:E142,'Proyectos vigentes'!$C$4)","v":12},141,1107,"UAM","Mecánica","Muestreo y análisis de compuestos tóxicos en el ambiente","Dra. Violeta Mugica Álvarez                                                 Dra. Brenda Liz Valle Hernández      Mtra. Griselda González Cardoso         Dr. José de Jesús Figueroa Lara          Dr. Adolfo Hernández Moreno",5553189570]
[{"$f":"COUNTIF($E$1:E143,'Proyectos vigentes'!$C$4)","v":12},142,1107,"UAM","Eléctrica","Muestreo y análisis de compuestos tóxicos en el ambiente","Dra. Violeta Mugica Álvarez                                                 Dra. Brenda Liz Valle Hernández      Mtra. Griselda González Cardoso         Dr. José de Jesús Figueroa Lara          Dr. Adolfo Hernández Moreno",5553189570]
[{"$f":"COUNTIF($E$1:E144,'Proyectos vigentes'!$C$4)","v":12},143,1108,"UAM","Todas las carreras CBI","Uso eficiente de la energía eléctrica y generación con fuentes alternas ","Mtro. Eduardo Campero Littlewood                       Dr. Felipe de Jesús González Montañez                           Dr. Juan Carlos Olivares Galván            Dr. Víctor Manuel Jiménez \nMondragón.        ","5318-9380, 5318-9000 ext. 2191 "]
[{"$f":"COUNTIF($E$1:E145,'Proyectos vigentes'!$C$4)","v":12},144,1109,"UAM","Eléctrica","Apoyo a docentes e investigadores en el campo del electromagnetismo y los gases ionizados","Dr. Arturo Robledo Martínez                                                              Dr. Pedro Pereyra Padilla","55-5318-9000 ext. 9007              55- 5318-9000 ext. 9018"]
[{"$f":"COUNTIF($E$1:E146,'Proyectos vigentes'!$C$4)","v":12},145,1109,"UAM","Electrónica","Apoyo a docentes e investigadores en el campo del electromagnetismo y los gases ionizados","Dr. Arturo Robledo Martínez                                                              Dr. Pedro Pereyra Padilla","55-5318-9000 ext. 9007              55- 5318-9000 ext. 9018"]
[{"$f":"COUNTIF($E$1:E147,'Proyectos vigentes'!$C$4)","v":12},146,1109,"UAM","Física ","Apoyo a docentes e investigadores en el campo del electromagnetismo y los gases ionizados","Dr. Arturo Robledo Martínez                                                              Dr. Pedro Pereyra Padilla","55-5318-9000 ext. 9007              55- 5318-9000 ext. 9018"]
[{"$f":"COUNTIF($E$1:E148,'Proyectos vigentes'!$C$4)","v":12},147,1123,"UAM","Todas las carreras CBI","Servicio Social de apoyo en UEA de alta demanda en el sistema de aprendizaje individualizado (SAI)","Dr. Ángel Martínez Meléndez                                   ","55-5318-9010"]
[{"$f":"COUNTIF($E$1:E149,'Proyectos vigentes'!$C$4)","v":12},148,1126,"UAM","Todas las carreras CBI","Apoyo a las Coordinaciones de estudios de la División","Dra. Teresa Merchand Hernández                              Dra. Grethell Pérez Sánchez                              Dra. Angeles Belém Priego Sánchez                                            Dr. Jorge Luis Flores Moreno","5318-9003"]
[{"$f":"COUNTIF($E$1:E150,'Proyectos vigentes'!$C$4)","v":12},149,1143,"UAM","Computación","Diseño de prototipos experimentales para sistemas complejos","Eduardo Basurto Uribe                                          Catalina Ester Haro Pérez                        Armando Gómez Vieyra                       Grethell Georgina Pérez Sánchez         Carlos Alejandro Vargas                    Gerardo Miguel Odriozola Prego      Leonardo Di Girolamo Sigalotti Díaz                 ","5318-9382                        5318-9020"]
[{"$f":"COUNTIF($E$1:E151,'Proyectos vigentes'!$C$4)","v":12},150,1143,"UAM","Eléctrica","Diseño de prototipos experimentales para sistemas complejos","Eduardo Basurto Uribe                                          Catalina Ester Haro Pérez                        Armando Gómez Vieyra                       Grethell Georgina Pérez Sánchez         Carlos Alejandro Vargas                    Gerardo Miguel Odriozola Prego      Leonardo Di Girolamo Sigalotti Díaz                 ","5318-9382                        5318-9020"]
[{"$f":"COUNTIF($E$1:E152,'Proyectos vigentes'!$C$4)","v":12},151,1143,"UAM","Electrónica","Diseño de prototipos experimentales para sistemas complejos","Eduardo Basurto Uribe                                          Catalina Ester Haro Pérez                        Armando Gómez Vieyra                       Grethell Georgina Pérez Sánchez         Carlos Alejandro Vargas                    Gerardo Miguel Odriozola Prego      Leonardo Di Girolamo Sigalotti Díaz                 ","5318-9382                        5318-9020"]
[{"$f":"COUNTIF($E$1:E153,'Proyectos vigentes'!$C$4)","v":12},152,1143,"UAM","Física ","Diseño de prototipos experimentales para sistemas complejos","Eduardo Basurto Uribe                                          Catalina Ester Haro Pérez                        Armando Gómez Vieyra                       Grethell Georgina Pérez Sánchez         Carlos Alejandro Vargas                    Gerardo Miguel Odriozola Prego      Leonardo Di Girolamo Sigalotti Díaz                 ","5318-9382                        5318-9020"]
[{"$f":"COUNTIF($E$1:E154,'Proyectos vigentes'!$C$4)","v":13},153,1143,"UAM","Mecánica","Diseño de prototipos experimentales para sistemas complejos","Eduardo Basurto Uribe                                          Catalina Ester Haro Pérez                        Armando Gómez Vieyra                       Grethell Georgina Pérez Sánchez         Carlos Alejandro Vargas                    Gerardo Miguel Odriozola Prego                       ","5318-9382                        5318-9020"]
[{"$f":"COUNTIF($E$1:E155,'Proyectos vigentes'!$C$4)","v":13},154,1143,"UAM","Química","Diseño de prototipos experimentales para sistemas complejos","Eduardo Basurto Uribe                                          Catalina Ester Haro Pérez                        Armando Gómez Vieyra                       Grethell Georgina Pérez Sánchez         Carlos Alejandro Vargas                    Gerardo Miguel Odriozola Prego      Leonardo Di Girolamo Sigalotti Díaz                 ","5318-9382                        5318-9020"]
[{"$f":"COUNTIF($E$1:E156,'Proyectos vigentes'!$C$4)","v":13},155,1146,"UAM","Computación","Centro de apoyo para docencia e investigación (CADI)","Dr. Ernesto Rodrigo Vázquez Cerón","5318-9030"]
[{"$f":"COUNTIF($E$1:E157,'Proyectos vigentes'!$C$4)","v":13},156,1146,"UAM","Eléctrica","Centro de apoyo para docencia e investigación (CADI)","Dr. Ernesto Rodrigo Vázquez Cerón","5318-9030"]
[{"$f":"COUNTIF($E$1:E158,'Proyectos vigentes'!$C$4)","v":13},157,1146,"UAM","Electrónica","Centro de apoyo para docencia e investigación (CADI)","Dr. Ernesto Rodrigo Vázquez Cerón","5318-9030"]
[{"$f":"COUNTIF($E$1:E159,'Proyectos vigentes'!$C$4)","v":13},158,1146,"UAM","Física ","Centro de apoyo para docencia e investigación (CADI)","Dr. Ernesto Rodrigo Vázquez Cerón","5318-9030"]
[{"$f":"COUNTIF($E$1:E160,'Proyectos vigentes'!$C$4)","v":13},159,1146,"UAM","Industrial","Centro de apoyo para docencia e investigación (CADI)","Dr. Ernesto Rodrigo Vázquez Cerón","5318-9030"]
[{"$f":"COUNTIF($E$1:E161,'Proyectos vigentes'!$C$4)","v":14},160,1146,"UAM","Mecánica","Centro de apoyo para docencia e investigación (CADI)","Dr. Ernesto Rodrigo Vázquez Cerón","5318-9030"]
[{"$f":"COUNTIF($E$1:E162,'Proyectos vigentes'!$C$4)","v":14},161,534,"UAM","Ambiental","Tratamiento de residuos líquidos mediante procesos electroquímicos y biológicos","Sergio Martínez Delgadillo                                        Víctor Xiunel Mendoza Escamilla         Dra. Silvia Cristina Iuga","5318-9007"]
[{"$f":"COUNTIF($E$1:E163,'Proyectos vigentes'!$C$4)","v":14},162,534,"UAM","Computación","Tratamiento de residuos líquidos mediante procesos electroquímicos y biológicos","Sergio Martínez Delgadillo                                        Víctor Xiunel Mendoza Escamilla         Dra. Silvia Cristina Iuga","5318-9007"]
[{"$f":"COUNTIF($E$1:E164,'Proyectos vigentes'!$C$4)","v":14},163,534,"UAM","Electrónica","Tratamiento de residuos líquidos mediante procesos electroquímicos y biológicos","Sergio Martínez Delgadillo                                        Víctor Xiunel Mendoza Escamilla         Dra. Silvia Cristina Iuga","5318-9007"]
[{"$f":"COUNTIF($E$1:E165,'Proyectos vigentes'!$C$4)","v":14},164,534,"UAM","Física ","Tratamiento de residuos líquidos mediante procesos electroquímicos y biológicos","Sergio Martínez Delgadillo                                        Víctor Xiunel Mendoza Escamilla         Dra. Silvia Cristina Iuga","5318-9007"]
[{"$f":"COUNTIF($E$1:E166,'Proyectos vigentes'!$C$4)","v":14},165,534,"UAM","Industrial","Tratamiento de residuos líquidos mediante procesos electroquímicos y biológicos","Sergio Martínez Delgadillo                                        Víctor Xiunel Mendoza Escamilla         Dra. Silvia Cristina Iuga","5318-9007"]
[{"$f":"COUNTIF($E$1:E167,'Proyectos vigentes'!$C$4)","v":15},166,534,"UAM","Mecánica","Tratamiento de residuos líquidos mediante procesos electroquímicos y biológicos","Sergio Martínez Delgadillo                                        Víctor Xiunel Mendoza Escamilla         Dra. Silvia Cristina Iuga","5318-9007"]
[{"$f":"COUNTIF($E$1:E168,'Proyectos vigentes'!$C$4)","v":15},167,534,"UAM","Química","Tratamiento de residuos líquidos mediante procesos electroquímicos y biológicos","Sergio Martínez Delgadillo                                        Víctor Xiunel Mendoza Escamilla         Dra. Silvia Cristina Iuga","5318-9007"]
[{"$f":"COUNTIF($E$1:E169,'Proyectos vigentes'!$C$4)","v":15},168,1183,"UAM","Industrial","Técnicas de visualización para el estudio de micromovimientos","Dr. Miguel Ángel López Ontiveros","5318-9000 ext. 2243"]
[{"$f":"COUNTIF($E$1:E170,'Proyectos vigentes'!$C$4)","v":16},169,1183,"UAM","Mecánica","Técnicas de visualización para el estudio de micromovimientos","Dr. Miguel Ángel López Ontiveros","5318-9000 ext. 2243"]
[{"$f":"COUNTIF($E$1:E171,'Proyectos vigentes'!$C$4)","v":16},170,1194,"UAM","Todas las carreras CBI","Límites para la eficiencia energética y las emisiones de gases de efecto invernadero para los vehículos automotores nuevos de México","Nicolás Domínguez Vergara               José Luis Pantoja Gallegos                Marco Antonio Gutiérrez Villegas           Carlos Alberto Rivera Salamanca             Juan de la Cruz Mejía Téllez                       Germán Téllez Castillo","5318-9531 ext. 120"]
[{"$f":"COUNTIF($E$1:E172,'Proyectos vigentes'!$C$4)","v":16},171,1208,"UAM","Todas las carreras CBI","Manejo de arbolado urbano","Alicia Chacalo Hilu                           Mtro. Jaime Grabinsky y Steider","5318-9078"]
[{"$f":"COUNTIF($E$1:E173,'Proyectos vigentes'!$C$4)","v":16},172,1210,"UAM","Computación","Seguimiento de las actividades académicas de la Coordinación del Posgrado en Optimización","Dr. Eduardo Rodríguez Martínez          Dr. Francisco Javier Zaragoza Martínez      Dr. Marco Antonio Heredia Velasco                               Dr. Rodrigo Alexander Castro Campos                       ","5318-9000 ext. 2268, 2356, 2294"]
[{"$f":"COUNTIF($E$1:E174,'Proyectos vigentes'!$C$4)","v":16},173,1210,"UAM","Electrónica","Seguimiento de las actividades académicas de la Coordinación del Posgrado en Optimización","Dr. Eduardo Rodríguez Martínez          Dr. Francisco Javier Zaragoza Martínez      Dr. Marco Antonio Heredia Velasco                               Dr. Rodrigo Alexander Castro Campos                       ","5318-9000 ext. 2268, 2356, 2294"]
[{"$f":"COUNTIF($E$1:E175,'Proyectos vigentes'!$C$4)","v":16},174,1210,"UAM","Industrial","Seguimiento de las actividades académicas de la Coordinación del Posgrado en Optimización","Dr. Eduardo Rodríguez Martínez          Dr. Francisco Javier Zaragoza Martínez      Dr. Marco Antonio Heredia Velasco                               Dr. Rodrigo Alexander Castro Campos                       ","5318-9000 ext. 2268, 2356, 2294"]
[{"$f":"COUNTIF($E$1:E176,'Proyectos vigentes'!$C$4)","v":16},175,1224,"UAM","Todas las carreras CBI","Desarrollo y conservación de la infraestructura de cómputo del Sistema de Aprendizaje Individualizado","Dr. Ángel Martínez Meléndez","5318-9010"]
[{"$f":"COUNTIF($E$1:E177,'Proyectos vigentes'!$C$4)","v":16},176,1227,"UAM","Todas las carreras CBI","Apoyo para la implementación y mejora del sistema de Gestión de calidad en la Unidad Azcapotzalco","Mtra. Gina Ortíz Hernández                                 Dr. José Ángel Hernández Rodríguez                         ","5318-9590"]
[{"$f":"COUNTIF($E$1:E178,'Proyectos vigentes'!$C$4)","v":16},177,1241,"UAM","Ambiental","Formación académica de estudiantes en temas relacionados con economía y medio ambiente","Dra. Lilia Rodríguez Tapia                                                                                    Dra. Fabiola Sagrario Sosa Rodríguez                           ","5318-9427"]
[{"$f":"COUNTIF($E$1:E179,'Proyectos vigentes'!$C$4)","v":16},178,1241,"UAM","Computación","Formación académica de estudiantes en temas relacionados con economía y medio ambiente","Dra. Lilia Rodríguez Tapia                                                                                    Dra. Fabiola Sagrario Sosa Rodríguez                           ","5318-9427"]
[{"$f":"COUNTIF($E$1:E180,'Proyectos vigentes'!$C$4)","v":16},179,1241,"UAM","Química","Formación académica de estudiantes en temas relacionados con economía y medio ambiente","Dra. Lilia Rodríguez Tapia                                                                                    Dra. Fabiola Sagrario Sosa Rodríguez                           ","5318-9427"]
[{"$f":"COUNTIF($E$1:E181,'Proyectos vigentes'!$C$4)","v":16},180,1263,"UAM","Computación","Apoyo a la Coordinación de la carrera de ingeniería electrónica","Mtro. Gerardo Marcel Reyna Obregón","55-5318-9000 ext. 2330"]
[{"$f":"COUNTIF($E$1:E182,'Proyectos vigentes'!$C$4)","v":16},181,1263,"UAM","Electrónica","Apoyo a la Coordinación de la carrera de ingeniería electrónica","Mtro. Gerardo Marcel Reyna Obregón","55-5318-9000 ext. 2330"]
[{"$f":"COUNTIF($E$1:E183,'Proyectos vigentes'!$C$4)","v":16},182,1271,"UAM","Ambiental","Materiales nanoestructurados","Miguel Torres Rodríguez                         Mirella Gutiérrez Arzaluz                        Lidia López Pérez","5318-9570"]
[{"$f":"COUNTIF($E$1:E184,'Proyectos vigentes'!$C$4)","v":16},183,1271,"UAM","Química","Materiales nanoestructurados","Miguel Torres Rodríguez                         Mirella Gutiérrez Arzaluz                        Lidia López Pérez","5318-9570"]
[{"$f":"COUNTIF($E$1:E185,'Proyectos vigentes'!$C$4)","v":16},184,1277,"UAM","Química","Síntesis, caracterización y propiedades catalíticas de polioxocompuestos","Dr. Saúl Holguín Quiñones\n\n","5318-9000 ext. 2219, 2055"]
[{"$f":"COUNTIF($E$1:E186,'Proyectos vigentes'!$C$4)","v":16},185,1287,"UAM","Ambiental","Diseño de materiales sono o foto-activos (TiO2), usados en la degradación de contaminantes","Marcos May Lozano                                     Ricardo López Medina","5318-9023"]
[{"$f":"COUNTIF($E$1:E187,'Proyectos vigentes'!$C$4)","v":17},186,1287,"UAM","Mecánica","Diseño de materiales sono o foto-activos (TiO2), usados en la degradación de contaminantes","Marcos May Lozano                                     Ricardo López Medina","5318-9023"]
[{"$f":"COUNTIF($E$1:E188,'Proyectos vigentes'!$C$4)","v":17},187,1287,"UAM","Química","Diseño de materiales sono o foto-activos (TiO2), usados en la degradación de contaminantes","Marcos May Lozano                                     Ricardo López Medina","5318-9023"]
[{"$f":"COUNTIF($E$1:E189,'Proyectos vigentes'!$C$4)","v":17},188,1318,"UAM","Computación","Modelando sistemas complejos: Estadística y dinámica ","Dr. Hugo Hernández Saldaña","5318-9575"]
[{"$f":"COUNTIF($E$1:E190,'Proyectos vigentes'!$C$4)","v":17},189,1318,"UAM","Electrónica","Modelando sistemas complejos: Estadística y dinámica ","Dr. Hugo Hernández Saldaña","5318-9575"]
[{"$f":"COUNTIF($E$1:E191,'Proyectos vigentes'!$C$4)","v":17},190,1318,"UAM","Física ","Modelando sistemas complejos: Estadística y dinámica ","Dr. Hugo Hernández Saldaña","5318-9575"]
[{"$f":"COUNTIF($E$1:E192,'Proyectos vigentes'!$C$4)","v":17},191,1327,"UAM","Ambiental","Preparación de materiales porosos para su evaluación y modelado cinético como adsorbentes y catalizadores","Dr. Enrique Aduna Espinosa                                Dr. Jorge Luis Flores Moreno                                Mtra. Alejandra Santana Cruz                   Dr. Hiram Isaac Beltrán Conde","5318-9571, 5318-9000 ext. 2233"]
[{"$f":"COUNTIF($E$1:E193,'Proyectos vigentes'!$C$4)","v":17},192,1327,"UAM","Química","Preparación de materiales porosos para su evaluación y modelado cinético como adsorbentes y catalizadores","Dr. Enrique Aduna Espinosa                                Dr. Jorge Luis Flores Moreno                                Mtra. Alejandra Santana Cruz                   Dr. Hiram Isaac Beltrán Conde","5318-9571, 5318-9000 ext. 2233"]
[{"$f":"COUNTIF($E$1:E194,'Proyectos vigentes'!$C$4)","v":17},193,1355,"UAM","Computación","Apoyo a la Coordinación Divisional de Vinculación de CBI","María Antonieta Ortega Rodríguez                                         Amando José Padilla Ramírez","5318-9006, ext. 2089, 2204"]
[{"$f":"COUNTIF($E$1:E195,'Proyectos vigentes'!$C$4)","v":17},194,1361,"UAM","Ambiental","Análisis, desarrollo, innovación, implementación y mejora de programas ambientales y sustentables de la UAM-A","Luis Antonio Barbosa Noegerat                    Rosa María Espinosa Valdemar","5318-945"]
[{"$f":"COUNTIF($E$1:E196,'Proyectos vigentes'!$C$4)","v":17},195,1361,"UAM","Civil","Análisis, desarrollo, innovación, implementación y mejora de programas ambientales y sustentables de la UAM-A","Luis Antonio Barbosa Noegerat                    Rosa María Espinosa Valdemar","5318-945"]
[{"$f":"COUNTIF($E$1:E197,'Proyectos vigentes'!$C$4)","v":17},196,1361,"UAM","Eléctrica","Análisis, desarrollo, innovación, implementación y mejora de programas ambientales y sustentables de la UAM-A","Luis Antonio Barbosa Noegerat                    Rosa María Espinosa Valdemar","5318-945"]
[{"$f":"COUNTIF($E$1:E198,'Proyectos vigentes'!$C$4)","v":17},197,1361,"UAM","Electrónica","Análisis, desarrollo, innovación, implementación y mejora de programas ambientales y sustentables de la UAM-A","Luis Antonio Barbosa Noegerat","5318-945"]
[{"$f":"COUNTIF($E$1:E199,'Proyectos vigentes'!$C$4)","v":17},198,1361,"UAM","Industrial","Análisis, desarrollo, innovación, implementación y mejora de programas ambientales y sustentables de la UAM-A","Luis Antonio Barbosa Noegerat                    Rosa María Espinosa Valdemar","5318-945"]
[{"$f":"COUNTIF($E$1:E200,'Proyectos vigentes'!$C$4)","v":17},199,1366,"UAM","Ambiental","Apoyo para la obtención de datos experimentales de un sistema de adsorción de compuestos azufrados.","José Antonio Colín Luna                     Julio César García Martínez","5318-9044 y 5318-9020"]
[{"$f":"COUNTIF($E$1:E201,'Proyectos vigentes'!$C$4)","v":17},200,1366,"UAM","Química","Apoyo para la obtención de datos experimentales de un sistema de adsorción de compuestos azufrados.","José Antonio Colín Luna                     Julio César García Martínez","5318-9044 y 5318-9020"]
[{"$f":"COUNTIF($E$1:E202,'Proyectos vigentes'!$C$4)","v":17},201,1366,"UAM","Física ","Apoyo para la obtención de datos experimentales de un sistema de adsorción de compuestos azufrados.","José Antonio Colín Luna                     Julio César García Martínez","5318-9044 y 5318-9020"]
[{"$f":"COUNTIF($E$1:E203,'Proyectos vigentes'!$C$4)","v":17},202,1388,"UAM","Ambiental","Análisis numérico y experimental en el proceso de destilación solar","Mtra. Sandra Chávez Sánchez","5318-9000"]
[{"$f":"COUNTIF($E$1:E204,'Proyectos vigentes'!$C$4)","v":17},203,1388,"UAM","Física ","Análisis numérico y experimental en el proceso de destilación solar","Mtra. Sandra Chávez Sánchez","5318-9000"]
[{"$f":"COUNTIF($E$1:E205,'Proyectos vigentes'!$C$4)","v":18},204,1388,"UAM","Mecánica","Análisis numérico y experimental en el proceso de destilación solar","Mtra. Sandra Chávez Sánchez","5318-9000"]
[{"$f":"COUNTIF($E$1:E206,'Proyectos vigentes'!$C$4)","v":18},205,1388,"UAM","Química","Análisis numérico y experimental en el proceso de destilación solar","Mtra. Sandra Chávez Sánchez","5318-9000"]
[{"$f":"COUNTIF($E$1:E207,'Proyectos vigentes'!$C$4)","v":18},206,1394,"UAM","Ambiental","Síntesis, modificación y aplicación de materiales sólidos porosos a fenómenos de sorción y catálisis","Ana Marisela Maubert Franco                       Elizabeth Rojas García","5318-9571, 5318-9574"]
[{"$f":"COUNTIF($E$1:E208,'Proyectos vigentes'!$C$4)","v":18},207,1394,"UAM","Química","Síntesis, modificación y aplicación de materiales sólidos porosos a fenómenos de sorción y catálisis","Ana Marisela Maubert Franco                       Elizabeth Rojas García","5318-9571, 5318-9574"]
[{"$f":"COUNTIF($E$1:E209,'Proyectos vigentes'!$C$4)","v":18},208,1395,"UAM","Ambiental","Tecnologías sustentables enfocadas a agua, suelo y plásticos ","Mtra. Margarita Beltrán Villavicencio                 Dra. Alethia Vázquez Morillas                    Dra. Maribel Velasco Pérez                          Dra. Rosa María Espinosa Valdemar               Dr. Israel Labastida Núñez         Dra. Sylvie Turpin Marion                         Mtra. Griselda González Cardoso                    Dr. José Ángel Dávila Gómez","55-5318-9075, 55-5318-9057, 53189062"]
[{"$f":"COUNTIF($E$1:E210,'Proyectos vigentes'!$C$4)","v":18},209,1395,"UAM","Química","Tecnologías sustentables enfocadas a agua, suelo y plásticos ","Mtra. Margarita Beltrán Villavicencio                 Dra. Alethia Vázquez Morillas                    Dra. Maribel Velasco Pérez                          Dra. Rosa María Espinosa Valdemar               Dr. Israel Labastida Núñez         Dra. Sylvie Turpin Marion                         Mtra. Griselda González Cardoso                    Dr. José Ángel Dávila Gómez","5318-9075, 5318-9057, 53189062"]
[{"$f":"COUNTIF($E$1:E211,'Proyectos vigentes'!$C$4)","v":18},210,1395,"UAM","Física ","Tecnologías sustentables enfocadas a agua, suelo y plásticos ","Mtra. Margarita Beltrán Villavicencio                 Dra. Alethia Vázquez Morillas                    Dra. Maribel Velasco Pérez                          Dra. Rosa María Espinosa Valdemar               Dr. Israel Labastida Núñez         Dra. Sylvie Turpin Marion                         Mtra. Griselda González Cardoso                    Dr. José Ángel Dávila Gómez","5318-9075, 5318-9057, 53189062"]
[{"$f":"COUNTIF($E$1:E212,'Proyectos vigentes'!$C$4)","v":19},211,1395,"UAM","Mecánica","Tecnologías sustentables enfocadas a agua, suelo y plásticos ","Mtra. Margarita Beltrán Villavicencio                 Dra. Alethia Vázquez Morillas                    Dra. Maribel Velasco Pérez                          Dra. Rosa María Espinosa Valdemar               Dr. Israel Labastida Núñez         Dra. Sylvie Turpin Marion                         Mtra. Griselda González Cardoso                    Dr. José Ángel Dávila Gómez","5318-9075, 5318-9057, 53189062"]
[{"$f":"COUNTIF($E$1:E213,'Proyectos vigentes'!$C$4)","v":19},212,1395,"UAM","Civil","Tecnologías sustentables enfocadas a agua, suelo y plásticos ","Mtra. Margarita Beltrán Villavicencio                 Dra. Alethia Vázquez Morillas                    Dra. Maribel Velasco Pérez                          Dra. Rosa María Espinosa Valdemar               Dr. Israel Labastida Núñez         Dra. Sylvie Turpin Marion                         Mtra. Griselda González Cardoso                    Dr. José Ángel Dávila Gómez","5318-9075, 5318-9057, 53189062"]
[{"$f":"COUNTIF($E$1:E214,'Proyectos vigentes'!$C$4)","v":19},213,1416,"UAM","Todas las carreras CBI","Programación de preguntas y ejercicios para la evaluación del aprendizaje en Moodle","Georgina Pulido Rodríguez                          Ricardo López Bautista","5318-9014, 5318-9015"]
[{"$f":"COUNTIF($E$1:E215,'Proyectos vigentes'!$C$4)","v":19},214,1422,"UAM","Civil","Variación del comportamiento inelástico de puentes con irregularidad en superestructura y subestructura. Propuesta de incorporación a un reglamento de diseño.","María Consolación Gómez Soberón                   Tiziano Perea Olvera","5318-9456, 5318-9085"]
[{"$f":"COUNTIF($E$1:E216,'Proyectos vigentes'!$C$4)","v":19},215,1435,"UAM","Industrial","Desarrollo y construcción de un vehículo baja SAE","Ing. Romy Pérez Moreno","5318-9069"]
[{"$f":"COUNTIF($E$1:E217,'Proyectos vigentes'!$C$4)","v":20},216,1435,"UAM","Mecánica","Desarrollo y construcción de un vehículo baja SAE","Ing. Romy Pérez Moreno","5318-9069"]
[{"$f":"COUNTIF($E$1:E218,'Proyectos vigentes'!$C$4)","v":20},217,1435,"UAM","Electrónica","Desarrollo y construcción de un vehículo baja SAE","Ing. Romy Pérez Moreno","5318-9069"]
[{"$f":"COUNTIF($E$1:E219,'Proyectos vigentes'!$C$4)","v":20},218,1435,"UAM","Computación","Desarrollo y construcción de un vehículo baja SAE","Ing. Romy Pérez Moreno","5318-9069"]
[{"$f":"COUNTIF($E$1:E220,'Proyectos vigentes'!$C$4)","v":20},219,1462,"UAM","Física ","Síntesis de nuevos materiales para aplicaciones optoelectrónicas","Joan Reyes Miranda                                Dulce Yolotzin Medina Velázquez                 Miriam Aguilar Sánchez","5318-9000 ext. 2129"]
[{"$f":"COUNTIF($E$1:E221,'Proyectos vigentes'!$C$4)","v":20},220,1462,"UAM","Metalúrgica","Síntesis de nuevos materiales para aplicaciones optoelectrónicas","Joan Reyes Miranda                                Dulce Yolotzin Medina Velázquez                 Miriam Aguilar Sánchez","5318-9000 ext. 2129"]
[{"$f":"COUNTIF($E$1:E222,'Proyectos vigentes'!$C$4)","v":20},221,1462,"UAM","Química","Síntesis de nuevos materiales para aplicaciones optoelectrónicas","Joan Reyes Miranda                                Dulce Yolotzin Medina Velázquez                 Miriam Aguilar Sánchez","5318-9000 ext. 2129"]
[{"$f":"COUNTIF($E$1:E223,'Proyectos vigentes'!$C$4)","v":20},222,1462,"UAM","Industrial","Síntesis de nuevos materiales para aplicaciones optoelectrónicas","Joan Reyes Miranda                                Dulce Yolotzin Medina Velázquez                 Miriam Aguilar Sánchez","5318-9000 ext. 2129"]
[{"$f":"COUNTIF($E$1:E224,'Proyectos vigentes'!$C$4)","v":20},223,1477,"UAM","Electrónica","Desarrollo de una célula de manufactura con enfoque 4.0","Lisaura Walkiria Rodríguez Alvarado                                                      Jesús Loyo Quijada                             Dr. Usiel Sandino Silva Rivera","5318-9532 ext. 146, 112"]
[{"$f":"COUNTIF($E$1:E225,'Proyectos vigentes'!$C$4)","v":20},224,1477,"UAM","Computación","Desarrollo de una célula de manufactura con enfoque 4.0","Lisaura Walkiria Rodríguez Alvarado                                                      Jesús Loyo Quijada                             Dr. Usiel Sandino Silva Rivera","5318-9532 ext. 146, 112"]
[{"$f":"COUNTIF($E$1:E226,'Proyectos vigentes'!$C$4)","v":20},225,1477,"UAM","Industrial","Desarrollo de una célula de manufactura con enfoque 4.0","Lisaura Walkiria Rodríguez Alvarado                                                      Jesús Loyo Quijada                             Dr. Usiel Sandino Silva Rivera","5318-9532 ext. 146, 112"]
[{"$f":"COUNTIF($E$1:E227,'Proyectos vigentes'!$C$4)","v":21},226,1477,"UAM","Mecánica","Desarrollo de una célula de manufactura con enfoque 4.0","Lisaura Walkiria Rodríguez Alvarado                                                      Jesús Loyo Quijada                             Dr. Usiel Sandino Silva Rivera","5318-9532 ext. 146, 112"]
[{"$f":"COUNTIF($E$1:E228,'Proyectos vigentes'!$C$4)","v":21},227,1487,"UAM","Ambiental","Desarrollo de un proceso para el reciclaje de los plumones para pizarrón blanco desechados en la UAM-Azcapotzalco ","Yara Ramírez Quirós","5318-9000 ext. 2341"]
[{"$f":"COUNTIF($E$1:E229,'Proyectos vigentes'!$C$4)","v":21},228,1487,"UAM","Química","Desarrollo de un proceso para el reciclaje de los plumones para pizarrón blanco desechados en la UAM-Azcapotzalco ","Yara Ramírez Quirós","5318-9000 ext. 2341"]
[{"$f":"COUNTIF($E$1:E230,'Proyectos vigentes'!$C$4)","v":21},229,1491,"UAM","Computación","Desarrollos computacionales para Ingeniería de Potencia","Fernando Toledo Toledo","5318-9000 ext.2251"]
[{"$f":"COUNTIF($E$1:E231,'Proyectos vigentes'!$C$4)","v":21},230,1491,"UAM","Eléctrica","Desarrollos computacionales para Ingeniería de Potencia","Fernando Toledo Toledo","5318-9000 ext.2251"]
[{"$f":"COUNTIF($E$1:E232,'Proyectos vigentes'!$C$4)","v":21},231,1492,"UAM","Física ","Fabricación y caracterización de nuevos materiales compuestos para posibles implantes en el cuerpo humano (huesos)","Dra. María Elizabeth Refugio García","5318-9000 ext. 2130"]
[{"$f":"COUNTIF($E$1:E233,'Proyectos vigentes'!$C$4)","v":21},232,1492,"UAM","Industrial","Fabricación y caracterización de nuevos materiales compuestos para posibles implantes en el cuerpo humano (huesos)","Dra. María Elizabeth Refugio García","5318-9000 ext. 2130"]
[{"$f":"COUNTIF($E$1:E234,'Proyectos vigentes'!$C$4)","v":22},233,1492,"UAM","Mecánica","Fabricación y caracterización de nuevos materiales compuestos para posibles implantes en el cuerpo humano (huesos)","Dra. María Elizabeth Refugio García","5318-9000 ext. 2130"]
[{"$f":"COUNTIF($E$1:E235,'Proyectos vigentes'!$C$4)","v":22},234,1492,"UAM","Metalúrgica","Fabricación y caracterización de nuevos materiales compuestos para posibles implantes en el cuerpo humano (huesos)","Dra. María Elizabeth Refugio García","5318-9000 ext. 2130"]
[{"$f":"COUNTIF($E$1:E236,'Proyectos vigentes'!$C$4)","v":22},235,1492,"UAM","Química","Fabricación y caracterización de nuevos materiales compuestos para posibles implantes en el cuerpo humano (huesos)","Dra. María Elizabeth Refugio García","5318-9000 ext. 2130"]
[{"$f":"COUNTIF($E$1:E237,'Proyectos vigentes'!$C$4)","v":22},236,1497,"UAM","Civil","Comportamiento de estructuras de concreto","Dr. Eduardo Arellano Mendez                   Dr. Hans Israel Archundia Aranda             M. I. Gilberto Rangel Torres",53189461]
[{"$f":"COUNTIF($E$1:E238,'Proyectos vigentes'!$C$4)","v":23},237,1497,"UAM","Mecánica","Comportamiento de estructuras de concreto","Dr. Eduardo Arellano Mendez                   Dr. Hans Israel Archundia Aranda             M. I. Gilberto Rangel Torres",53189461]
[{"$f":"COUNTIF($E$1:E239,'Proyectos vigentes'!$C$4)","v":23},238,1503,"UAM","Computación","Caracterización de las propiedades estructurales y mecánicas de materiales metálicos y aleaciones, así como la simulación de su respuesta a diferentes condiciones de esfuerzo","Dra. Miriam Aguilar Sánchez             Mtro. Gilberto Torres Rangel                Dra. Elizabeth Garfias García",53189325]
[{"$f":"COUNTIF($E$1:E240,'Proyectos vigentes'!$C$4)","v":23},239,1503,"UAM","Física ","Caracterización de las propiedades estructurales y mecánicas de materiales metálicos y aleaciones, así como la simulación de su respuesta a diferentes condiciones de esfuerzo","Dra. Miriam Aguilar Sánchez             Mtro. Gilberto Torres Rangel                Dra. Elizabeth Garfias García",53189325]
[{"$f":"COUNTIF($E$1:E241,'Proyectos vigentes'!$C$4)","v":23},240,1503,"UAM","Metalúrgica","Caracterización de las propiedades estructurales y mecánicas de materiales metálicos y aleaciones, así como la simulación de su respuesta a diferentes condiciones de esfuerzo","Dra. Miriam Aguilar Sánchez             Mtro. Gilberto Torres Rangel                Dra. Elizabeth Garfias García",53189325]
[{"$f":"COUNTIF($E$1:E242,'Proyectos vigentes'!$C$4)","v":23},241,1516,"UAM","Computación","Revista Electrónica Tiempo UAM. Sociedad, Cultura y Tecnología","Yolanda Castañeda Zavala                           Hugo Pablo Leyva","5318-9144 ext. 117. 5318-9532 ext. 143"]
[{"$f":"COUNTIF($E$1:E243,'Proyectos vigentes'!$C$4)","v":23},242,1518,"UAM","Ambiental","Proyecto interdisciplinario para la sostenibilidad del Valle de México y sus alrededores","Mtro. Erasmo Flores Valverde          Mtra. María Rita Valladares Rodríguez                                         ","5318-9496"]
[{"$f":"COUNTIF($E$1:E244,'Proyectos vigentes'!$C$4)","v":23},243,1518,"UAM","Civil","Proyecto interdisciplinario para la sostenibilidad del Valle de México y sus alrededores","Mtro. Erasmo Flores Valverde          Mtra. María Rita Valladares Rodríguez                                         ","5318-9496"]
[{"$f":"COUNTIF($E$1:E245,'Proyectos vigentes'!$C$4)","v":23},244,1518,"UAM","Computación","Proyecto interdisciplinario para la sostenibilidad del Valle de México y sus alrededores","Mtro. Erasmo Flores Valverde          Mtra. María Rita Valladares Rodríguez                                         ","5318-9496"]
[{"$f":"COUNTIF($E$1:E246,'Proyectos vigentes'!$C$4)","v":23},245,1518,"UAM","Eléctrica","Proyecto interdisciplinario para la sostenibilidad del Valle de México y sus alrededores","Mtro. Erasmo Flores Valverde          Mtra. María Rita Valladares Rodríguez                                         ","5318-9496"]
[{"$f":"COUNTIF($E$1:E247,'Proyectos vigentes'!$C$4)","v":23},246,1518,"UAM","Electrónica","Proyecto interdisciplinario para la sostenibilidad del Valle de México y sus alrededores","Mtro. Erasmo Flores Valverde          Mtra. María Rita Valladares Rodríguez                                         ","5318-9496"]
[{"$f":"COUNTIF($E$1:E248,'Proyectos vigentes'!$C$4)","v":24},247,1518,"UAM","Mecánica","Proyecto interdisciplinario para la sostenibilidad del Valle de México y sus alrededores","Mtro. Erasmo Flores Valverde          Mtra. María Rita Valladares Rodríguez                                         ","5318-9496"]
[{"$f":"COUNTIF($E$1:E249,'Proyectos vigentes'!$C$4)","v":24},248,1518,"UAM","Química","Proyecto interdisciplinario para la sostenibilidad del Valle de México y sus alrededores","Mtro. Erasmo Flores Valverde          Mtra. María Rita Valladares Rodríguez                                         ","5318-9496"]
[{"$f":"COUNTIF($E$1:E250,'Proyectos vigentes'!$C$4)","v":25},249,1520,"UAM","Mecánica","Desarrollo y caracterización de aleaciones no ferrosas, cerámicos y materiales compuestos de matriz metálica ligeros","José Arturo Aragón Lezama","5318-9475"]
[{"$f":"COUNTIF($E$1:E251,'Proyectos vigentes'!$C$4)","v":25},250,1520,"UAM","Metalúrgica","Desarrollo y caracterización de aleaciones no ferrosas, cerámicos y materiales compuestos de matriz metálica ligeros","José Arturo Aragón Lezama","5318-9475"]
[{"$f":"COUNTIF($E$1:E252,'Proyectos vigentes'!$C$4)","v":25},251,1523,"UAM","Computación","Tecnologías LoRa, Bluetooth LE e IOT","Mtro. Francisco Javier Sánchez Rangel          Mtro. José Ignacio Vega Luna                    Ing. Gerardo Salgado Guzmán                  Ing. Mario Alberto Lagos Acosta             Ing. Víctor Noé Tapia Vargas","5318-9000 ext. 2310"]
[{"$f":"COUNTIF($E$1:E253,'Proyectos vigentes'!$C$4)","v":25},252,1523,"UAM","Electrónica","Tecnologías LoRa, Bluetooth LE e IOT","Mtro. Francisco Javier Sánchez Rangel          Mtro. José Ignacio Vega Luna                    Ing. Gerardo Salgado Guzmán                  Ing. Mario Alberto Lagos Acosta             Ing. Víctor Noé Tapia Vargas","5318-9000 ext. 2310"]
[{"$f":"COUNTIF($E$1:E254,'Proyectos vigentes'!$C$4)","v":26},253,1523,"UAM","Mecánica","Tecnologías LoRa, Bluetooth LE e IOT","Mtro. Francisco Javier Sánchez Rangel          Mtro. José Ignacio Vega Luna                    Ing. Gerardo Salgado Guzmán                  Ing. Mario Alberto Lagos Acosta             Ing. Víctor Noé Tapia Vargas","5318-9000 ext. 2310"]
[{"$f":"COUNTIF($E$1:E255,'Proyectos vigentes'!$C$4)","v":26},254,1528,"UAM","Ambiental","Investigación en calidad ambiental","Dra. Mabel Vaca Mier","5318-9080"]
[{"$f":"COUNTIF($E$1:E256,'Proyectos vigentes'!$C$4)","v":26},255,1528,"UAM","Química","Investigación en calidad ambiental","Dra. Mabel Vaca Mier","5318-9080"]
[{"$f":"COUNTIF($E$1:E257,'Proyectos vigentes'!$C$4)","v":26},256,1536,"UAM","Computación","Apoyo en la aplicación de técnicas de ingeniería del lenguaje","Dra. Angeles Belém Priego Sánchez","5318-9530 ext. 141"]
[{"$f":"COUNTIF($E$1:E258,'Proyectos vigentes'!$C$4)","v":26},257,1538,"UAM","Computación","Secuencias didácticas para la producción educativa digital en licenciaturas de ingeniería","M. en C. Hugo Pablo Leyva                Dra. Rafaela Blanca Silva López ","5318-9532 ext. 143"]
[{"$f":"COUNTIF($E$1:E259,'Proyectos vigentes'!$C$4)","v":26},258,1538,"UAM","Ambiental","Secuencias didácticas para la producción educativa digital en licenciaturas de ingeniería","M. en C. Hugo Pablo Leyva                Dra. Rafaela Blanca Silva López ","5318-9532 ext. 143"]
[{"$f":"COUNTIF($E$1:E260,'Proyectos vigentes'!$C$4)","v":26},259,1538,"UAM","Civil","Secuencias didácticas para la producción educativa digital en licenciaturas de ingeniería","M. en C. Hugo Pablo Leyva                Dra. Rafaela Blanca Silva López ","5318-9532 ext. 143"]
[{"$f":"COUNTIF($E$1:E261,'Proyectos vigentes'!$C$4)","v":26},260,1538,"UAM","Eléctrica","Secuencias didácticas para la producción educativa digital en licenciaturas de ingeniería","M. en C. Hugo Pablo Leyva                Dra. Rafaela Blanca Silva López ","5318-9532 ext. 143"]
[{"$f":"COUNTIF($E$1:E262,'Proyectos vigentes'!$C$4)","v":26},261,1538,"UAM","Electrónica","Secuencias didácticas para la producción educativa digital en licenciaturas de ingeniería","M. en C. Hugo Pablo Leyva                Dra. Rafaela Blanca Silva López ","5318-9532 ext. 143"]
[{"$f":"COUNTIF($E$1:E263,'Proyectos vigentes'!$C$4)","v":26},262,1538,"UAM","Física ","Secuencias didácticas para la producción educativa digital en licenciaturas de ingeniería","M. en C. Hugo Pablo Leyva                Dra. Rafaela Blanca Silva López ","5318-9532 ext. 143"]
[{"$f":"COUNTIF($E$1:E264,'Proyectos vigentes'!$C$4)","v":27},263,1538,"UAM","Mecánica","Secuencias didácticas para la producción educativa digital en licenciaturas de ingeniería","M. en C. Hugo Pablo Leyva                Dra. Rafaela Blanca Silva López ","5318-9532 ext. 143"]
[{"$f":"COUNTIF($E$1:E265,'Proyectos vigentes'!$C$4)","v":27},264,1538,"UAM","Metalúrgica","Secuencias didácticas para la producción educativa digital en licenciaturas de ingeniería","M. en C. Hugo Pablo Leyva                Dra. Rafaela Blanca Silva López ","5318-9532 ext. 143"]
[{"$f":"COUNTIF($E$1:E266,'Proyectos vigentes'!$C$4)","v":27},265,1538,"UAM","Química","Secuencias didácticas para la producción educativa digital en licenciaturas de ingeniería","M. en C. Hugo Pablo Leyva                Dra. Rafaela Blanca Silva López ","5318-9532 ext. 143"]
[{"$f":"COUNTIF($E$1:E267,'Proyectos vigentes'!$C$4)","v":27},266,1538,"UAM","Industrial","Secuencias didácticas para la producción educativa digital en licenciaturas de ingeniería","M. en C. Hugo Pablo Leyva                Dra. Rafaela Blanca Silva López ","5318-9532 ext. 143"]
[{"$f":"COUNTIF($E$1:E268,'Proyectos vigentes'!$C$4)","v":27},267,1542,"UAM","Computación","Desarrollo de modelos de simulación y prototipos experimentales para telecomunicaciones","Dr. Genaro Hernández Valdez                Dra. Grethell Georgina Pérez Sánchez                    Dra. Sandra Lirio Castellanos López                        Dr. Ernesto Rodrigo Vázquez Cerón                   Ing. Gloria Francisca Serrano Moya                                M. en C. Mario Alberto Ramírez Reyna","5318-9000 ext. 2396, 2298"]
[{"$f":"COUNTIF($E$1:E269,'Proyectos vigentes'!$C$4)","v":27},268,1542,"UAM","Electrónica","Desarrollo de modelos de simulación y prototipos experimentales para telecomunicaciones","Dr. Genaro Hernández Valdez                Dra. Grethell Georgina Pérez Sánchez                    Dra. Sandra Lirio Castellanos López                        Dr. Ernesto Rodrigo Vázquez Cerón                   Ing. Gloria Francisca Serrano Moya                                M. en C. Mario Alberto Ramírez Reyna","5318-9000 ext. 2396, 2298"]
[{"$f":"COUNTIF($E$1:E270,'Proyectos vigentes'!$C$4)","v":27},269,1542,"UAM","Física ","Desarrollo de modelos de simulación y prototipos experimentales para telecomunicaciones","Dr. Genaro Hernández Valdez                Dra. Grethell Georgina Pérez Sánchez                    Dra. Sandra Lirio Castellanos López                        Dr. Ernesto Rodrigo Vázquez Cerón                   Ing. Gloria Francisca Serrano Moya                                M. en C. Mario Alberto Ramírez Reyna","5318-9000 ext. 2396, 2298"]
[{"$f":"COUNTIF($E$1:E271,'Proyectos vigentes'!$C$4)","v":28},270,1542,"UAM","Mecánica","Desarrollo de modelos de simulación y prototipos experimentales para telecomunicaciones","Dr. Genaro Hernández Valdez                Dra. Grethell Georgina Pérez Sánchez                    Dra. Sandra Lirio Castellanos López                        Dr. Ernesto Rodrigo Vázquez Cerón                   Ing. Gloria Francisca Serrano Moya                                M. en C. Mario Alberto Ramírez Reyna","5318-9000 ext. 2396, 2298"]
[{"$f":"COUNTIF($E$1:E272,'Proyectos vigentes'!$C$4)","v":28},271,1546,"UAM","Física ","Fortalecimiento del proceso de Enseñanza y Aprendizaje en la UEA Dinámica Aplicada con material didáctico","Dr. Ricardo Teodoro Paez Hernández.","5318-9000 Ext. 9026"]
[{"$f":"COUNTIF($E$1:E273,'Proyectos vigentes'!$C$4)","v":28},272,1563,"UAM","Ambiental","Materiales Híbridos Estructurados","Dra. Sandra Loera Serna","55-5318-9000 ext. 2233"]
[{"$f":"COUNTIF($E$1:E274,'Proyectos vigentes'!$C$4)","v":28},273,1563,"UAM","Física ","Materiales Híbridos Estructurados","Dra. Sandra Loera Serna","55-5318-9000 ext. 2233"]
[{"$f":"COUNTIF($E$1:E275,'Proyectos vigentes'!$C$4)","v":28},274,1563,"UAM","Química","Materiales Híbridos Estructurados","Dra. Sandra Loera Serna","55-5318-9000 ext. 2233"]
[{"$f":"COUNTIF($E$1:E276,'Proyectos vigentes'!$C$4)","v":28},275,1565,"UAM","Civil","Apoyo en edición de ecuaciones y gráficas para publicaciones","Dr. Oscar Manuel González Cuevas","55- 5318-9000 ext. 9350"]
[{"$f":"COUNTIF($E$1:E277,'Proyectos vigentes'!$C$4)","v":28},276,1566,"UAM","Ambiental","Notas de curso Ingeniería de Biorreactores","Dra. Margarita M. González Brambila","55-5318-9000 "]
[{"$f":"COUNTIF($E$1:E278,'Proyectos vigentes'!$C$4)","v":28},277,1566,"UAM","Química","Notas de curso Ingeniería de Biorreactores","Dra. Margarita M. González Brambila","55-5318-9000 "]
[{"$f":"COUNTIF($E$1:E279,'Proyectos vigentes'!$C$4)","v":28},278,1567,"UAM","Ambiental","Síntesis, caracterización y evaluación de materiales cerámicos e híbridos sostenibles de interés en ingeniería","Dra. Deyanira Angeles Beltrán","53189000 ext. 2055 o 2169"]
[{"$f":"COUNTIF($E$1:E280,'Proyectos vigentes'!$C$4)","v":28},279,1567,"UAM","Computación","Síntesis, caracterización y evaluación de materiales cerámicos e híbridos sostenibles de interés en ingeniería","Dra. Deyanira Angeles Beltrán","53189000 ext. 2055 o 2169"]
[{"$f":"COUNTIF($E$1:E281,'Proyectos vigentes'!$C$4)","v":28},280,1567,"UAM","Eléctrica","Síntesis, caracterización y evaluación de materiales cerámicos e híbridos sostenibles de interés en ingeniería","Dra. Deyanira Angeles Beltrán","53189000 ext. 2055 o 2169"]
[{"$f":"COUNTIF($E$1:E282,'Proyectos vigentes'!$C$4)","v":28},281,1567,"UAM","Metalúrgica","Síntesis, caracterización y evaluación de materiales cerámicos e híbridos sostenibles de interés en ingeniería","Dra. Deyanira Angeles Beltrán","53189000 ext. 2055 o 2169"]
[{"$f":"COUNTIF($E$1:E283,'Proyectos vigentes'!$C$4)","v":28},282,1567,"UAM","Química","Síntesis, caracterización y evaluación de materiales cerámicos e híbridos sostenibles de interés en ingeniería","Dra. Deyanira Angeles Beltrán","53189000 ext. 2055 o 2169"]
[{"$f":"COUNTIF($E$1:E284,'Proyectos vigentes'!$C$4)","v":28},283,1568,"UAM","Todas las carreras CBI","Promoción de Educación Abierta","Lic. María Cristina Avila Cortés                        Dr. Abelardo Mariña Flores\n","55 5318-9000"]
[{"$f":"COUNTIF($E$1:E285,'Proyectos vigentes'!$C$4)","v":28},284,1569,"UAM","Química","Preparación de materiales grafíticos dopados con aminas aromáticas y compuestos metálicos","Dr. Humberto Cervantes Cuevas                 Dr. Gerardo Chávez Esquivel","55 5318-9000 ext.  2349"]
[{"$f":"COUNTIF($E$1:E286,'Proyectos vigentes'!$C$4)","v":28},285,1573,"UAM","Computación","Diseño y construcción de prototipos que apoyen la docencia de las UEA relacionadas con Automatización Industrial. ","Dr. Miguel Magos Rivera                       Ing. José Antonio Lara Chávez                 Ing. Ricardo Godínez Bravo.","55- 5318 9000 ext. 1028, 2192, 9550"]
[{"$f":"COUNTIF($E$1:E287,'Proyectos vigentes'!$C$4)","v":28},286,1573,"UAM","Electrónica","Diseño y construcción de prototipos que apoyen la docencia de las UEA relacionadas con Automatización Industrial. ","Dr. Miguel Magos Rivera                       Ing. José Antonio Lara Chávez                 Ing. Ricardo Godínez Bravo.","55- 5318 9000 ext. 1028, 2192, 9550"]
[{"$f":"COUNTIF($E$1:E288,'Proyectos vigentes'!$C$4)","v":28},287,1573,"UAM","Industrial","Diseño y construcción de prototipos que apoyen la docencia de las UEA relacionadas con Automatización Industrial. ","Dr. Miguel Magos Rivera                       Ing. José Antonio Lara Chávez                 Ing. Ricardo Godínez Bravo.","55- 5318 9000 ext. 1028, 2192, 9550"]
[{"$f":"COUNTIF($E$1:E289,'Proyectos vigentes'!$C$4)","v":29},288,1573,"UAM","Mecánica","Diseño y construcción de prototipos que apoyen la docencia de las UEA relacionadas con Automatización Industrial. ","Dr. Miguel Magos Rivera                       Ing. José Antonio Lara Chávez                 Ing. Ricardo Godínez Bravo.","55- 5318 9000 ext. 1028, 2192, 9550"]
[{"$f":"COUNTIF($E$1:E290,'Proyectos vigentes'!$C$4)","v":29},289,1574,"UAM","Eléctrica","Simulación computacional para análisis de corto circuito en sistemas eléctricos de potencia. ","Dr. Carlos Alberto Rivera Salamanca","55-5318-9000 ext. 9046"]
[{"$f":"COUNTIF($E$1:E291,'Proyectos vigentes'!$C$4)","v":29},290,1574,"UAM","Computación","Simulación computacional para análisis de corto circuito en sistemas eléctricos de potencia. ","Dr. Carlos Alberto Rivera Salamanca","55-5318-9000 ext. 9046"]
[{"$f":"COUNTIF($E$1:E292,'Proyectos vigentes'!$C$4)","v":29},291,1577,"UAM","Ambiental","Proyecto Interdisciplinario para el Desarrollo Ambiental y Cultural de las Comunidades (PIDACC)","Mtro. Saúl Vargas González","55-5318-9000 ext. 9179"]
[{"$f":"COUNTIF($E$1:E293,'Proyectos vigentes'!$C$4)","v":29},292,1577,"UAM","Civil","Proyecto Interdisciplinario para el Desarrollo Ambiental y Cultural de las Comunidades (PIDACC)","Mtro. Saúl Vargas González","55-5318-9000 ext. 9179"]
[{"$f":"COUNTIF($E$1:E294,'Proyectos vigentes'!$C$4)","v":29},293,1577,"UAM","Química","Proyecto Interdisciplinario para el Desarrollo Ambiental y Cultural de las Comunidades (PIDACC)","Mtro. Saúl Vargas González","55-5318-9000 ext. 9179"]
[{"$f":"COUNTIF($E$1:E295,'Proyectos vigentes'!$C$4)","v":29},294,1578,"UAM","Ambiental","Elaboración de fichas técnicas con propiedades acústicas y fisicoquímicas de materiales naturales y sintéticos","Dra. Sandra Loera Serna                           Dr. Ernesto Rodrigo Vázquez Cerón Mtro. Uriel Victoria Martínez","55-53189000 Ext. 2233 y 2277"]
[{"$f":"COUNTIF($E$1:E296,'Proyectos vigentes'!$C$4)","v":29},295,1578,"UAM","Electrónica","Elaboración de fichas técnicas con propiedades acústicas y fisicoquímicas de materiales naturales y sintéticos","Dra. Sandra Loera Serna                           Dr. Ernesto Rodrigo Vázquez Cerón Mtro. Uriel Victoria Martínez","55-53189000 Ext. 2233 y 2277"]
[{"$f":"COUNTIF($E$1:E297,'Proyectos vigentes'!$C$4)","v":29},296,1578,"UAM","Física ","Elaboración de fichas técnicas con propiedades acústicas y fisicoquímicas de materiales naturales y sintéticos","Dra. Sandra Loera Serna                           Dr. Ernesto Rodrigo Vázquez Cerón Mtro. Uriel Victoria Martínez","55-53189000 Ext. 2233 y 2277"]
[{"$f":"COUNTIF($E$1:E298,'Proyectos vigentes'!$C$4)","v":29},297,1578,"UAM","Química","Elaboración de fichas técnicas con propiedades acústicas y fisicoquímicas de materiales naturales y sintéticos","Dra. Sandra Loera Serna                           Dr. Ernesto Rodrigo Vázquez Cerón Mtro. Uriel Victoria Martínez","55-53189000 Ext. 2233 y 2277"]
[{"$f":"COUNTIF($E$1:E299,'Proyectos vigentes'!$C$4)","v":29},298,1579,"UAM","Ambiental","Apoyo al Departamento de Energía","M. en IQ. Carlos Rogelio Tapia Medina","55-5318-9047  ext. 101"]
[{"$f":"COUNTIF($E$1:E300,'Proyectos vigentes'!$C$4)","v":29},299,1579,"UAM","Computación","Apoyo al Departamento de Energía","M. en IQ. Carlos Rogelio Tapia Medina","55-5318-9047  ext. 101"]
[{"$f":"COUNTIF($E$1:E301,'Proyectos vigentes'!$C$4)","v":29},300,1579,"UAM","Eléctrica","Apoyo al Departamento de Energía","M. en IQ. Carlos Rogelio Tapia Medina","55-5318-9047  ext. 101"]
[{"$f":"COUNTIF($E$1:E302,'Proyectos vigentes'!$C$4)","v":29},301,1579,"UAM","Electrónica","Apoyo al Departamento de Energía","M. en IQ. Carlos Rogelio Tapia Medina","55-5318-9047  ext. 101"]
[{"$f":"COUNTIF($E$1:E303,'Proyectos vigentes'!$C$4)","v":29},302,1579,"UAM","Industrial","Apoyo al Departamento de Energía","M. en IQ. Carlos Rogelio Tapia Medina","55-5318-9047  ext. 101"]
[{"$f":"COUNTIF($E$1:E304,'Proyectos vigentes'!$C$4)","v":30},303,1579,"UAM","Mecánica","Apoyo al Departamento de Energía","M. en IQ. Carlos Rogelio Tapia Medina","55-5318-9047  ext. 101"]
[{"$f":"COUNTIF($E$1:E305,'Proyectos vigentes'!$C$4)","v":30},304,1579,"UAM","Química","Apoyo al Departamento de Energía","M. en IQ. Carlos Rogelio Tapia Medina","55-5318-9047  ext. 101"]
[{"$f":"COUNTIF($E$1:E306,'Proyectos vigentes'!$C$4)","v":30},305,1580,"UAM","Computación","Desarrollo y mantenimiento de los Laboratorios de Cómputo y de Hidroneumática y del brazo cartesiano","M. en C. Gerardo Aragón González                                        M. en C. Alejandro León Galicia.","55-5318-9056"]
[{"$f":"COUNTIF($E$1:E307,'Proyectos vigentes'!$C$4)","v":30},306,1580,"UAM","Eléctrica","Desarrollo y mantenimiento de los Laboratorios de Cómputo y de Hidroneumática y del brazo cartesiano","M. en C. Gerardo Aragón González                                        M. en C. Alejandro León Galicia.","55-5318-9056"]
[{"$f":"COUNTIF($E$1:E308,'Proyectos vigentes'!$C$4)","v":30},307,1580,"UAM","Electrónica","Desarrollo y mantenimiento de los Laboratorios de Cómputo y de Hidroneumática y del brazo cartesiano","M. en C. Gerardo Aragón González                                        M. en C. Alejandro León Galicia.","55-5318-9056"]
[{"$f":"COUNTIF($E$1:E309,'Proyectos vigentes'!$C$4)","v":30},308,1580,"UAM","Física ","Desarrollo y mantenimiento de los Laboratorios de Cómputo y de Hidroneumática y del brazo cartesiano","M. en C. Gerardo Aragón González                                        M. en C. Alejandro León Galicia.","55-5318-9056"]
[{"$f":"COUNTIF($E$1:E310,'Proyectos vigentes'!$C$4)","v":31},309,1580,"UAM","Mecánica","Desarrollo y mantenimiento de los Laboratorios de Cómputo y de Hidroneumática y del brazo cartesiano","M. en C. Gerardo Aragón González                                        M. en C. Alejandro León Galicia.","55-5318-9056"]
[{"$f":"COUNTIF($E$1:E311,'Proyectos vigentes'!$C$4)","v":31},310,1580,"UAM","Química","Desarrollo y mantenimiento de los Laboratorios de Cómputo y de Hidroneumática y del brazo cartesiano","M. en C. Gerardo Aragón González                                        M. en C. Alejandro León Galicia.","55-5318-9056"]
[{"$f":"COUNTIF($E$1:E312,'Proyectos vigentes'!$C$4)","v":31},311,1581,"UAM","Ambiental","Reciclaje químico o degradación química de materiales de desecho que contienen sustancias orgánicas","Dr. Cirilo García Martínez","55-5318-2352"]
[{"$f":"COUNTIF($E$1:E313,'Proyectos vigentes'!$C$4)","v":31},312,1581,"UAM","Química","Reciclaje químico o degradación química de materiales de desecho que contienen sustancias orgánicas","Dr. Cirilo García Martínez","55-5318-2352"]
[{"$f":"COUNTIF($E$1:E314,'Proyectos vigentes'!$C$4)","v":31},313,1586,"UAM","Ambiental","Compuestos con actividad biológica e inhibidores de corrosión","Dr. Guillermo Enrique Negrón Silva,                  Dra. Alma Sánchez Eleuterio,                   Dra. Elsie Ramírez Domínguez","55-5318-9000 ext. 9593"]
[{"$f":"COUNTIF($E$1:E315,'Proyectos vigentes'!$C$4)","v":31},314,1586,"UAM","Química","Compuestos con actividad biológica e inhibidores de corrosión","Dr. Guillermo Enrique Negrón Silva,                  Dra. Alma Sánchez Eleuterio,                   Dra. Elsie Ramírez Domínguez","55-5318-9000 ext. 9593"]
[{"$f":"COUNTIF($E$1:E316,'Proyectos vigentes'!$C$4)","v":31},315,1590,"UAM","Civil","Manual de prácticas de Laboratorio de Concreto","M. en I. Oscar Isidro Monter Espinosa","555318 9089"]
[{"$f":"COUNTIF($E$1:E317,'Proyectos vigentes'!$C$4)","v":31},316,1591,"UAM","Computación","Construcción de Infraestructura Experimental en Óptica y Optoelectrónica","Dra. Grethell Georgina Pérez Sánchez, Dr. Armando Gómez Vieyra","55-5318-9000"]
[{"$f":"COUNTIF($E$1:E318,'Proyectos vigentes'!$C$4)","v":31},317,1591,"UAM","Electrónica","Construcción de Infraestructura Experimental en Óptica y Optoelectrónica","Dra. Grethell Georgina Pérez Sánchez, Dr. Armando Gómez Vieyra","55-5318-9000"]
[{"$f":"COUNTIF($E$1:E319,'Proyectos vigentes'!$C$4)","v":31},318,1591,"UAM","Física ","Construcción de Infraestructura Experimental en Óptica y Optoelectrónica","Dra. Grethell Georgina Pérez Sánchez, Dr. Armando Gómez Vieyra","55-5318-9000"]
[{"$f":"COUNTIF($E$1:E320,'Proyectos vigentes'!$C$4)","v":32},319,1591,"UAM","Mecánica","Construcción de Infraestructura Experimental en Óptica y Optoelectrónica","Dra. Grethell Georgina Pérez Sánchez, Dr. Armando Gómez Vieyra","55-5318-9000"]
[{"$f":"COUNTIF($E$1:E321,'Proyectos vigentes'!$C$4)","v":32},320,1591,"UAM","Química","Construcción de Infraestructura Experimental en Óptica y Optoelectrónica","Dra. Grethell Georgina Pérez Sánchez, Dr. Armando Gómez Vieyra","55-5318-9000"]
[{"$f":"COUNTIF($E$1:E322,'Proyectos vigentes'!$C$4)","v":32},321,1594,"UAM","Ambiental","Estudio de la dinámica no lineal. Aplicaciones experimentales, analíticas y numéricas","Fís. Luisa Gabriela del Valle Díaz Muñoz, Dra. María Guadalupe Hernández Morales, Dr. Inti Pineda Calderón, Ing. Fís. Damián Muciño Cruz, M. en C. José Luis Jiménez Ramírez, M. en C. René Molnar de la Parra. Dr. Alberto Rubio Ponce","55-5318-9000 ext. 9018"]
[{"$f":"COUNTIF($E$1:E323,'Proyectos vigentes'!$C$4)","v":32},322,1594,"UAM","Civil","Estudio de la dinámica no lineal. Aplicaciones experimentales, analíticas y numéricas","Fís. Luisa Gabriela del Valle Díaz Muñoz, Dra. María Guadalupe Hernández Morales, Dr. Inti Pineda Calderón, Ing. Fís. Damián Muciño Cruz, M. en C. José Luis Jiménez Ramírez, M. en C. René Molnar de la Parra. Dr. Alberto Rubio Ponce","55-5318-9000 ext. 9018"]
[{"$f":"COUNTIF($E$1:E324,'Proyectos vigentes'!$C$4)","v":32},323,1594,"UAM","Computación","Estudio de la dinámica no lineal. Aplicaciones experimentales, analíticas y numéricas","Fís. Luisa Gabriela del Valle Díaz Muñoz, Dra. María Guadalupe Hernández Morales, Dr. Inti Pineda Calderón, Ing. Fís. Damián Muciño Cruz, M. en C. José Luis Jiménez Ramírez, M. en C. René Molnar de la Parra. Dr. Alberto Rubio Ponce","55-5318-9000 ext. 9018"]
[{"$f":"COUNTIF($E$1:E325,'Proyectos vigentes'!$C$4)","v":32},324,1594,"UAM","Electrónica","Estudio de la dinámica no lineal. Aplicaciones experimentales, analíticas y numéricas","Fís. Luisa Gabriela del Valle Díaz Muñoz, Dra. María Guadalupe Hernández Morales, Dr. Inti Pineda Calderón, Ing. Fís. Damián Muciño Cruz, M. en C. José Luis Jiménez Ramírez, M. en C. René Molnar de la Parra. Dr. Alberto Rubio Ponce","55-5318-9000 ext. 9018"]
[{"$f":"COUNTIF($E$1:E326,'Proyectos vigentes'!$C$4)","v":32},325,1594,"UAM","Eléctrica","Estudio de la dinámica no lineal. Aplicaciones experimentales, analíticas y numéricas","Fís. Luisa Gabriela del Valle Díaz Muñoz, Dra. María Guadalupe Hernández Morales, Dr. Inti Pineda Calderón, Ing. Fís. Damián Muciño Cruz, M. en C. José Luis Jiménez Ramírez, M. en C. René Molnar de la Parra. Dr. Alberto Rubio Ponce","55-5318-9000 ext. 9018"]
[{"$f":"COUNTIF($E$1:E327,'Proyectos vigentes'!$C$4)","v":32},326,1594,"UAM","Física ","Estudio de la dinámica no lineal. Aplicaciones experimentales, analíticas y numéricas","Fís. Luisa Gabriela del Valle Díaz Muñoz, Dra. María Guadalupe Hernández Morales, Dr. Inti Pineda Calderón, Ing. Fís. Damián Muciño Cruz, M. en C. José Luis Jiménez Ramírez, M. en C. René Molnar de la Parra. Dr. Alberto Rubio Ponce","55-5318-9000 ext. 9018"]
[{"$f":"COUNTIF($E$1:E328,'Proyectos vigentes'!$C$4)","v":32},327,1594,"UAM","Industrial","Estudio de la dinámica no lineal. Aplicaciones experimentales, analíticas y numéricas","Fís. Luisa Gabriela del Valle Díaz Muñoz, Dra. María Guadalupe Hernández Morales, Dr. Inti Pineda Calderón, Ing. Fís. Damián Muciño Cruz, M. en C. José Luis Jiménez Ramírez, M. en C. René Molnar de la Parra. Dr. Alberto Rubio Ponce","55-5318-9000 ext. 9018"]
[{"$f":"COUNTIF($E$1:E329,'Proyectos vigentes'!$C$4)","v":33},328,1594,"UAM","Mecánica","Estudio de la dinámica no lineal. Aplicaciones experimentales, analíticas y numéricas","Fís. Luisa Gabriela del Valle Díaz Muñoz, Dra. María Guadalupe Hernández Morales, Dr. Inti Pineda Calderón, Ing. Fís. Damián Muciño Cruz, M. en C. José Luis Jiménez Ramírez, M. en C. René Molnar de la Parra. Dr. Alberto Rubio Ponce","55-5318-9000 ext. 9018"]
[{"$f":"COUNTIF($E$1:E330,'Proyectos vigentes'!$C$4)","v":33},329,1594,"UAM","Metalúrgica","Estudio de la dinámica no lineal. Aplicaciones experimentales, analíticas y numéricas","Fís. Luisa Gabriela del Valle Díaz Muñoz, Dra. María Guadalupe Hernández Morales, Dr. Inti Pineda Calderón, Ing. Fís. Damián Muciño Cruz, M. en C. José Luis Jiménez Ramírez, M. en C. René Molnar de la Parra. Dr. Alberto Rubio Ponce","55-5318-9000 ext. 9018"]
[{"$f":"COUNTIF($E$1:E331,'Proyectos vigentes'!$C$4)","v":33},330,1594,"UAM","Química","Estudio de la dinámica no lineal. Aplicaciones experimentales, analíticas y numéricas","Fís. Luisa Gabriela del Valle Díaz Muñoz, Dra. María Guadalupe Hernández Morales, Dr. Inti Pineda Calderón, Ing. Fís. Damián Muciño Cruz, M. en C. José Luis Jiménez Ramírez, M. en C. René Molnar de la Parra. Dr. Alberto Rubio Ponce","55-5318-9000 ext. 9018"]
[{"$f":"COUNTIF($E$1:E332,'Proyectos vigentes'!$C$4)","v":33},331,1595,"UAM","Civil","Notas de Edificación","Dr. Víctor Jiménez Argüelles","55-5318-9000 ext. 9089"]
[{"$f":"COUNTIF($E$1:E333,'Proyectos vigentes'!$C$4)","v":33},332,1596,"UAM","Computación","Crear y dar mantenimiento a la página WEB para el Grupo de Investigación “Sistemas Mecánicos de Frontera”","M. en C. Gilberto Domingo Álvarez Miranda, Dr. Francisco Beltrán Carbajal, Ing. Romy Pérez Moreno, Dr. Zeferino Damián Noriega, Dr. Israel Barragán. Santiago y M. en C. Iván González Uribe.","55-5318-9000 ext. 9066, 9069"]
[{"$f":"COUNTIF($E$1:E334,'Proyectos vigentes'!$C$4)","v":33},333,1596,"UAM","Electrónica","Crear y dar mantenimiento a la página WEB para el Grupo de Investigación “Sistemas Mecánicos de Frontera”","M. en C. Gilberto Domingo Álvarez Miranda, Dr. Francisco Beltrán Carbajal, Ing. Romy Pérez Moreno, Dr. Zeferino Damián Noriega, Dr. Israel Barragán. Santiago y M. en C. Iván González Uribe.","55-5318-9000 ext. 9066, 9069"]
[{"$f":"COUNTIF($E$1:E335,'Proyectos vigentes'!$C$4)","v":34},334,1596,"UAM","Mecánica","Crear y dar mantenimiento a la página WEB para el Grupo de Investigación “Sistemas Mecánicos de Frontera”","M. en C. Gilberto Domingo Álvarez Miranda, Dr. Francisco Beltrán Carbajal, Ing. Romy Pérez Moreno, Dr. Zeferino Damián Noriega, Dr. Israel Barragán. Santiago y M. en C. Iván González Uribe.","55-5318-9000 ext. 9066, 9069"]
[{"$f":"COUNTIF($E$1:E336,'Proyectos vigentes'!$C$4)","v":34},335,1599,"UAM","Civil","Red sísmica de la Universidad Autónoma Metropolitana","Dr. Alonso Gómez Bernal","55 5318-9085"]
[{"$f":"COUNTIF($E$1:E337,'Proyectos vigentes'!$C$4)","v":34},336,1599,"UAM","Computación","Red sísmica de la Universidad Autónoma Metropolitana","Dr. Alonso Gómez Bernal","55 5318-9085"]
[{"$f":"COUNTIF($E$1:E338,'Proyectos vigentes'!$C$4)","v":35},337,1600,"UAM","Mecánica","Evaluación del efecto de una fisura en el comportamiento elástico de un rotor","Dr. Homero Jiménez Rabiela","55-5318-9069"]
[{"$f":"COUNTIF($E$1:E339,'Proyectos vigentes'!$C$4)","v":35},338,1601,"UAM","Computación","Atención en el Centro de Información de Ingeniería en Computación","M. en C. Josué Figueroa González","55-5318-9350, 55-5318-9532 ext. 138"]
[{"$f":"COUNTIF($E$1:E340,'Proyectos vigentes'!$C$4)","v":35},339,1602,"UAM","Electrónica","Caracterización de las propiedades mecánicas de las aleaciones ferrosas y no ferrosas en condición de colada y tratadas térmicamente","Dr. Miguel Angel Suárez Rosales","55- 5318-9000"]
[{"$f":"COUNTIF($E$1:E341,'Proyectos vigentes'!$C$4)","v":35},340,1602,"UAM","Física ","Caracterización de las propiedades mecánicas de las aleaciones ferrosas y no ferrosas en condición de colada y tratadas térmicamente","Dr. Miguel Angel Suárez Rosales","55- 5318-9000"]
[{"$f":"COUNTIF($E$1:E342,'Proyectos vigentes'!$C$4)","v":36},341,1602,"UAM","Mecánica","Caracterización de las propiedades mecánicas de las aleaciones ferrosas y no ferrosas en condición de colada y tratadas térmicamente","Dr. Miguel Angel Suárez Rosales","55- 5318-9000"]
[{"$f":"COUNTIF($E$1:E343,'Proyectos vigentes'!$C$4)","v":36},342,1602,"UAM","Metalúrgica","Caracterización de las propiedades mecánicas de las aleaciones ferrosas y no ferrosas en condición de colada y tratadas térmicamente","Dr. Miguel Angel Suárez Rosales","55- 5318-9000"]
[{"$f":"COUNTIF($E$1:E344,'Proyectos vigentes'!$C$4)","v":36},343,1603,"UAM","Ambiental"," Determinación de coliformes en agua residual doméstica sintética","Dra. María Teresa Castañeda Briones, Dra. Marisol Espinoza Castañeda                   Dr. Rojacques Mompremier","55-5318-9000 ext. 2345"]
[{"$f":"COUNTIF($E$1:E345,'Proyectos vigentes'!$C$4)","v":36},344,1603,"UAM","Civil"," Determinación de coliformes en agua residual doméstica sintética","Dra. María Teresa Castañeda Briones, Dra. Marisol Espinoza Castañeda                   Dr. Rojacques Mompremier","55-5318-9000 ext. 2345"]
[{"$f":"COUNTIF($E$1:E346,'Proyectos vigentes'!$C$4)","v":36},345,1604,"UAM","Química","Deposición electroquímica de metales en un reactor filtro prensa tipo electrocell","Dra. Rosa María Luna Sánchez","55- 5318-9000, ext. 2173"]
[{"$f":"COUNTIF($E$1:E347,'Proyectos vigentes'!$C$4)","v":36},346,1606,"UAM","Eléctrica","Materiales polifuncionales en forma de películas, nanopartículas y monolitos cerámicos","Mtro. Roberto Tito Hernández López               Dr. Isaías Hernández Pérez","55-5318-9000 exts. 2135, 2117"]
[{"$f":"COUNTIF($E$1:E348,'Proyectos vigentes'!$C$4)","v":36},347,1606,"UAM","Electrónica","Materiales polifuncionales en forma de películas, nanopartículas y monolitos cerámicos","Mtro. Roberto Tito Hernández López               Dr. Isaías Hernández Pérez","55-5318-9000 exts. 2135, 2117"]
[{"$f":"COUNTIF($E$1:E349,'Proyectos vigentes'!$C$4)","v":36},348,1606,"UAM","Física ","Materiales polifuncionales en forma de películas, nanopartículas y monolitos cerámicos","Mtro. Roberto Tito Hernández López               Dr. Isaías Hernández Pérez","55-5318-9000 exts. 2135, 2117"]
[{"$f":"COUNTIF($E$1:E350,'Proyectos vigentes'!$C$4)","v":37},349,1606,"UAM","Mecánica","Materiales polifuncionales en forma de películas, nanopartículas y monolitos cerámicos","Mtro. Roberto Tito Hernández López               Dr. Isaías Hernández Pérez","55-5318-9000 exts. 2135, 2117"]
[{"$f":"COUNTIF($E$1:E351,'Proyectos vigentes'!$C$4)","v":37},350,1606,"UAM","Metalúrgica","Materiales polifuncionales en forma de películas, nanopartículas y monolitos cerámicos","Mtro. Roberto Tito Hernández López               Dr. Isaías Hernández Pérez","55-5318-9000 exts. 2135, 2117"]
[{"$f":"COUNTIF($E$1:E352,'Proyectos vigentes'!$C$4)","v":37},351,1606,"UAM","Química","Materiales polifuncionales en forma de películas, nanopartículas y monolitos cerámicos","Mtro. Roberto Tito Hernández López               Dr. Isaías Hernández Pérez","55-5318-9000 exts. 2135, 2117"]
[{"$f":"COUNTIF($E$1:E353,'Proyectos vigentes'!$C$4)","v":37},352,1608,"UAM","Computación","Elaboración de material didáctico para los cursos de matemáticas de la UAM.","Dr. Alejandro Aguilar Zavoznik, Dra. Nahid Yelene Javier Nol, Mtra. María Soledad Arriaga","55-5318-9011, 55-5804-4654"]
[{"$f":"COUNTIF($E$1:E354,'Proyectos vigentes'!$C$4)","v":37},353,1609,"UAM","Computación","Aplicaciones de Software para el Posgrado en Diseño y Visualización de la Información. ","Dra. María Lizbeth Gallardo López","55-5318-9532"]
[{"$f":"COUNTIF($E$1:E355,'Proyectos vigentes'!$C$4)","v":37},354,1610,"UAM","Química","Sistema binario aplicado al aprendizaje de la tabla periódica de los elementos químicos. ","M. en C. Margarita Chávez Martínez, M. en C. María de la Luz Soto Téllez, M. en C. Leonardo Hernández Martínez.","55-5318-9043"]
[{"$f":"COUNTIF($E$1:E356,'Proyectos vigentes'!$C$4)","v":37},355,1614,"UAM","Química","Estudio de materiales catalíticos tipo zeolitas, MOF, SBA-15 y MCM-41, para su uso en procesos químicos que contribuyan a preservar el medio ambiente.","Dra. Julia Aguilar Pliego                                        Dra. Lidia López Pérez                                 Dr. Luis Enrique Noreña Franco","55-5318-9570"]
[{"$f":"COUNTIF($E$1:E357,'Proyectos vigentes'!$C$4)","v":37},356,1615,"UAM","Computación","Construcción mecánica de un dispositivo para manufactura aditiva con filamento plástico como material para la fabricación de piezas tridimensionales.","M. en I. Pedro García Segura               Dr. Adrián Gustavo Bravo Acosta","55-5318-9072,       55-5318-9066"]
[{"$f":"COUNTIF($E$1:E358,'Proyectos vigentes'!$C$4)","v":37},357,1615,"UAM","Electrónica","Construcción mecánica de un dispositivo para manufactura aditiva con filamento plástico como material para la fabricación de piezas tridimensionales.","M. en I. Pedro García Segura               Dr. Adrián Gustavo Bravo Acosta","55-5318-9072,       55-5318-9066"]
[{"$f":"COUNTIF($E$1:E359,'Proyectos vigentes'!$C$4)","v":37},358,1615,"UAM","Industrial","Construcción mecánica de un dispositivo para manufactura aditiva con filamento plástico como material para la fabricación de piezas tridimensionales.","M. en I. Pedro García Segura               Dr. Adrián Gustavo Bravo Acosta","55-5318-9072,       55-5318-9066"]
[{"$f":"COUNTIF($E$1:E360,'Proyectos vigentes'!$C$4)","v":38},359,1615,"UAM","Mecánica","Construcción mecánica de un dispositivo para manufactura aditiva con filamento plástico como material para la fabricación de piezas tridimensionales.","M. en I. Pedro García Segura               Dr. Adrián Gustavo Bravo Acosta","55-5318-9072,       55-5318-9066"]
[{"$f":"COUNTIF($E$1:E361,'Proyectos vigentes'!$C$4)","v":39},360,1616,"UAM","Mecánica","Estudio experimental de resistencia en ejes mecánicos de acero.","Dr. José Luis Ramírez Cruz","55-53189068"]
[{"$f":"COUNTIF($E$1:E362,'Proyectos vigentes'!$C$4)","v":39},361,1617,"UAM","Computación","Apoyo en el Laboratorio de Procesamiento de Lenguaje Natural e Internet de las cosas.","Dr. Leonardo Daniel Sánchez Martínez","55-5318 9099, ext 151"]
[{"$f":"COUNTIF($E$1:E363,'Proyectos vigentes'!$C$4)","v":39},362,1618,"UAM","Computación","Desarrollo de cursos y actividades para la difusión de temas relacionados con Ingeniería en Computación.","M. en C. Josué Figueroa González,    Dra. Silvia Beatriz González Brambila,       Dr. Jesús Isidro González Trejo,                 Dr. Marco Antonio Gutiérrez Villegas,                    M. en C. Irma Fernanda Ardón Pulido,         M. en C. Margarita María de Lourdes Sánchez Guerrero,                                       M. en C. Gabriela Alejandra García Robledo,                                             M. en C. Josué Padilla Cuevas,            Dr. Esiquio Martín Gutiérrez Armenta, Dra. Angeles Belém Priego Sánchez, Dra. Beatriz Adriana González Beltrán, Dr. César Augusto Real Ramírez        Dra. Alicia Cid Reborido                                            Dr. Russian Gabbasov","55-5318-9532 ext. 138, 55-5318-9000 ext. 2340, 55-5318-9000 ext. 2391, 55-5318-9532 ext. 141, 55-5318-9532 ext. 118, 55-5318-9532 ext.122, 55-5318-9532 ext. 149, 55-5318-9532,  ext.141, 55-5318-9000 ext. 2403, 55-5318-9000 ext. 2390, 55-5318-9000 ext.9008"]
[{"$f":"COUNTIF($E$1:E364,'Proyectos vigentes'!$C$4)","v":39},363,1619,"UAM","Todas las carreras CBI","Apoyo a la Comisión Dictaminadora Divisional de CBI.","M. en C. Mario Reyes Ayala.","55-5318-9550 ext. 2308"]
[{"$f":"COUNTIF($E$1:E365,'Proyectos vigentes'!$C$4)","v":39},364,1620,"UAM","Ambiental","Estudio de procesos fisicoquímicos en materiales por medio del análisis de la estructura electrónica.","Dr. Víctor Daniel Domínguez Soria,      Dr. Óscar Olvera Neria                           Dr. Julio César González Torres","55-5318-9570, 55-5318-9505"]
[{"$f":"COUNTIF($E$1:E366,'Proyectos vigentes'!$C$4)","v":39},365,1620,"UAM","Computación","Estudio de procesos fisicoquímicos en materiales por medio del análisis de la estructura electrónica.","Dr. Víctor Daniel Domínguez Soria,      Dr. Óscar Olvera Neria                           Dr. Julio César González Torres","55-5318-9570, 55-5318-9505"]
[{"$f":"COUNTIF($E$1:E367,'Proyectos vigentes'!$C$4)","v":39},366,1620,"UAM","Física ","Estudio de procesos fisicoquímicos en materiales por medio del análisis de la estructura electrónica.","Dr. Víctor Daniel Domínguez Soria,      Dr. Óscar Olvera Neria                           Dr. Julio César González Torres","55-5318-9570, 55-5318-9505"]
[{"$f":"COUNTIF($E$1:E368,'Proyectos vigentes'!$C$4)","v":39},367,1620,"UAM","Metalúrgica","Estudio de procesos fisicoquímicos en materiales por medio del análisis de la estructura electrónica.","Dr. Víctor Daniel Domínguez Soria,      Dr. Óscar Olvera Neria                           Dr. Julio César González Torres","55-5318-9570, 55-5318-9505"]
[{"$f":"COUNTIF($E$1:E369,'Proyectos vigentes'!$C$4)","v":39},368,1620,"UAM","Química","Estudio de procesos fisicoquímicos en materiales por medio del análisis de la estructura electrónica.","Dr. Víctor Daniel Domínguez Soria,      Dr. Óscar Olvera Neria                           Dr. Julio César González Torres","55-5318-9570, 55-5318-9505"]
[{"$f":"COUNTIF($E$1:E370,'Proyectos vigentes'!$C$4)","v":40},369,1621,"UAM","Mecánica","Fortalecimiento de los circuitos justos de producción-consumo de los productos de la colmena de las abejas nativas.","Dr. Jesús Manuel Ramos García,              Dr. Leonel Flores Vega","55-5318-9191, ext. 168"]
[{"$f":"COUNTIF($E$1:E371,'Proyectos vigentes'!$C$4)","v":40},370,1623,"UAM","Ambiental","Evaluación del efecto del régimen de flujo mediante el desarrollo bacteriano.","Dra. Marisol Espinoza Castañeda        Dr. Rojacques Mompremier                 Dra. María Teresa Castañeda Briones","55-5318-9000 ext. 2345"]
[{"$f":"COUNTIF($E$1:E372,'Proyectos vigentes'!$C$4)","v":40},371,1623,"UAM","Civil","Evaluación del efecto del régimen de flujo mediante el desarrollo bacteriano.","Dra. Marisol Espinoza Castañeda        Dr. Rojacques Mompremier                 Dra. María Teresa Castañeda Briones","55-5318-9000 ext. 2345"]
[{"$f":"COUNTIF($E$1:E373,'Proyectos vigentes'!$C$4)","v":40},372,1624,"UAM","Ambiental","Sondas Químicas","Dra. Sandra Loera Serna                                Mtro. Uriel Victoria Martínez                Dr. Ernesto Rodrigo Vázquez Cerón","55-  53189000 Ext. 2277 y 2233"]
[{"$f":"COUNTIF($E$1:E374,'Proyectos vigentes'!$C$4)","v":40},373,1624,"UAM","Química","Sondas Químicas","Dra. Sandra Loera Serna                                Mtro. Uriel Victoria Martínez                Dr. Ernesto Rodrigo Vázquez Cerón","55-  53189000 Ext. 2277 y 2233"]
[{"$f":"COUNTIF($E$1:E375,'Proyectos vigentes'!$C$4)","v":40},374,1624,"UAM","Física ","Sondas Químicas","Dra. Sandra Loera Serna                                Mtro. Uriel Victoria Martínez                Dr. Ernesto Rodrigo Vázquez Cerón","55-  53189000 Ext. 2277 y 2233"]
[{"$f":"COUNTIF($E$1:E376,'Proyectos vigentes'!$C$4)","v":40},375,1624,"UAM","Electrónica","Sondas Químicas","Dra. Sandra Loera Serna                                Mtro. Uriel Victoria Martínez                Dr. Ernesto Rodrigo Vázquez Cerón","55-  53189000 Ext. 2277 y 2233"]
[{"$f":"COUNTIF($E$1:E377,'Proyectos vigentes'!$C$4)","v":40},376,1625,"UAM","Ambiental","Tratamiento y recuperación de residuos de los Laboratorios de Docencia en Química del Departamento de Ciencias Básicas","Dra. Alejandra Montserrat Navarrete López\nDra. Yara Ramírez Quirós                                                  Dra. Mónica Liliana Salazar Peláez                                   Dra. Georgina Guzmán Rangel                          Dr. Ulises Rojas Zamora","55-5318-9000 ext. 9437, 2341"]
[{"$f":"COUNTIF($E$1:E378,'Proyectos vigentes'!$C$4)","v":40},377,1625,"UAM","Química","Tratamiento y recuperación de residuos de los Laboratorios de Docencia en Química del Departamento de Ciencias Básicas","Dra. Alejandra Montserrat Navarrete López\nDra. Yara Ramírez Quirós                                                  Dra. Mónica Liliana Salazar Peláez                                   Dra. Georgina Guzmán Rangel                          Dr. Ulises Rojas Zamora","55-5318-9000 ext. 9437, 2341"]
[{"$f":"COUNTIF($E$1:E379,'Proyectos vigentes'!$C$4)","v":40},378,1626,"UAM","Industrial","Desarrollo de una Ortesis con Sistema de sujeción ajustable para fracturas de antebrazo","Dra. Lisaura Walkiria Rodríguez Alvarado                                               Dr. Usiel Sandino Silva Rivera                                Ing. Jesús Loyo Quijada","55-5318-9000 ext. 2422, 2423"]
[{"$f":"COUNTIF($E$1:E380,'Proyectos vigentes'!$C$4)","v":41},379,1626,"UAM","Mecánica","Desarrollo de una Ortesis con Sistema de sujeción ajustable para fracturas de antebrazo","Dra. Lisaura Walkiria Rodríguez Alvarado                                               Dr. Usiel Sandino Silva Rivera                                Ing. Jesús Loyo Quijada","55-5318-9000 ext. 2422, 2423"]
[{"$f":"COUNTIF($E$1:E381,'Proyectos vigentes'!$C$4)","v":41},380,1627,"UAM","Todas las carreras CBI","La UAM Va por la Sustentabilidad","Dra. María Beatriz García Castro","55-5318 9000 ext. 9191"]
[{"$f":"COUNTIF($E$1:E382,'Proyectos vigentes'!$C$4)","v":41},381,1628,"UAM","Computación","Desarrollo de material didáctico para la UEA de Ecuaciones Diferenciales Ordinarias y recursos computacionales en sistemas modelados por esas ecuaciones","Dr. Cutberto Salvador Romero Meléndez","55-5318-9000"]
[{"$f":"COUNTIF($E$1:E383,'Proyectos vigentes'!$C$4)","v":41},382,1628,"UAM","Electrónica","Desarrollo de material didáctico para la UEA de Ecuaciones Diferenciales Ordinarias y recursos computacionales en sistemas modelados por esas ecuaciones","Dr. Cutberto Salvador Romero Meléndez","55-5318-9000"]
[{"$f":"COUNTIF($E$1:E384,'Proyectos vigentes'!$C$4)","v":41},383,1628,"UAM","Física ","Desarrollo de material didáctico para la UEA de Ecuaciones Diferenciales Ordinarias y recursos computacionales en sistemas modelados por esas ecuaciones","Dr. Cutberto Salvador Romero Meléndez","55-5318-9000"]
[{"$f":"COUNTIF($E$1:E385,'Proyectos vigentes'!$C$4)","v":41},384,1629,"UAM","Eléctrica","Rehabilitación y operación del Laboratorio de Sistemas Fotovoltaicos de la UAM-A."," Dr. Eusebio Guzmán Serrano","55- 5318-9000 ext. 9054"]
[{"$f":"COUNTIF($E$1:E386,'Proyectos vigentes'!$C$4)","v":41},385,1629,"UAM","Electrónica","Rehabilitación y operación del Laboratorio de Sistemas Fotovoltaicos de la UMA-A."," Dr. Eusebio Guzmán Serrano","55- 5318-9000 ext. 9054"]
[{"$f":"COUNTIF($E$1:E387,'Proyectos vigentes'!$C$4)","v":41},386,1629,"UAM","Física ","Rehabilitación y operación del Laboratorio de Sistemas Fotovoltaicos de la UAM-A."," Dr. Eusebio Guzmán Serrano","55- 5318-9000 ext. 9054"]
[{"$f":"COUNTIF($E$1:E388,'Proyectos vigentes'!$C$4)","v":41},387,1631,"UAM","Ambiental","Tratamientos fúngicos para la remoción de agentes tóxicos","Dr. Héctor Hugo León Santiesteban,               Dra. Margarita Mercedes González Brambila,                                             Dra. Araceli Tomasini Campocosio","55- 5318-9000 "]
[{"$f":"COUNTIF($E$1:E389,'Proyectos vigentes'!$C$4)","v":41},388,1631,"UAM","Química","Tratamientos fúngicos para la remoción de agentes tóxicos","Dr. Héctor Hugo León Santiesteban,               Dra. Margarita Mercedes González Brambila,                                             Dra. Araceli Tomasini Campocosio","55- 5318-9000 "]
[{"$f":"COUNTIF($E$1:E390,'Proyectos vigentes'!$C$4)","v":41},389,1632,"UAM","Ambiental","Apoyo en el desarrollo de campañas de concientización ante la Emergencia Climática","Dra. Sylvie Jeanne Turpin Marion,                    M. en C. Griselda González Cardoso.","55-5318 9065 ext 111                            55 5318 9075                       "]
[{"$f":"COUNTIF($E$1:E391,'Proyectos vigentes'!$C$4)","v":41},390,1632,"UAM","Química","Apoyo en el desarrollo de campañas de concientización ante la Emergencia Climática","Dra. Sylvie Jeanne Turpin Marion,                    M. en C. Griselda González Cardoso.","55-5318 9065 ext 111                            55 5318 9075                       "]
[{"$f":"COUNTIF($E$1:E392,'Proyectos vigentes'!$C$4)","v":41},391,1633,"UAM","Computación","Desarrollo de materiales didácticos de apoyo en la docencia","Dr. Juan Jesús Ocampo Hidalgo                                                       Dr. Iván Vázquez Álvarez","55-5318-9000 ext. 9550            5553189550 ext 2323"]
[{"$f":"COUNTIF($E$1:E393,'Proyectos vigentes'!$C$4)","v":41},392,1633,"UAM","Eléctrica","Desarrollo de materiales didácticos de apoyo en la docencia","Dr. Juan Jesús Ocampo Hidalgo                                                       Dr. Iván Vázquez Álvarez","55-5318-9000 ext. 9550            5553189550 ext 2323"]
[{"$f":"COUNTIF($E$1:E394,'Proyectos vigentes'!$C$4)","v":41},393,1633,"UAM","Electrónica","Desarrollo de materiales didácticos de apoyo en la docencia","Dr. Juan Jesús Ocampo Hidalgo                                                       Dr. Iván Vázquez Álvarez","55-5318-9000 ext. 9550            5553189550 ext 2323"]
[{"$f":"COUNTIF($E$1:E395,'Proyectos vigentes'!$C$4)","v":41},394,1633,"UAM","Física ","Desarrollo de materiales didácticos de apoyo en la docencia","Dr. Juan Jesús Ocampo Hidalgo                                                       Dr. Iván Vázquez Álvarez","55-5318-9000 ext. 9550            5553189550 ext 2323"]
[{"$f":"COUNTIF($E$1:E396,'Proyectos vigentes'!$C$4)","v":41},395,1633,"UAM","Industrial","Desarrollo de materiales didácticos de apoyo en la docencia","Dr. Juan Jesús Ocampo Hidalgo                                                       Dr. Iván Vázquez Álvarez","55-5318-9000 ext. 9550            5553189550 ext 2323"]
[{"$f":"COUNTIF($E$1:E397,'Proyectos vigentes'!$C$4)","v":41},396,1634,"UAM","Computación","Centro de escritura en la UAM-A: un apoyo a los alumnos de la División de Ciencias Sociales y Humanidades","Dr. Alejandro Caamaño Tomás                          Dra. Margarita Alegría de la Colina                                          Mtra. Gloria María Antonia Cervantes y Sánchez","55-5318-9000 ext. 9125      55-5318-9000 ext. 9441"]
[{"$f":"COUNTIF($E$1:E398,'Proyectos vigentes'!$C$4)","v":41},397,1635,"UAM","Ambiental","Síntesis química de micro y/o nanomateriales metálicos así como de óxidos metálicos y su estudio de actividad antimicrobiana","Dra. María Teresa Castañeda Briones Dra. Marisol Espinoza Castañeda.           Mtra. María del Rocío Cruz Colín","55-5318-9000 ext. 2345, 2345"]
[{"$f":"COUNTIF($E$1:E399,'Proyectos vigentes'!$C$4)","v":41},398,1635,"UAM","Química","Síntesis química de micro y/o nanomateriales metálicos así como de óxidos metálicos y su estudio de actividad antimicrobiana","Dra. María Teresa Castañeda Briones Dra. Marisol Espinoza Castañeda.           Mtra. María del Rocío Cruz Colín","55-5318-9000 ext. 2345, 2345"]
[{"$f":"COUNTIF($E$1:E400,'Proyectos vigentes'!$C$4)","v":41},399,1636,"UAM","Física ","Desarrollo de sensores electroquímicos para la determinación de moléculas biológicas en medios acuosos y no acuosos","Dra. Silvia Corona Avendaño                                   Dr. Manuel Eduardo Palomar Pardavé","55-5318-9000 ext. 9474,9472"]
[{"$f":"COUNTIF($E$1:E401,'Proyectos vigentes'!$C$4)","v":41},400,1636,"UAM","Metalúrgica","Desarrollo de sensores electroquímicos para la determinación de moléculas biológicas en medios acuosos y no acuosos","Dra. Silvia Corona Avendaño                                   Dr. Manuel Eduardo Palomar Pardavé","55-5318-9000 ext. 9474,9472"]
[{"$f":"COUNTIF($E$1:E402,'Proyectos vigentes'!$C$4)","v":41},401,1636,"UAM","Química","Desarrollo de sensores electroquímicos para la determinación de moléculas biológicas en medios acuosos y no acuosos","Dra. Silvia Corona Avendaño                                   Dr. Manuel Eduardo Palomar Pardavé","55-5318-9000 ext. 9474,9472"]
[{"$f":"COUNTIF($E$1:E403,'Proyectos vigentes'!$C$4)","v":41},402,1637,"UAM","Física ","Revisión del equipo de protección de sala 4 del laboratorio de eléctrica (Mini Red y Módulos Experimentales)","Dr. Ahmed Zekkour Zekkour                      Dr. Carlos Alberto Rivera Salamanca                                    Dr. David Antonio Aragón Verduzco","55-5318-9000 ext. 9049"]
[{"$f":"COUNTIF($E$1:E404,'Proyectos vigentes'!$C$4)","v":41},403,1637,"UAM","Eléctrica","Revisión del equipo de protección de sala 4 del laboratorio de eléctrica (Mini Red y Módulos Experimentales)","Dr. Ahmed Zekkour Zekkour                      Dr. Carlos Alberto Rivera Salamanca                                    Dr. David Antonio Aragón Verduzco","55-5318-9000 ext. 9049"]
[{"$f":"COUNTIF($E$1:E405,'Proyectos vigentes'!$C$4)","v":41},404,1637,"UAM","Electrónica","Revisión del equipo de protección de sala 4 del laboratorio de eléctrica (Mini Red y Módulos Experimentales)","Dr. Ahmed Zekkour Zekkour                      Dr. Carlos Alberto Rivera Salamanca                                    Dr. David Antonio Aragón Verduzco","55-5318-9000 ext. 9049"]
[{"$f":"COUNTIF($E$1:E406,'Proyectos vigentes'!$C$4)","v":42},405,1637,"UAM","Mecánica","Revisión del equipo de protección de sala 4 del laboratorio de eléctrica (Mini Red y Módulos Experimentales)","Dr. Ahmed Zekkour Zekkour                      Dr. Carlos Alberto Rivera Salamanca                                    Dr. David Antonio Aragón Verduzco","55-5318-9000 ext. 9049"]
[{"$f":"COUNTIF($E$1:E407,'Proyectos vigentes'!$C$4)","v":42},406,1638,"UAM","Todas las carreras CBI","Fortalecimiento y apoyo a los proyectos de la Coordinación de Enlaces Estratégicos. "," Dr. Abelardo Mariña Flores","55 5318-9000 ext.9190"]
[{"$f":"COUNTIF($E$1:E408,'Proyectos vigentes'!$C$4)","v":42},407,1639,"UAM","Todas las carreras CBI","Educación integral para el alumnado de la UAM-A. ","Mtra. Merary Denny Puga García","55 5318-9000 ext.9314"]
[{"$f":"COUNTIF($E$1:E409,'Proyectos vigentes'!$C$4)","v":42},408,1640,"UAM","Todas las carreras CBI","Apoyo de estudiantes, egresadas y egresados de la División de Ciencias Básicas e Ingeniería a los proyectos de la División de Ciencias Sociales y Humanidades","Dr. Jesús Manuel Ramos García","55 5318-9000 ext.  9101"]
[{"$f":"COUNTIF($E$1:E410,'Proyectos vigentes'!$C$4)","v":42},409,1641,"UAM","Metalúrgica","Caracterización Microestructural y Mecánica de Aleaciones ferrosas bajo Diferentes Ciclos de Tratamiento Térmico","M. en C. e I. Alejandro Altamirano Torres         Dra. Yaret Gabriela Torres Hernández","55 5318-9000 ext.  2132"]
[{"$f":"COUNTIF($E$1:E411,'Proyectos vigentes'!$C$4)","v":42},410,1643,"UAM","Todas las carreras CBI","Apoyo en el proyecto híbrido de profesionalización y capacitación, UAMedia","Mtra. Merary Denny Puga García","55 5318-9000 ext.9314"]
[{"$f":"COUNTIF($E$1:E412,'Proyectos vigentes'!$C$4)","v":42},411,1644,"UAM","Metalúrgica","Comportamiento termo mecánico de materiales metálicos","Dr. Juan Daniel Muñoz Andrade","55 5318-9000 ext. 2138"]
[{"$f":"COUNTIF($E$1:E413,'Proyectos vigentes'!$C$4)","v":42},412,1645,"UAM","Todas las carreras CBI","La UAM conecta, enlaza y difunde","Dr. José Luis Hernández Ávila","55-5318-9191"]
[{"$f":"COUNTIF($E$1:E414,'Proyectos vigentes'!$C$4)","v":42},413,1646,"UAM","Todas las carreras CBI","Caracterización de residuos en la CDMX.","Dra. Alethia Vázquez Morillas            Dra. Perla Xochitl Sotelo Navarro          M. en C. Arely Areanely Cruz Salas","55-5318-9057, 55-5318-9000 ext. 2196"]
[{"$f":"COUNTIF($E$1:E415,'Proyectos vigentes'!$C$4)","v":42},414,1650,"UAM","Computación","Diseño, construcción y ensamble de circuitos analógicos o digitales","M. en C. Roberto Alfonso Alcántara Ramírez                                              M. en C. Jorge Miguel Jaimes Ponce","55-5318-9000 ext. 9030"]
[{"$f":"COUNTIF($E$1:E416,'Proyectos vigentes'!$C$4)","v":42},415,1650,"UAM","Eléctrica","Diseño, construcción y ensamble de circuitos analógicos o digitales","M. en C. Roberto Alfonso Alcántara Ramírez                                              M. en C. Jorge Miguel Jaimes Ponce","55-5318-9000 ext. 9030"]
[{"$f":"COUNTIF($E$1:E417,'Proyectos vigentes'!$C$4)","v":42},416,1650,"UAM","Electrónica","Diseño, construcción y ensamble de circuitos analógicos o digitales","M. en C. Roberto Alfonso Alcántara Ramírez                                              M. en C. Jorge Miguel Jaimes Ponce","55-5318-9000 ext. 9030"]
[{"$f":"COUNTIF($E$1:E418,'Proyectos vigentes'!$C$4)","v":42},417,1651,"UAM","computación","Diseño, construcción y ensamble de sistemas robóticos","M. en C. Roberto Alfonso Alcántara Ramírez                                              M. en C. Jorge Miguel Jaimes Ponce","55-5318-9000 ext. 9030"]
[{"$f":"COUNTIF($E$1:E419,'Proyectos vigentes'!$C$4)","v":42},418,1651,"UAM","Electrónica","Diseño, construcción y ensamble de sistemas robóticos","M. en C. Roberto Alfonso Alcántara Ramírez                                              M. en C. Jorge Miguel Jaimes Ponce","55-5318-9000 ext. 9030"]
[{"$f":"COUNTIF($E$1:E420,'Proyectos vigentes'!$C$4)","v":43},419,1651,"UAM","Mecánica","Diseño, construcción y ensamble de sistemas robóticos","M. en C. Roberto Alfonso Alcántara Ramírez                                              M. en C. Jorge Miguel Jaimes Ponce","55-5318-9000 ext. 9030"]
[{"$f":"COUNTIF($E$1:E421,'Proyectos vigentes'!$C$4)","v":43},420,1652,"UAM","Metalúrgica","Diseño, fabricación y caracterización de materiales metálicos de baja, media y alta entropía","Dr. Juan Daniel Muñoz Andrade","53189000 EXT. 2138"]
[{"$f":"COUNTIF($E$1:E422,'Proyectos vigentes'!$C$4)","v":43},421,1654,"UAM","Computación","Apoyo en el proceso de acompañamiento andragógico y gestión de calidad del Programa de Formación Docente de la Unidad","Mtra. Nahieli García González                          Dr. José Luis Hernández Ávila","55- 5318-9000 ext. 9191 "]
[{"$f":"COUNTIF($E$1:E423,'Proyectos vigentes'!$C$4)","v":43},422,1654,"UAM","Industrial","Apoyo en el proceso de acompañamiento andragógico y gestión de calidad del Programa de Formación Docente de la Unidad","Mtra. Nahieli García González                          Dr. José Luis Hernández Ávila","55- 5318-9000 ext. 9191 "]
[{"$f":"COUNTIF($E$1:E424,'Proyectos vigentes'!$C$4)","v":43},423,1655,"UAM","Computación","Aplicación de Probabilidad y Estadística"," Dr. José Antonio Climent Hernández","55- 5318-9000 ext. 9530 Conmutador 230"]
[{"$f":"COUNTIF($E$1:E425,'Proyectos vigentes'!$C$4)","v":43},424,1655,"UAM","Industrial","Aplicación de Probabilidad y Estadística"," Dr. José Antonio Climent Hernández","55- 5318-9530 ext. 230"]
[{"$f":"COUNTIF($E$1:E426,'Proyectos vigentes'!$C$4)","v":43},425,1656,"UAM","Computación"," Diseño e implementación del Sistema para la consulta de información Geográfica del Laboratorio de la Forma Urbana","Dr. Felipe Gerardo Ávila Jiménez","55 5318-9000"]
[{"$f":"COUNTIF($E$1:E427,'Proyectos vigentes'!$C$4)","v":43},426,1657,"UAM","Química","Simulación de Procesos Químicos para la solución de problemas de Ingeniería Química","Dr. Miguel Ángel Hernández Galván","55- 5318 90 65 ext. 108"]
[{"$f":"COUNTIF($E$1:E428,'Proyectos vigentes'!$C$4)","v":43},427]
[{"$f":"COUNTIF($E$1:E429,'Proyectos vigentes'!$C$4)","v":43},428]
[{"$f":"COUNTIF($E$1:E430,'Proyectos vigentes'!$C$4)","v":43},429]
[{"$f":"COUNTIF($E$1:E431,'Proyectos vigentes'!$C$4)","v":43},430]
[{"$f":"COUNTIF($E$1:E432,'Proyectos vigentes'!$C$4)","v":43},431]
[{"$f":"COUNTIF($E$1:E433,'Proyectos vigentes'!$C$4)","v":43},432]
[{"$f":"COUNTIF($E$1:E434,'Proyectos vigentes'!$C$4)","v":43},433]
[{"$f":"COUNTIF($E$1:E435,'Proyectos vigentes'!$C$4)","v":43},434]
[{"$f":"COUNTIF($E$1:E436,'Proyectos vigentes'!$C$4)","v":43},435]
[{"$f":"COUNTIF($E$1:E437,'Proyectos vigentes'!$C$4)","v":43},436]
[{"$f":"COUNTIF($E$1:E438,'Proyectos vigentes'!$C$4)","v":43},437]
[{"$f":"COUNTIF($E$1:E439,'Proyectos vigentes'!$C$4)","v":43},438]
[{"$f":"COUNTIF($E$1:E440,'Proyectos vigentes'!$C$4)","v":43},439]
[{"$f":"COUNTIF($E$1:E441,'Proyectos vigentes'!$C$4)","v":43},440]
[{"$f":"COUNTIF($E$1:E442,'Proyectos vigentes'!$C$4)","v":43},441]
[{"$f":"COUNTIF($E$1:E443,'Proyectos vigentes'!$C$4)","v":43},442]
[{"$f":"COUNTIF($E$1:E444,'Proyectos vigentes'!$C$4)","v":43},443]
[{"$f":"COUNTIF($E$1:E445,'Proyectos vigentes'!$C$4)","v":43},444]
[{"$f":"COUNTIF($E$1:E446,'Proyectos vigentes'!$C$4)","v":43},445]
[{"$f":"COUNTIF($E$1:E447,'Proyectos vigentes'!$C$4)","v":43},446]
[{"$f":"COUNTIF($E$1:E448,'Proyectos vigentes'!$C$4)","v":43},447]
[{"$f":"COUNTIF($E$1:E449,'Proyectos vigentes'!$C$4)","v":43},448]
[{"$f":"COUNTIF($E$1:E450,'Proyectos vigentes'!$C$4)","v":43},449]
[{"$f":"COUNTIF($E$1:E451,'Proyectos vigentes'!$C$4)","v":43},450]
[{"$f":"COUNTIF($E$1:E452,'Proyectos vigentes'!$C$4)","v":43},451]
[{"$f":"COUNTIF($E$1:E453,'Proyectos vigentes'!$C$4)","v":43},452]
[{"$f":"COUNTIF($E$1:E454,'Proyectos vigentes'!$C$4)","v":43},453]
[{"$f":"COUNTIF($E$1:E455,'Proyectos vigentes'!$C$4)","v":43},454]
[{"$f":"COUNTIF($E$1:E456,'Proyectos vigentes'!$C$4)","v":43},455]
[{"$f":"COUNTIF($E$1:E457,'Proyectos vigentes'!$C$4)","v":43},456]
[{"$f":"COUNTIF($E$1:E458,'Proyectos vigentes'!$C$4)","v":43},457]
[{"$f":"COUNTIF($E$1:E459,'Proyectos vigentes'!$C$4)","v":43},458]
[{"$f":"COUNTIF($E$1:E460,'Proyectos vigentes'!$C$4)","v":43},459]
[{"$f":"COUNTIF($E$1:E461,'Proyectos vigentes'!$C$4)","v":43},460]
[{"$f":"COUNTIF($E$1:E462,'Proyectos vigentes'!$C$4)","v":43},461]
[{"$f":"COUNTIF($E$1:E463,'Proyectos vigentes'!$C$4)","v":43},462]
[{"$f":"COUNTIF($E$1:E464,'Proyectos vigentes'!$C$4)","v":43},463]
[{"$f":"COUNTIF($E$1:E465,'Proyectos vigentes'!$C$4)","v":43},464]
[{"$f":"COUNTIF($E$1:E466,'Proyectos vigentes'!$C$4)","v":43},465]
[{"$f":"COUNTIF($E$1:E467,'Proyectos vigentes'!$C$4)","v":43},466]
[{"$f":"COUNTIF($E$1:E468,'Proyectos vigentes'!$C$4)","v":43},467]
[{"$f":"COUNTIF($E$1:E469,'Proyectos vigentes'!$C$4)","v":43},468]
[{"$f":"COUNTIF($E$1:E470,'Proyectos vigentes'!$C$4)","v":43},469]
[{"$f":"COUNTIF($E$1:E471,'Proyectos vigentes'!$C$4)","v":43},470]
[{"$f":"COUNTIF($E$1:E472,'Proyectos vigentes'!$C$4)","v":43},471]
[{"$f":"COUNTIF($E$1:E473,'Proyectos vigentes'!$C$4)","v":43},472]
[{"$f":"COUNTIF($E$1:E474,'Proyectos vigentes'!$C$4)","v":43},473]
[{"$f":"COUNTIF($E$1:E475,'Proyectos vigentes'!$C$4)","v":43},474]
[{"$f":"COUNTIF($E$1:E476,'Proyectos vigentes'!$C$4)","v":43},475]
[{"$f":"COUNTIF($E$1:E477,'Proyectos vigentes'!$C$4)","v":43},476]
[{"$f":"COUNTIF($E$1:E478,'Proyectos vigentes'!$C$4)","v":43},477]
[{"$f":"COUNTIF($E$1:E479,'Proyectos vigentes'!$C$4)","v":43},478]
[{"$f":"COUNTIF($E$1:E480,'Proyectos vigentes'!$C$4)","v":43},479]
[{"$f":"COUNTIF($E$1:E481,'Proyectos vigentes'!$C$4)","v":43},480]
[{"$f":"COUNTIF($E$1:E482,'Proyectos vigentes'!$C$4)","v":43},481]
[{"$f":"COUNTIF($E$1:E483,'Proyectos vigentes'!$C$4)","v":43},482]
[{"$f":"COUNTIF($E$1:E484,'Proyectos vigentes'!$C$4)","v":43},483]
[{"$f":"COUNTIF($E$1:E485,'Proyectos vigentes'!$C$4)","v":43},484]
[{"$f":"COUNTIF($E$1:E486,'Proyectos vigentes'!$C$4)","v":43},485]
[{"$f":"COUNTIF($E$1:E487,'Proyectos vigentes'!$C$4)","v":43},486]
[{"$f":"COUNTIF($E$1:E488,'Proyectos vigentes'!$C$4)","v":43},487]
[{"$f":"COUNTIF($E$1:E489,'Proyectos vigentes'!$C$4)","v":43},488]
[{"$f":"COUNTIF($E$1:E490,'Proyectos vigentes'!$C$4)","v":43},489]
[{"$f":"COUNTIF($E$1:E491,'Proyectos vigentes'!$C$4)","v":43},490]
[{"$f":"COUNTIF($E$1:E492,'Proyectos vigentes'!$C$4)","v":43},491]
[{"$f":"COUNTIF($E$1:E493,'Proyectos vigentes'!$C$4)","v":43},492]
[{"$f":"COUNTIF($E$1:E494,'Proyectos vigentes'!$C$4)","v":43},493]
[{"$f":"COUNTIF($E$1:E495,'Proyectos vigentes'!$C$4)","v":43},494]
[{"$f":"COUNTIF($E$1:E496,'Proyectos vigentes'!$C$4)","v":43},495]
[{"$f":"COUNTIF($E$1:E497,'Proyectos vigentes'!$C$4)","v":43},496]
[{"$f":"COUNTIF($E$1:E498,'Proyectos vigentes'!$C$4)","v":43},497]
[{"$f":"COUNTIF($E$1:E499,'Proyectos vigentes'!$C$4)","v":43},498]
[{"$f":"COUNTIF($E$1:E500,'Proyectos vigentes'!$C$4)","v":43},499]
[{"$f":"COUNTIF($E$1:E501,'Proyectos vigentes'!$C$4)","v":43},500]
[{"$f":"COUNTIF($E$1:E502,'Proyectos vigentes'!$C$4)","v":43},501]
[{"$f":"COUNTIF($E$1:E503,'Proyectos vigentes'!$C$4)","v":43},502]
[{"$f":"COUNTIF($E$1:E504,'Proyectos vigentes'!$C$4)","v":43},503]
[{"$f":"COUNTIF($E$1:E505,'Proyectos vigentes'!$C$4)","v":43},504]
[{"$f":"COUNTIF($E$1:E506,'Proyectos vigentes'!$C$4)","v":43},505]
[{"$f":"COUNTIF($E$1:E507,'Proyectos vigentes'!$C$4)","v":43},506]
[{"$f":"COUNTIF($E$1:E508,'Proyectos vigentes'!$C$4)","v":43},507]
[{"$f":"COUNTIF($E$1:E509,'Proyectos vigentes'!$C$4)","v":43},508]
[{"$f":"COUNTIF($E$1:E510,'Proyectos vigentes'!$C$4)","v":43},509]
[{"$f":"COUNTIF($E$1:E511,'Proyectos vigentes'!$C$4)","v":43},510]
[{"$f":"COUNTIF($E$1:E512,'Proyectos vigentes'!$C$4)","v":43},511]
[{"$f":"COUNTIF($E$1:E513,'Proyectos vigentes'!$C$4)","v":43},512]
[{"$f":"COUNTIF($E$1:E514,'Proyectos vigentes'!$C$4)","v":43},513]
[{"$f":"COUNTIF($E$1:E515,'Proyectos vigentes'!$C$4)","v":43},514]
[{"$f":"COUNTIF($E$1:E516,'Proyectos vigentes'!$C$4)","v":43},515]
[{"$f":"COUNTIF($E$1:E517,'Proyectos vigentes'!$C$4)","v":43},516]
[{"$f":"COUNTIF($E$1:E518,'Proyectos vigentes'!$C$4)","v":43},517]
[{"$f":"COUNTIF($E$1:E519,'Proyectos vigentes'!$C$4)","v":43},518]
[{"$f":"COUNTIF($E$1:E520,'Proyectos vigentes'!$C$4)","v":43},519]
[{"$f":"COUNTIF($E$1:E521,'Proyectos vigentes'!$C$4)","v":43},520]
[{"$f":"COUNTIF($E$1:E522,'Proyectos vigentes'!$C$4)","v":43},521]
[{"$f":"COUNTIF($E$1:E523,'Proyectos vigentes'!$C$4)","v":43},522]
[{"$f":"COUNTIF($E$1:E524,'Proyectos vigentes'!$C$4)","v":43},523]
[{"$f":"COUNTIF($E$1:E525,'Proyectos vigentes'!$C$4)","v":43},524]
[{"$f":"COUNTIF($E$1:E526,'Proyectos vigentes'!$C$4)","v":43},525]
[{"$f":"COUNTIF($E$1:E527,'Proyectos vigentes'!$C$4)","v":43},526]
[{"$f":"COUNTIF($E$1:E528,'Proyectos vigentes'!$C$4)","v":43},527]
[{"$f":"COUNTIF($E$1:E529,'Proyectos vigentes'!$C$4)","v":43},528]
[{"$f":"COUNTIF($E$1:E530,'Proyectos vigentes'!$C$4)","v":43},529]
[{"$f":"COUNTIF($E$1:E531,'Proyectos vigentes'!$C$4)","v":43},530]
[{"$f":"COUNTIF($E$1:E532,'Proyectos vigentes'!$C$4)","v":43},531]
[{"$f":"COUNTIF($E$1:E533,'Proyectos vigentes'!$C$4)","v":43},532]
[{"$f":"COUNTIF($E$1:E534,'Proyectos vigentes'!$C$4)","v":43},533]
[{"$f":"COUNTIF($E$1:E535,'Proyectos vigentes'!$C$4)","v":43},534]
[{"$f":"COUNTIF($E$1:E536,'Proyectos vigentes'!$C$4)","v":43},535]
[{"$f":"COUNTIF($E$1:E537,'Proyectos vigentes'!$C$4)","v":43},536]
[{"$f":"COUNTIF($E$1:E538,'Proyectos vigentes'!$C$4)","v":43},537]
[{"$f":"COUNTIF($E$1:E539,'Proyectos vigentes'!$C$4)","v":43},538]
[{"$f":"COUNTIF($E$1:E540,'Proyectos vigentes'!$C$4)","v":43},539]
[{"$f":"COUNTIF($E$1:E541,'Proyectos vigentes'!$C$4)","v":43},540]
[{"$f":"COUNTIF($E$1:E542,'Proyectos vigentes'!$C$4)","v":43},541]
[{"$f":"COUNTIF($E$1:E543,'Proyectos vigentes'!$C$4)","v":43},542]
[{"$f":"COUNTIF($E$1:E544,'Proyectos vigentes'!$C$4)","v":43},543]
[{"$f":"COUNTIF($E$1:E545,'Proyectos vigentes'!$C$4)","v":43},544]
[{"$f":"COUNTIF($E$1:E546,'Proyectos vigentes'!$C$4)","v":43},545]
[{"$f":"COUNTIF($E$1:E547,'Proyectos vigentes'!$C$4)","v":43},546]
[{"$f":"COUNTIF($E$1:E548,'Proyectos vigentes'!$C$4)","v":43},547]
[{"$f":"COUNTIF($E$1:E549,'Proyectos vigentes'!$C$4)","v":43},548]
[{"$f":"COUNTIF($E$1:E550,'Proyectos vigentes'!$C$4)","v":43},549]

{"sheet":"Proyectos vigentes","index":1,"n_rows":904,"n_cols":7,"rows_kept":904,"cut":false,"hidden":false,"merged":[[1,0,1,6],[3,0,3,1],[3,2,3,3],[2,5,2,6],[3,5,3,6]]}
[]
["PROYECTOS DE SERVICIO SOCIAL VIGENTES"]
[null,null,null,null,null,"Última Actualización: 15 de abril de 2024"]
["Ingeniería",null,"Mecánica"]
[]
[]
["No.","NUM. REG.","DEPENDENCIA","CARRERA","NOMBRE DEL PROYECTO","ASESOR (ES)","TELEFONO"]
[1,{"$f":"VLOOKUP(A8,Hoja1!$A$1:$H$578,3,FALSE)","v":60},{"$f":"IFERROR(VLOOKUP(A8,Hoja1!$A$1:$H$578,4,FALSE),\" \")","v":"Instituto Mexicano del Petróleo"},{"$f":"IFERROR(VLOOKUP(A8,Hoja1!$A$1:$H$578,5,FALSE),\" \")","v":"Mecánica"},{"$f":"IFERROR(VLOOKUP(A8,Hoja1!$A$1:$H$578,6,FALSE),\" \")","v":"Formación y desarrollo del factor humano del IMP"},{"$f":"IFERROR(VLOOKUP(A8,Hoja1!$A$1:$H$578,7,FALSE),\" \")","v":"M. en C. María Guadalupe Alvarado Maldonado"},{"$f":"IFERROR(VLOOKUP(A8,Hoja1!$A$1:$H$578,8,FALSE),\" \")","v":"9175-6373"}]
[2,{"$f":"VLOOKUP(A9,Hoja1!$A$1:$H$578,3,FALSE)","v":361},{"$f":"IFERROR(VLOOKUP(A9,Hoja1!$A$1:$H$578,4,FALSE),\" \")","v":"Sistema de Transporte Colectivo (Metro)"},{"$f":"IFERROR(VLOOKUP(A9,Hoja1!$A$1:$H$578,5,FALSE),\" \")","v":"Mecánica"},{"$f":"IFERROR(VLOOKUP(A9,Hoja1!$A$1:$H$578,6,FALSE),\" \")","v":"Mantenimiento preventivo y correctivo a las instalaciones que conforman la operatividad del S. T. C. "},{"$f":"IFERROR(VLOOKUP(A9,Hoja1!$A$1:$H$578,7,FALSE),\" \")","v":"Lic. Carlos Enrique Gómez Alonso"},{"$f":"IFERROR(VLOOKUP(A9,Hoja1!$A$1:$H$578,8,FALSE),\" \")","v":"5709-1133 ext. 2546, 2547"}]
[3,{"$f":"VLOOKUP(A10,Hoja1!$A$1:$H$578,3,FALSE)","v":"829-396"},{"$f":"IFERROR(VLOOKUP(A10,Hoja1!$A$1:$H$578,4,FALSE),\" \")","v":"Petróleos Mexicanos "},{"$f":"IFERROR(VLOOKUP(A10,Hoja1!$A$1:$H$578,5,FALSE),\" \")","v":"Mecánica"},{"$f":"IFERROR(VLOOKUP(A10,Hoja1!$A$1:$H$578,6,FALSE),\" \")","v":"PROSER Capital Humano"},{"$f":"IFERROR(VLOOKUP(A10,Hoja1!$A$1:$H$578,7,FALSE),\" \")","v":"Ing. María Esther Torruco Ruiz                      "},{"$f":"IFERROR(VLOOKUP(A10,Hoja1!$A$1:$H$578,8,FALSE),\" \")","v":"1944-2500 ext. 37771"}]
[4,{"$f":"VLOOKUP(A11,Hoja1!$A$1:$H$578,3,FALSE)","v":"830-065"},{"$f":"IFERROR(VLOOKUP(A11,Hoja1!$A$1:$H$578,4,FALSE),\" \")","v":"Instituto Mexicano de la Construcción en Acero (IMCA)"},{"$f":"IFERROR(VLOOKUP(A11,Hoja1!$A$1:$H$578,5,FALSE),\" \")","v":"Mecánica"},{"$f":"IFERROR(VLOOKUP(A11,Hoja1!$A$1:$H$578,6,FALSE),\" \")","v":"Diseño, fabricación, montaje y supervisión de estructuras de acero"},{"$f":"IFERROR(VLOOKUP(A11,Hoja1!$A$1:$H$578,7,FALSE),\" \")","v":"Ing. Octavio Álvarez Valadez                 Dr. Tiziano Perea Olvera."},{"$f":"IFERROR(VLOOKUP(A11,Hoja1!$A$1:$H$578,8,FALSE),\" \")","v":"55-5572-3196"}]
[5,{"$f":"VLOOKUP(A12,Hoja1!$A$1:$H$578,3,FALSE)","v":"829-435"},{"$f":"IFERROR(VLOOKUP(A12,Hoja1!$A$1:$H$578,4,FALSE),\" \")","v":"Secretaría de Seguridad Ciudadana de la Ciudad de México (SSC CDMX)"},{"$f":"IFERROR(VLOOKUP(A12,Hoja1!$A$1:$H$578,5,FALSE),\" \")","v":"Mecánica"},{"$f":"IFERROR(VLOOKUP(A12,Hoja1!$A$1:$H$578,6,FALSE),\" \")","v":"Apoyo en actividades de infraestructura y de tecnología de la SSC CDMX"},{"$f":"IFERROR(VLOOKUP(A12,Hoja1!$A$1:$H$578,7,FALSE),\" \")","v":"Lic. Juan de Dios Maciel Pérez                  Lic. Luis Javier Ramírez Reyes."},{"$f":"IFERROR(VLOOKUP(A12,Hoja1!$A$1:$H$578,8,FALSE),\" \")","v":"55-5132-5400 ext. 1314"}]
[6,{"$f":"VLOOKUP(A13,Hoja1!$A$1:$H$578,3,FALSE)","v":"829-443"},{"$f":"IFERROR(VLOOKUP(A13,Hoja1!$A$1:$H$578,4,FALSE),\" \")","v":"Financiera para el Bienestar"},{"$f":"IFERROR(VLOOKUP(A13,Hoja1!$A$1:$H$578,5,FALSE),\" \")","v":"Mecánica"},{"$f":"IFERROR(VLOOKUP(A13,Hoja1!$A$1:$H$578,6,FALSE),\" \")","v":"Apoyo Administrativo en Telecomm"},{"$f":"IFERROR(VLOOKUP(A13,Hoja1!$A$1:$H$578,7,FALSE),\" \")","v":"Lic. Karla Beatriz Dávila García,         Mtro. Carlos Fernando Roldán Zarate"},{"$f":"IFERROR(VLOOKUP(A13,Hoja1!$A$1:$H$578,8,FALSE),\" \")","v":"5550901100 ext.1202"}]
[7,{"$f":"VLOOKUP(A14,Hoja1!$A$1:$H$578,3,FALSE)","v":"829-447"},{"$f":"IFERROR(VLOOKUP(A14,Hoja1!$A$1:$H$578,4,FALSE),\" \")","v":"Red de Transporte de pasajeros de la Ciudad de México"},{"$f":"IFERROR(VLOOKUP(A14,Hoja1!$A$1:$H$578,5,FALSE),\" \")","v":"Mecánica"},{"$f":"IFERROR(VLOOKUP(A14,Hoja1!$A$1:$H$578,6,FALSE),\" \")","v":"Servicio Social para la administración Integral de la Red de Transporte de pasajeros de la Ciudad de México"},{"$f":"IFERROR(VLOOKUP(A14,Hoja1!$A$1:$H$578,7,FALSE),\" \")","v":"C. P. Tania Edith Reyes Varela                Lic. Lucia Paola Carrillo Olvera                                       Lic. Valeria Jacqueline Ávila Arias                                      Lic. Elliots Luis Miranda León"},{"$f":"IFERROR(VLOOKUP(A14,Hoja1!$A$1:$H$578,8,FALSE),\" \")","v":"55-1328-6300 ext. 6423, 6387"}]
[8,{"$f":"VLOOKUP(A15,Hoja1!$A$1:$H$578,3,FALSE)","v":964},{"$f":"IFERROR(VLOOKUP(A15,Hoja1!$A$1:$H$578,4,FALSE),\" \")","v":"UAM"},{"$f":"IFERROR(VLOOKUP(A15,Hoja1!$A$1:$H$578,5,FALSE),\" \")","v":"Mecánica"},{"$f":"IFERROR(VLOOKUP(A15,Hoja1!$A$1:$H$578,6,FALSE),\" \")","v":"Simulación y análisis experimental en energía solar."},{"$f":"IFERROR(VLOOKUP(A15,Hoja1!$A$1:$H$578,7,FALSE),\" \")","v":"Hilario Terres Peña"},{"$f":"IFERROR(VLOOKUP(A15,Hoja1!$A$1:$H$578,8,FALSE),\" \")","v":"5318-9061"}]
[9,{"$f":"VLOOKUP(A16,Hoja1!$A$1:$H$578,3,FALSE)","v":991},{"$f":"IFERROR(VLOOKUP(A16,Hoja1!$A$1:$H$578,4,FALSE),\" \")","v":"UAM"},{"$f":"IFERROR(VLOOKUP(A16,Hoja1!$A$1:$H$578,5,FALSE),\" \")","v":"Mecánica"},{"$f":"IFERROR(VLOOKUP(A16,Hoja1!$A$1:$H$578,6,FALSE),\" \")","v":"Operación de la planta piloto de tratamiento de aguas residuales de la UAM-A."},{"$f":"IFERROR(VLOOKUP(A16,Hoja1!$A$1:$H$578,7,FALSE),\" \")","v":"Dr. Israel Labastida Núñez                    M. en C. I. Margarita Beltrán Villavicencio                     Dra. Maribel Velasco Pérez                 Dr. Jaime Alejandro Paulino Granados Samaniego"},{"$f":"IFERROR(VLOOKUP(A16,Hoja1!$A$1:$H$578,8,FALSE),\" \")","v":"55-5318-9075 "}]
[10,{"$f":"VLOOKUP(A17,Hoja1!$A$1:$H$578,3,FALSE)","v":816},{"$f":"IFERROR(VLOOKUP(A17,Hoja1!$A$1:$H$578,4,FALSE),\" \")","v":"UAM"},{"$f":"IFERROR(VLOOKUP(A17,Hoja1!$A$1:$H$578,5,FALSE),\" \")","v":"Mecánica"},{"$f":"IFERROR(VLOOKUP(A17,Hoja1!$A$1:$H$578,6,FALSE),\" \")","v":"Apoyo al Programa Interno de Protección Civil  de la UAM-Azcapotzalco."},{"$f":"IFERROR(VLOOKUP(A17,Hoja1!$A$1:$H$578,7,FALSE),\" \")","v":"Ing. Roberto Carlos Vázquez Solís      Dra. Rosa María Espinosa Valdemar "},{"$f":"IFERROR(VLOOKUP(A17,Hoja1!$A$1:$H$578,8,FALSE),\" \")","v":"555318-9545"}]
[11,{"$f":"VLOOKUP(A18,Hoja1!$A$1:$H$578,3,FALSE)","v":1076},{"$f":"IFERROR(VLOOKUP(A18,Hoja1!$A$1:$H$578,4,FALSE),\" \")","v":"UAM"},{"$f":"IFERROR(VLOOKUP(A18,Hoja1!$A$1:$H$578,5,FALSE),\" \")","v":"Mecánica"},{"$f":"IFERROR(VLOOKUP(A18,Hoja1!$A$1:$H$578,6,FALSE),\" \")","v":"P.G.I.R.S. de la UAM-Azcapotzalco SEPARACCIÓN"},{"$f":"IFERROR(VLOOKUP(A18,Hoja1!$A$1:$H$578,7,FALSE),\" \")","v":"Dra. Rosa María Espinosa Valdemar"},{"$f":"IFERROR(VLOOKUP(A18,Hoja1!$A$1:$H$578,8,FALSE),\" \")","v":"5318-9062"}]
[12,{"$f":"VLOOKUP(A19,Hoja1!$A$1:$H$578,3,FALSE)","v":1107},{"$f":"IFERROR(VLOOKUP(A19,Hoja1!$A$1:$H$578,4,FALSE),\" \")","v":"UAM"},{"$f":"IFERROR(VLOOKUP(A19,Hoja1!$A$1:$H$578,5,FALSE),\" \")","v":"Mecánica"},{"$f":"IFERROR(VLOOKUP(A19,Hoja1!$A$1:$H$578,6,FALSE),\" \")","v":"Muestreo y análisis de compuestos tóxicos en el ambiente"},{"$f":"IFERROR(VLOOKUP(A19,Hoja1!$A$1:$H$578,7,FALSE),\" \")","v":"Dra. Violeta Mugica Álvarez                                                 Dra. Brenda Liz Valle Hernández      Mtra. Griselda González Cardoso         Dr. José de Jesús Figueroa Lara          Dr. Adolfo Hernández Moreno"},{"$f":"IFERROR(VLOOKUP(A19,Hoja1!$A$1:$H$578,8,FALSE),\" \")","v":5553189570}]
[13,{"$f":"VLOOKUP(A20,Hoja1!$A$1:$H$578,3,FALSE)","v":1143},{"$f":"IFERROR(VLOOKUP(A20,Hoja1!$A$1:$H$578,4,FALSE),\" \")","v":"UAM"},{"$f":"IFERROR(VLOOKUP(A20,Hoja1!$A$1:$H$578,5,FALSE),\" \")","v":"Mecánica"},{"$f":"IFERROR(VLOOKUP(A20,Hoja1!$A$1:$H$578,6,FALSE),\" \")","v":"Diseño de prototipos experimentales para sistemas complejos"},{"$f":"IFERROR(VLOOKUP(A20,Hoja1!$A$1:$H$578,7,FALSE),\" \")","v":"Eduardo Basurto Uribe                                          Catalina Ester Haro Pérez                        Armando Gómez Vieyra                       Grethell Georgina Pérez Sánchez         Carlos Alejandro Vargas                    Gerardo Miguel Odriozola Prego                       "},{"$f":"IFERROR(VLOOKUP(A20,Hoja1!$A$1:$H$578,8,FALSE),\" \")","v":"5318-9382                        5318-9020"}]
[14,{"$f":"VLOOKUP(A21,Hoja1!$A$1:$H$578,3,FALSE)","v":1146},{"$f":"IFERROR(VLOOKUP(A21,Hoja1!$A$1:$H$578,4,FALSE),\" \")","v":"UAM"},{"$f":"IFERROR(VLOOKUP(A21,Hoja1!$A$1:$H$578,5,FALSE),\" \")","v":"Mecánica"},{"$f":"IFERROR(VLOOKUP(A21,Hoja1!$A$1:$H$578,6,FALSE),\" \")","v":"Centro de apoyo para docencia e investigación (CADI)"},{"$f":"IFERROR(VLOOKUP(A21,Hoja1!$A$1:$H$578,7,FALSE),\" \")","v":"Dr. Ernesto Rodrigo Vázquez Cerón"},{"$f":"IFERROR(VLOOKUP(A21,Hoja1!$A$1:$H$578,8,FALSE),\" \")","v":"5318-9030"}]
[15,{"$f":"VLOOKUP(A22,Hoja1!$A$1:$H$578,3,FALSE)","v":534},{"$f":"IFERROR(VLOOKUP(A22,Hoja1!$A$1:$H$578,4,FALSE),\" \")","v":"UAM"},{"$f":"IFERROR(VLOOKUP(A22,Hoja1!$A$1:$H$578,5,FALSE),\" \")","v":"Mecánica"},{"$f":"IFERROR(VLOOKUP(A22,Hoja1!$A$1:$H$578,6,FALSE),\" \")","v":"Tratamiento de residuos líquidos mediante procesos electroquímicos y biológicos"},{"$f":"IFERROR(VLOOKUP(A22,Hoja1!$A$1:$H$578,7,FALSE),\" \")","v":"Sergio Martínez Delgadillo                                        Víctor Xiunel Mendoza Escamilla         Dra. Silvia Cristina Iuga"},{"$f":"IFERROR(VLOOKUP(A22,Hoja1!$A$1:$H$578,8,FALSE),\" \")","v":"5318-9007"}]
[16,{"$f":"VLOOKUP(A23,Hoja1!$A$1:$H$578,3,FALSE)","v":1183},{"$f":"IFERROR(VLOOKUP(A23,Hoja1!$A$1:$H$578,4,FALSE),\" \")","v":"UAM"},{"$f":"IFERROR(VLOOKUP(A23,Hoja1!$A$1:$H$578,5,FALSE),\" \")","v":"Mecánica"},{"$f":"IFERROR(VLOOKUP(A23,Hoja1!$A$1:$H$578,6,FALSE),\" \")","v":"Técnicas de visualización para el estudio de micromovimientos"},{"$f":"IFERROR(VLOOKUP(A23,Hoja1!$A$1:$H$578,7,FALSE),\" \")","v":"Dr. Miguel Ángel López Ontiveros"},{"$f":"IFERROR(VLOOKUP(A23,Hoja1!$A$1:$H$578,8,FALSE),\" \")","v":"5318-9000 ext. 2243"}]
[17,{"$f":"VLOOKUP(A24,Hoja1!$A$1:$H$578,3,FALSE)","v":1287},{"$f":"IFERROR(VLOOKUP(A24,Hoja1!$A$1:$H$578,4,FALSE),\" \")","v":"UAM"},{"$f":"IFERROR(VLOOKUP(A24,Hoja1!$A$1:$H$578,5,FALSE),\" \")","v":"Mecánica"},{"$f":"IFERROR(VLOOKUP(A24,Hoja1!$A$1:$H$578,6,FALSE),\" \")","v":"Diseño de materiales sono o foto-activos (TiO2), usados en la degradación de contaminantes"},{"$f":"IFERROR(VLOOKUP(A24,Hoja1!$A$1:$H$578,7,FALSE),\" \")","v":"Marcos May Lozano                                     Ricardo López Medina"},{"$f":"IFERROR(VLOOKUP(A24,Hoja1!$A$1:$H$578,8,FALSE),\" \")","v":"5318-9023"}]
[18,{"$f":"VLOOKUP(A25,Hoja1!$A$1:$H$578,3,FALSE)","v":1388},{"$f":"IFERROR(VLOOKUP(A25,Hoja1!$A$1:$H$578,4,FALSE),\" \")","v":"UAM"},{"$f":"IFERROR(VLOOKUP(A25,Hoja1!$A$1:$H$578,5,FALSE),\" \")","v":"Mecánica"},{"$f":"IFERROR(VLOOKUP(A25,Hoja1!$A$1:$H$578,6,FALSE),\" \")","v":"Análisis numérico y experimental en el proceso de destilación solar"},{"$f":"IFERROR(VLOOKUP(A25,Hoja1!$A$1:$H$578,7,FALSE),\" \")","v":"Mtra. Sandra Chávez Sánchez"},{"$f":"IFERROR(VLOOKUP(A25,Hoja1!$A$1:$H$578,8,FALSE),\" \")","v":"5318-9000"}]
[19,{"$f":"VLOOKUP(A26,Hoja1!$A$1:$H$578,3,FALSE)","v":1395},{"$f":"IFERROR(VLOOKUP(A26,Hoja1!$A$1:$H$578,4,FALSE),\" \")","v":"UAM"},{"$f":"IFERROR(VLOOKUP(A26,Hoja1!$A$1:$H$578,5,FALSE),\" \")","v":"Mecánica"},{"$f":"IFERROR(VLOOKUP(A26,Hoja1!$A$1:$H$578,6,FALSE),\" \")","v":"Tecnologías sustentables enfocadas a agua, suelo y plásticos "},{"$f":"IFERROR(VLOOKUP(A26,Hoja1!$A$1:$H$578,7,FALSE),\" \")","v":"Mtra. Margarita Beltrán Villavicencio                 Dra. Alethia Vázquez Morillas                    Dra. Maribel Velasco Pérez                          Dra. Rosa María Espinosa Valdemar               Dr. Israel Labastida Núñez         Dra. Sylvie Turpin Marion                         Mtra. Griselda González Cardoso                    Dr. José Ángel Dávila Gómez"},{"$f":"IFERROR(VLOOKUP(A26,Hoja1!$A$1:$H$578,8,FALSE),\" \")","v":"5318-9075, 5318-9057, 53189062"}]
[20,{"$f":"VLOOKUP(A27,Hoja1!$A$1:$H$578,3,FALSE)","v":1435},{"$f":"IFERROR(VLOOKUP(A27,Hoja1!$A$1:$H$578,4,FALSE),\" \")","v":"UAM"},{"$f":"IFERROR(VLOOKUP(A27,Hoja1!$A$1:$H$578,5,FALSE),\" \")","v":"Mecánica"},{"$f":"IFERROR(VLOOKUP(A27,Hoja1!$A$1:$H$578,6,FALSE),\" \")","v":"Desarrollo y construcción de un vehículo baja SAE"},{"$f":"IFERROR(VLOOKUP(A27,Hoja1!$A$1:$H$578,7,FALSE),\" \")","v":"Ing. Romy Pérez Moreno"},{"$f":"IFERROR(VLOOKUP(A27,Hoja1!$A$1:$H$578,8,FALSE),\" \")","v":"5318-9069"}]
[21,{"$f":"VLOOKUP(A28,Hoja1!$A$1:$H$578,3,FALSE)","v":1477},{"$f":"IFERROR(VLOOKUP(A28,Hoja1!$A$1:$H$578,4,FALSE),\" \")","v":"UAM"},{"$f":"IFERROR(VLOOKUP(A28,Hoja1!$A$1:$H$578,5,FALSE),\" \")","v":"Mecánica"},{"$f":"IFERROR(VLOOKUP(A28,Hoja1!$A$1:$H$578,6,FALSE),\" \")","v":"Desarrollo de una célula de manufactura con enfoque 4.0"},{"$f":"IFERROR(VLOOKUP(A28,Hoja1!$A$1:$H$578,7,FALSE),\" \")","v":"Lisaura Walkiria Rodríguez Alvarado                                                      Jesús Loyo Quijada                             Dr. Usiel Sandino Silva Rivera"},{"$f":"IFERROR(VLOOKUP(A28,Hoja1!$A$1:$H$578,8,FALSE),\" \")","v":"5318-9532 ext. 146, 112"}]
[22,{"$f":"VLOOKUP(A29,Hoja1!$A$1:$H$578,3,FALSE)","v":1492},{"$f":"IFERROR(VLOOKUP(A29,Hoja1!$A$1:$H$578,4,FALSE),\" \")","v":"UAM"},{"$f":"IFERROR(VLOOKUP(A29,Hoja1!$A$1:$H$578,5,FALSE),\" \")","v":"Mecánica"},{"$f":"IFERROR(VLOOKUP(A29,Hoja1!$A$1:$H$578,6,FALSE),\" \")","v":"Fabricación y caracterización de nuevos materiales compuestos para posibles implantes en el cuerpo humano (huesos)"},{"$f":"IFERROR(VLOOKUP(A29,Hoja1!$A$1:$H$578,7,FALSE),\" \")","v":"Dra. María Elizabeth Refugio García"},{"$f":"IFERROR(VLOOKUP(A29,Hoja1!$A$1:$H$578,8,FALSE),\" \")","v":"5318-9000 ext. 2130"}]
[23,{"$f":"VLOOKUP(A30,Hoja1!$A$1:$H$578,3,FALSE)","v":1497},{"$f":"IFERROR(VLOOKUP(A30,Hoja1!$A$1:$H$578,4,FALSE),\" \")","v":"UAM"},{"$f":"IFERROR(VLOOKUP(A30,Hoja1!$A$1:$H$578,5,FALSE),\" \")","v":"Mecánica"},{"$f":"IFERROR(VLOOKUP(A30,Hoja1!$A$1:$H$578,6,FALSE),\" \")","v":"Comportamiento de estructuras de concreto"},{"$f":"IFERROR(VLOOKUP(A30,Hoja1!$A$1:$H$578,7,FALSE),\" \")","v":"Dr. Eduardo Arellano Mendez                   Dr. Hans Israel Archundia Aranda             M. I. Gilberto Rangel Torres"},{"$f":"IFERROR(VLOOKUP(A30,Hoja1!$A$1:$H$578,8,FALSE),\" \")","v":53189461}]
[24,{"$f":"VLOOKUP(A31,Hoja1!$A$1:$H$578,3,FALSE)","v":1518},{"$f":"IFERROR(VLOOKUP(A31,Hoja1!$A$1:$H$578,4,FALSE),\" \")","v":"UAM"},{"$f":"IFERROR(VLOOKUP(A31,Hoja1!$A$1:$H$578,5,FALSE),\" \")","v":"Mecánica"},{"$f":"IFERROR(VLOOKUP(A31,Hoja1!$A$1:$H$578,6,FALSE),\" \")","v":"Proyecto interdisciplinario para la sostenibilidad del Valle de México y sus alrededores"},{"$f":"IFERROR(VLOOKUP(A31,Hoja1!$A$1:$H$578,7,FALSE),\" \")","v":"Mtro. Erasmo Flores Valverde          Mtra. María Rita Valladares Rodríguez                                         "},{"$f":"IFERROR(VLOOKUP(A31,Hoja1!$A$1:$H$578,8,FALSE),\" \")","v":"5318-9496"}]
[25,{"$f":"VLOOKUP(A32,Hoja1!$A$1:$H$578,3,FALSE)","v":1520},{"$f":"IFERROR(VLOOKUP(A32,Hoja1!$A$1:$H$578,4,FALSE),\" \")","v":"UAM"},{"$f":"IFERROR(VLOOKUP(A32,Hoja1!$A$1:$H$578,5,FALSE),\" \")","v":"Mecánica"},{"$f":"IFERROR(VLOOKUP(A32,Hoja1!$A$1:$H$578,6,FALSE),\" \")","v":"Desarrollo y caracterización de aleaciones no ferrosas, cerámicos y materiales compuestos de matriz metálica ligeros"},{"$f":"IFERROR(VLOOKUP(A32,Hoja1!$A$1:$H$578,7,FALSE),\" \")","v":"José Arturo Aragón Lezama"},{"$f":"IFERROR(VLOOKUP(A32,Hoja1!$A$1:$H$578,8,FALSE),\" \")","v":"5318-9475"}]
[26,{"$f":"VLOOKUP(A33,Hoja1!$A$1:$H$578,3,FALSE)","v":1523},{"$f":"IFERROR(VLOOKUP(A33,Hoja1!$A$1:$H$578,4,FALSE),\" \")","v":"UAM"},{"$f":"IFERROR(VLOOKUP(A33,Hoja1!$A$1:$H$578,5,FALSE),\" \")","v":"Mecánica"},{"$f":"IFERROR(VLOOKUP(A33,Hoja1!$A$1:$H$578,6,FALSE),\" \")","v":"Tecnologías LoRa, Bluetooth LE e IOT"},{"$f":"IFERROR(VLOOKUP(A33,Hoja1!$A$1:$H$578,7,FALSE),\" \")","v":"Mtro. Francisco Javier Sánchez Rangel          Mtro. José Ignacio Vega Luna                    Ing. Gerardo Salgado Guzmán                  Ing. Mario Alberto Lagos Acosta             Ing. Víctor Noé Tapia Vargas"},{"$f":"IFERROR(VLOOKUP(A33,Hoja1!$A$1:$H$578,8,FALSE),\" \")","v":"5318-9000 ext. 2310"}]
[27,{"$f":"VLOOKUP(A34,Hoja1!$A$1:$H$578,3,FALSE)","v":1538},{"$f":"IFERROR(VLOOKUP(A34,Hoja1!$A$1:$H$578,4,FALSE),\" \")","v":"UAM"},{"$f":"IFERROR(VLOOKUP(A34,Hoja1!$A$1:$H$578,5,FALSE),\" \")","v":"Mecánica"},{"$f":"IFERROR(VLOOKUP(A34,Hoja1!$A$1:$H$578,6,FALSE),\" \")","v":"Secuencias didácticas para la producción educativa digital en licenciaturas de ingeniería"},{"$f":"IFERROR(VLOOKUP(A34,Hoja1!$A$1:$H$578,7,FALSE),\" \")","v":"M. en C. Hugo Pablo Leyva                Dra. Rafaela Blanca Silva López "},{"$f":"IFERROR(VLOOKUP(A34,Hoja1!$A$1:$H$578,8,FALSE),\" \")","v":"5318-9532 ext. 143"}]
[28,{"$f":"VLOOKUP(A35,Hoja1!$A$1:$H$578,3,FALSE)","v":1542},{"$f":"IFERROR(VLOOKUP(A35,Hoja1!$A$1:$H$578,4,FALSE),\" \")","v":"UAM"},{"$f":"IFERROR(VLOOKUP(A35,Hoja1!$A$1:$H$578,5,FALSE),\" \")","v":"Mecánica"},{"$f":"IFERROR(VLOOKUP(A35,Hoja1!$A$1:$H$578,6,FALSE),\" \")","v":"Desarrollo de modelos de simulación y prototipos experimentales para telecomunicaciones"},{"$f":"IFERROR(VLOOKUP(A35,Hoja1!$A$1:$H$578,7,FALSE),\" \")","v":"Dr. Genaro Hernández Valdez                Dra. Grethell Georgina Pérez Sánchez                    Dra. Sandra Lirio Castellanos López                        Dr. Ernesto Rodrigo Vázquez Cerón                   Ing. Gloria Francisca Serrano Moya                                M. en C. Mario Alberto Ramírez Reyna"},{"$f":"IFERROR(VLOOKUP(A35,Hoja1!$A$1:$H$578,8,FALSE),\" \")","v":"5318-9000 ext. 2396, 2298"}]
[29,{"$f":"VLOOKUP(A36,Hoja1!$A$1:$H$578,3,FALSE)","v":1573},{"$f":"IFERROR(VLOOKUP(A36,Hoja1!$A$1:$H$578,4,FALSE),\" \")","v":"UAM"},{"$f":"IFERROR(VLOOKUP(A36,Hoja1!$A$1:$H$578,5,FALSE),\" \")","v":"Mecánica"},{"$f":"IFERROR(VLOOKUP(A36,Hoja1!$A$1:$H$578,6,FALSE),\" \")","v":"Diseño y construcción de prototipos que apoyen la docencia de las UEA relacionadas con Automatización Industrial. "},{"$f":"IFERROR(VLOOKUP(A36,Hoja1!$A$1:$H$578,7,FALSE),\" \")","v":"Dr. Miguel Magos Rivera                       Ing. José Antonio Lara Chávez                 Ing. Ricardo Godínez Bravo."},{"$f":"IFERROR(VLOOKUP(A36,Hoja1!$A$1:$H$578,8,FALSE),\" \")","v":"55- 5318 9000 ext. 1028, 2192, 9550"}]
[30,{"$f":"VLOOKUP(A37,Hoja1!$A$1:$H$578,3,FALSE)","v":1579},{"$f":"IFERROR(VLOOKUP(A37,Hoja1!$A$1:$H$578,4,FALSE),\" \")","v":"UAM"},{"$f":"IFERROR(VLOOKUP(A37,Hoja1!$A$1:$H$578,5,FALSE),\" \")","v":"Mecánica"},{"$f":"IFERROR(VLOOKUP(A37,Hoja1!$A$1:$H$578,6,FALSE),\" \")","v":"Apoyo al Departamento de Energía"},{"$f":"IFERROR(VLOOKUP(A37,Hoja1!$A$1:$H$578,7,FALSE),\" \")","v":"M. en IQ. Carlos Rogelio Tapia Medina"},{"$f":"IFERROR(VLOOKUP(A37,Hoja1!$A$1:$H$578,8,FALSE),\" \")","v":"55-5318-9047  ext. 101"}]
[31,{"$f":"VLOOKUP(A38,Hoja1!$A$1:$H$578,3,FALSE)","v":1580},{"$f":"IFERROR(VLOOKUP(A38,Hoja1!$A$1:$H$578,4,FALSE),\" \")","v":"UAM"},{"$f":"IFERROR(VLOOKUP(A38,Hoja1!$A$1:$H$578,5,FALSE),\" \")","v":"Mecánica"},{"$f":"IFERROR(VLOOKUP(A38,Hoja1!$A$1:$H$578,6,FALSE),\" \")","v":"Desarrollo y mantenimiento de los Laboratorios de Cómputo y de Hidroneumática y del brazo cartesiano"},{"$f":"IFERROR(VLOOKUP(A38,Hoja1!$A$1:$H$578,7,FALSE),\" \")","v":"M. en C. Gerardo Aragón González                                        M. en C. Alejandro León Galicia."},{"$f":"IFERROR(VLOOKUP(A38,Hoja1!$A$1:$H$578,8,FALSE),\" \")","v":"55-5318-9056"}]
[32,{"$f":"VLOOKUP(A39,Hoja1!$A$1:$H$578,3,FALSE)","v":1591},{"$f":"IFERROR(VLOOKUP(A39,Hoja1!$A$1:$H$578,4,FALSE),\" \")","v":"UAM"},{"$f":"IFERROR(VLOOKUP(A39,Hoja1!$A$1:$H$578,5,FALSE),\" \")","v":"Mecánica"},{"$f":"IFERROR(VLOOKUP(A39,Hoja1!$A$1:$H$578,6,FALSE),\" \")","v":"Construcción de Infraestructura Experimental en Óptica y Optoelectrónica"},{"$f":"IFERROR(VLOOKUP(A39,Hoja1!$A$1:$H$578,7,FALSE),\" \")","v":"Dra. Grethell Georgina Pérez Sánchez, Dr. Armando Gómez Vieyra"},{"$f":"IFERROR(VLOOKUP(A39,Hoja1!$A$1:$H$578,8,FALSE),\" \")","v":"55-5318-9000"}]
[33,{"$f":"VLOOKUP(A40,Hoja1!$A$1:$H$578,3,FALSE)","v":1594},{"$f":"IFERROR(VLOOKUP(A40,Hoja1!$A$1:$H$578,4,FALSE),\" \")","v":"UAM"},{"$f":"IFERROR(VLOOKUP(A40,Hoja1!$A$1:$H$578,5,FALSE),\" \")","v":"Mecánica"},{"$f":"IFERROR(VLOOKUP(A40,Hoja1!$A$1:$H$578,6,FALSE),\" \")","v":"Estudio de la dinámica no lineal. Aplicaciones experimentales, analíticas y numéricas"},{"$f":"IFERROR(VLOOKUP(A40,Hoja1!$A$1:$H$578,7,FALSE),\" \")","v":"Fís. Luisa Gabriela del Valle Díaz Muñoz, Dra. María Guadalupe Hernández Morales, Dr. Inti Pineda Calderón, Ing. Fís. Damián Muciño Cruz, M. en C. José Luis Jiménez Ramírez, M. en C. René Molnar de la Parra. Dr. Alberto Rubio Ponce"},{"$f":"IFERROR(VLOOKUP(A40,Hoja1!$A$1:$H$578,8,FALSE),\" \")","v":"55-5318-9000 ext. 9018"}]
[34,{"$f":"VLOOKUP(A41,Hoja1!$A$1:$H$578,3,FALSE)","v":1596},{"$f":"IFERROR(VLOOKUP(A41,Hoja1!$A$1:$H$578,4,FALSE),\" \")","v":"UAM"},{"$f":"IFERROR(VLOOKUP(A41,Hoja1!$A$1:$H$578,5,FALSE),\" \")","v":"Mecánica"},{"$f":"IFERROR(VLOOKUP(A41,Hoja1!$A$1:$H$578,6,FALSE),\" \")","v":"Crear y dar mantenimiento a la página WEB para el Grupo de Investigación “Sistemas Mecánicos de Frontera”"},{"$f":"IFERROR(VLOOKUP(A41,Hoja1!$A$1:$H$578,7,FALSE),\" \")","v":"M. en C. Gilberto Domingo Álvarez Miranda, Dr. Francisco Beltrán Carbajal, Ing. Romy Pérez Moreno, Dr. Zeferino Damián Noriega, Dr. Israel Barragán. Santiago y M. en C. Iván González Uribe."},{"$f":"IFERROR(VLOOKUP(A41,Hoja1!$A$1:$H$578,8,FALSE),\" \")","v":"55-5318-9000 ext. 9066, 9069"}]
[35,{"$f":"VLOOKUP(A42,Hoja1!$A$1:$H$578,3,FALSE)","v":1600},{"$f":"IFERROR(VLOOKUP(A42,Hoja1!$A$1:$H$578,4,FALSE),\" \")","v":"UAM"},{"$f":"IFERROR(VLOOKUP(A42,Hoja1!$A$1:$H$578,5,FALSE),\" \")","v":"Mecánica"},{"$f":"IFERROR(VLOOKUP(A42,Hoja1!$A$1:$H$578,6,FALSE),\" \")","v":"Evaluación del efecto de una fisura en el comportamiento elástico de un rotor"},{"$f":"IFERROR(VLOOKUP(A42,Hoja1!$A$1:$H$578,7,FALSE),\" \")","v":"Dr. Homero Jiménez Rabiela"},{"$f":"IFERROR(VLOOKUP(A42,Hoja1!$A$1:$H$578,8,FALSE),\" \")","v":"55-5318-9069"}]
[36,{"$f":"VLOOKUP(A43,Hoja1!$A$1:$H$578,3,FALSE)","v":1602},{"$f":"IFERROR(VLOOKUP(A43,Hoja1!$A$1:$H$578,4,FALSE),\" \")","v":"UAM"},{"$f":"IFERROR(VLOOKUP(A43,Hoja1!$A$1:$H$578,5,FALSE),\" \")","v":"Mecánica"},{"$f":"IFERROR(VLOOKUP(A43,Hoja1!$A$1:$H$578,6,FALSE),\" \")","v":"Caracterización de las propiedades mecánicas de las aleaciones ferrosas y no ferrosas en condición de colada y tratadas térmicamente"},{"$f":"IFERROR(VLOOKUP(A43,Hoja1!$A$1:$H$578,7,FALSE),\" \")","v":"Dr. Miguel Angel Suárez Rosales"},{"$f":"IFERROR(VLOOKUP(A43,Hoja1!$A$1:$H$578,8,FALSE),\" \")","v":"55- 5318-9000"}]
[37,{"$f":"VLOOKUP(A44,Hoja1!$A$1:$H$578,3,FALSE)","v":1606},{"$f":"IFERROR(VLOOKUP(A44,Hoja1!$A$1:$H$578,4,FALSE),\" \")","v":"UAM"},{"$f":"IFERROR(VLOOKUP(A44,Hoja1!$A$1:$H$578,5,FALSE),\" \")","v":"Mecánica"},{"$f":"IFERROR(VLOOKUP(A44,Hoja1!$A$1:$H$578,6,FALSE),\" \")","v":"Materiales polifuncionales en forma de películas, nanopartículas y monolitos cerámicos"},{"$f":"IFERROR(VLOOKUP(A44,Hoja1!$A$1:$H$578,7,FALSE),\" \")","v":"Mtro. Roberto Tito Hernández López               Dr. Isaías Hernández Pérez"},{"$f":"IFERROR(VLOOKUP(A44,Hoja1!$A$1:$H$578,8,FALSE),\" \")","v":"55-5318-9000 exts. 2135, 2117"}]
[38,{"$f":"VLOOKUP(A45,Hoja1!$A$1:$H$578,3,FALSE)","v":1615},{"$f":"IFERROR(VLOOKUP(A45,Hoja1!$A$1:$H$578,4,FALSE),\" \")","v":"UAM"},{"$f":"IFERROR(VLOOKUP(A45,Hoja1!$A$1:$H$578,5,FALSE),\" \")","v":"Mecánica"},{"$f":"IFERROR(VLOOKUP(A45,Hoja1!$A$1:$H$578,6,FALSE),\" \")","v":"Construcción mecánica de un dispositivo para manufactura aditiva con filamento plástico como material para la fabricación de piezas tridimensionales."},{"$f":"IFERROR(VLOOKUP(A45,Hoja1!$A$1:$H$578,7,FALSE),\" \")","v":"M. en I. Pedro García Segura               Dr. Adrián Gustavo Bravo Acosta"},{"$f":"IFERROR(VLOOKUP(A45,Hoja1!$A$1:$H$578,8,FALSE),\" \")","v":"55-5318-9072,       55-5318-9066"}]
[39,{"$f":"VLOOKUP(A46,Hoja1!$A$1:$H$578,3,FALSE)","v":1616},{"$f":"IFERROR(VLOOKUP(A46,Hoja1!$A$1:$H$578,4,FALSE),\" \")","v":"UAM"},{"$f":"IFERROR(VLOOKUP(A46,Hoja1!$A$1:$H$578,5,FALSE),\" \")","v":"Mecánica"},{"$f":"IFERROR(VLOOKUP(A46,Hoja1!$A$1:$H$578,6,FALSE),\" \")","v":"Estudio experimental de resistencia en ejes mecánicos de acero."},{"$f":"IFERROR(VLOOKUP(A46,Hoja1!$A$1:$H$578,7,FALSE),\" \")","v":"Dr. José Luis Ramírez Cruz"},{"$f":"IFERROR(VLOOKUP(A46,Hoja1!$A$1:$H$578,8,FALSE),\" \")","v":"55-53189068"}]
[40,{"$f":"VLOOKUP(A47,Hoja1!$A$1:$H$578,3,FALSE)","v":1621},{"$f":"IFERROR(VLOOKUP(A47,Hoja1!$A$1:$H$578,4,FALSE),\" \")","v":"UAM"},{"$f":"IFERROR(VLOOKUP(A47,Hoja1!$A$1:$H$578,5,FALSE),\" \")","v":"Mecánica"},{"$f":"IFERROR(VLOOKUP(A47,Hoja1!$A$1:$H$578,6,FALSE),\" \")","v":"Fortalecimiento de los circuitos justos de producción-consumo de los productos de la colmena de las abejas nativas."},{"$f":"IFERROR(VLOOKUP(A47,Hoja1!$A$1:$H$578,7,FALSE),\" \")","v":"Dr. Jesús Manuel Ramos García,              Dr. Leonel Flores Vega"},{"$f":"IFERROR(VLOOKUP(A47,Hoja1!$A$1:$H$578,8,FALSE),\" \")","v":"55-5318-9191, ext. 168"}]
[41,{"$f":"VLOOKUP(A48,Hoja1!$A$1:$H$578,3,FALSE)","v":1626},{"$f":"IFERROR(VLOOKUP(A48,Hoja1!$A$1:$H$578,4,FALSE),\" \")","v":"UAM"},{"$f":"IFERROR(VLOOKUP(A48,Hoja1!$A$1:$H$578,5,FALSE),\" \")","v":"Mecánica"},{"$f":"IFERROR(VLOOKUP(A48,Hoja1!$A$1:$H$578,6,FALSE),\" \")","v":"Desarrollo de una Ortesis con Sistema de sujeción ajustable para fracturas de antebrazo"},{"$f":"IFERROR(VLOOKUP(A48,Hoja1!$A$1:$H$578,7,FALSE),\" \")","v":"Dra. Lisaura Walkiria Rodríguez Alvarado                                               Dr. Usiel Sandino Silva Rivera                                Ing. Jesús Loyo Quijada"},{"$f":"IFERROR(VLOOKUP(A48,Hoja1!$A$1:$H$578,8,FALSE),\" \")","v":"55-5318-9000 ext. 2422, 2423"}]
[42,{"$f":"VLOOKUP(A49,Hoja1!$A$1:$H$578,3,FALSE)","v":1637},{"$f":"IFERROR(VLOOKUP(A49,Hoja1!$A$1:$H$578,4,FALSE),\" \")","v":"UAM"},{"$f":"IFERROR(VLOOKUP(A49,Hoja1!$A$1:$H$578,5,FALSE),\" \")","v":"Mecánica"},{"$f":"IFERROR(VLOOKUP(A49,Hoja1!$A$1:$H$578,6,FALSE),\" \")","v":"Revisión del equipo de protección de sala 4 del laboratorio de eléctrica (Mini Red y Módulos Experimentales)"},{"$f":"IFERROR(VLOOKUP(A49,Hoja1!$A$1:$H$578,7,FALSE),\" \")","v":"Dr. Ahmed Zekkour Zekkour                      Dr. Carlos Alberto Rivera Salamanca                                    Dr. David Antonio Aragón Verduzco"},{"$f":"IFERROR(VLOOKUP(A49,Hoja1!$A$1:$H$578,8,FALSE),\" \")","v":"55-5318-9000 ext. 9049"}]
[43,{"$f":"VLOOKUP(A50,Hoja1!$A$1:$H$578,3,FALSE)","v":1651},{"$f":"IFERROR(VLOOKUP(A50,Hoja1!$A$1:$H$578,4,FALSE),\" \")","v":"UAM"},{"$f":"IFERROR(VLOOKUP(A50,Hoja1!$A$1:$H$578,5,FALSE),\" \")","v":"Mecánica"},{"$f":"IFERROR(VLOOKUP(A50,Hoja1!$A$1:$H$578,6,FALSE),\" \")","v":"Diseño, construcción y ensamble de sistemas robóticos"},{"$f":"IFERROR(VLOOKUP(A50,Hoja1!$A$1:$H$578,7,FALSE),\" \")","v":"M. en C. Roberto Alfonso Alcántara Ramírez                                              M. en C. Jorge Miguel Jaimes Ponce"},{"$f":"IFERROR(VLOOKUP(A50,Hoja1!$A$1:$H$578,8,FALSE),\" \")","v":"55-5318-9000 ext. 9030"}]
[44,{"$f":"VLOOKUP(A51,Hoja1!$A$1:$H$578,3,FALSE)","v":{"$error":"#N/A"}},{"$f":"IFERROR(VLOOKUP(A51,Hoja1!$A$1:$H$578,4,FALSE),\" \")","v":" "},{"$f":"IFERROR(VLOOKUP(A51,Hoja1!$A$1:$H$578,5,FALSE),\" \")","v":" "},{"$f":"IFERROR(VLOOKUP(A51,Hoja1!$A$1:$H$578,6,FALSE),\" \")","v":" "},{"$f":"IFERROR(VLOOKUP(A51,Hoja1!$A$1:$H$578,7,FALSE),\" \")","v":" "},{"$f":"IFERROR(VLOOKUP(A51,Hoja1!$A$1:$H$578,8,FALSE),\" \")","v":" "}]
[45,{"$f":"VLOOKUP(A52,Hoja1!$A$1:$H$578,3,FALSE)","v":{"$error":"#N/A"}},{"$f":"IFERROR(VLOOKUP(A52,Hoja1!$A$1:$H$578,4,FALSE),\" \")","v":" "},{"$f":"IFERROR(VLOOKUP(A52,Hoja1!$A$1:$H$578,5,FALSE),\" \")","v":" "},{"$f":"IFERROR(VLOOKUP(A52,Hoja1!$A$1:$H$578,6,FALSE),\" \")","v":" "},{"$f":"IFERROR(VLOOKUP(A52,Hoja1!$A$1:$H$578,7,FALSE),\" \")","v":" "},{"$f":"IFERROR(VLOOKUP(A52,Hoja1!$A$1:$H$578,8,FALSE),\" \")","v":" "}]
[46,{"$f":"VLOOKUP(A53,Hoja1!$A$1:$H$578,3,FALSE)","v":{"$error":"#N/A"}},{"$f":"IFERROR(VLOOKUP(A53,Hoja1!$A$1:$H$578,4,FALSE),\" \")","v":" "},{"$f":"IFERROR(VLOOKUP(A53,Hoja1!$A$1:$H$578,5,FALSE),\" \")","v":" "},{"$f":"IFERROR(VLOOKUP(A53,Hoja1!$A$1:$H$578,6,FALSE),\" \")","v":" "},{"$f":"IFERROR(VLOOKUP(A53,Hoja1!$A$1:$H$578,7,FALSE),\" \")","v":" "},{"$f":"IFERROR(VLOOKUP(A53,Hoja1!$A$1:$H$578,8,FALSE),\" \")","v":" "}]
[47,{"$f":"VLOOKUP(A54,Hoja1!$A$1:$H$578,3,FALSE)","v":{"$error":"#N/A"}},{"$f":"IFERROR(VLOOKUP(A54,Hoja1!$A$1:$H$578,4,FALSE),\" \")","v":" "},{"$f":"IFERROR(VLOOKUP(A54,Hoja1!$A$1:$H$578,5,FALSE),\" \")","v":" "},{"$f":"IFERROR(VLOOKUP(A54,Hoja1!$A$1:$H$578,6,FALSE),\" \")","v":" "},{"$f":"IFERROR(VLOOKUP(A54,Hoja1!$A$1:$H$578,7,FALSE),\" \")","v":" "},{"$f":"IFERROR(VLOOKUP(A54,Hoja1!$A$1:$H$578,8,FALSE),\" \")","v":" "}]
[48,{"$f":"VLOOKUP(A55,Hoja1!$A$1:$H$578,3,FALSE)","v":{"$error":"#N/A"}},{"$f":"IFERROR(VLOOKUP(A55,Hoja1!$A$1:$H$578,4,FALSE),\" \")","v":" "},{"$f":"IFERROR(VLOOKUP(A55,Hoja1!$A$1:$H$578,5,FALSE),\" \")","v":" "},{"$f":"IFERROR(VLOOKUP(A55,Hoja1!$A$1:$H$578,6,FALSE),\" \")","v":" "},{"$f":"IFERROR(VLOOKUP(A55,Hoja1!$A$1:$H$578,7,FALSE),\" \")","v":" "},{"$f":"IFERROR(VLOOKUP(A55,Hoja1!$A$1:$H$578,8,FALSE),\" \")","v":" "}]
[49,{"$f":"VLOOKUP(A56,Hoja1!$A$1:$H$578,3,FALSE)","v":{"$error":"#N/A"}},{"$f":"IFERROR(VLOOKUP(A56,Hoja1!$A$1:$H$578,4,FALSE),\" \")","v":" "},{"$f":"IFERROR(VLOOKUP(A56,Hoja1!$A$1:$H$578,5,FALSE),\" \")","v":" "},{"$f":"IFERROR(VLOOKUP(A56,Hoja1!$A$1:$H$578,6,FALSE),\" \")","v":" "},{"$f":"IFERROR(VLOOKUP(A56,Hoja1!$A$1:$H$578,7,FALSE),\" \")","v":" "},{"$f":"IFERROR(VLOOKUP(A56,Hoja1!$A$1:$H$578,8,FALSE),\" \")","v":" "}]
[50,{"$f":"VLOOKUP(A57,Hoja1!$A$1:$H$578,3,FALSE)","v":{"$error":"#N/A"}},{"$f":"IFERROR(VLOOKUP(A57,Hoja1!$A$1:$H$578,4,FALSE),\" \")","v":" "},{"$f":"IFERROR(VLOOKUP(A57,Hoja1!$A$1:$H$578,5,FALSE),\" \")","v":" "},{"$f":"IFERROR(VLOOKUP(A57,Hoja1!$A$1:$H$578,6,FALSE),\" \")","v":" "},{"$f":"IFERROR(VLOOKUP(A57,Hoja1!$A$1:$H$578,7,FALSE),\" \")","v":" "},{"$f":"IFERROR(VLOOKUP(A57,Hoja1!$A$1:$H$578,8,FALSE),\" \")","v":" "}]
[51,{"$f":"VLOOKUP(A58,Hoja1!$A$1:$H$578,3,FALSE)","v":{"$error":"#N/A"}},{"$f":"IFERROR(VLOOKUP(A58,Hoja1!$A$1:$H$578,4,FALSE),\" \")","v":" "},{"$f":"IFERROR(VLOOKUP(A58,Hoja1!$A$1:$H$578,5,FALSE),\" \")","v":" "},{"$f":"IFERROR(VLOOKUP(A58,Hoja1!$A$1:$H$578,6,FALSE),\" \")","v":" "},{"$f":"IFERROR(VLOOKUP(A58,Hoja1!$A$1:$H$578,7,FALSE),\" \")","v":" "},{"$f":"IFERROR(VLOOKUP(A58,Hoja1!$A$1:$H$578,8,FALSE),\" \")","v":" "}]
[52,{"$f":"VLOOKUP(A59,Hoja1!$A$1:$H$578,3,FALSE)","v":{"$error":"#N/A"}},{"$f":"IFERROR(VLOOKUP(A59,Hoja1!$A$1:$H$578,4,FALSE),\" \")","v":" "},{"$f":"IFERROR(VLOOKUP(A59,Hoja1!$A$1:$H$578,5,FALSE),\" \")","v":" "},{"$f":"IFERROR(VLOOKUP(A59,Hoja1!$A$1:$H$578,6,FALSE),\" \")","v":" "},{"$f":"IFERROR(VLOOKUP(A59,Hoja1!$A$1:$H$578,7,FALSE),\" \")","v":" "},{"$f":"IFERROR(VLOOKUP(A59,Hoja1!$A$1:$H$578,8,FALSE),\" \")","v":" "}]
[53,{"$f":"VLOOKUP(A60,Hoja1!$A$1:$H$578,3,FALSE)","v":{"$error":"#N/A"}},{"$f":"IFERROR(VLOOKUP(A60,Hoja1!$A$1:$H$578,4,FALSE),\" \")","v":" "},{"$f":"IFERROR(VLOOKUP(A60,Hoja1!$A$1:$H$578,5,FALSE),\" \")","v":" "},{"$f":"IFERROR(VLOOKUP(A60,Hoja1!$A$1:$H$578,6,FALSE),\" \")","v":" "},{"$f":"IFERROR(VLOOKUP(A60,Hoja1!$A$1:$H$578,7,FALSE),\" \")","v":" "},{"$f":"IFERROR(VLOOKUP(A60,Hoja1!$A$1:$H$578,8,FALSE),\" \")","v":" "}]
[54,{"$f":"VLOOKUP(A61,Hoja1!$A$1:$H$578,3,FALSE)","v":{"$error":"#N/A"}},{"$f":"IFERROR(VLOOKUP(A61,Hoja1!$A$1:$H$578,4,FALSE),\" \")","v":" "},{"$f":"IFERROR(VLOOKUP(A61,Hoja1!$A$1:$H$578,5,FALSE),\" \")","v":" "},{"$f":"IFERROR(VLOOKUP(A61,Hoja1!$A$1:$H$578,6,FALSE),\" \")","v":" "},{"$f":"IFERROR(VLOOKUP(A61,Hoja1!$A$1:$H$578,7,FALSE),\" \")","v":" "},{"$f":"IFERROR(VLOOKUP(A61,Hoja1!$A$1:$H$578,8,FALSE),\" \")","v":" "}]
[55,{"$f":"VLOOKUP(A62,Hoja1!$A$1:$H$578,3,FALSE)","v":{"$error":"#N/A"}},{"$f":"IFERROR(VLOOKUP(A62,Hoja1!$A$1:$H$578,4,FALSE),\" \")","v":" "},{"$f":"IFERROR(VLOOKUP(A62,Hoja1!$A$1:$H$578,5,FALSE),\" \")","v":" "},{"$f":"IFERROR(VLOOKUP(A62,Hoja1!$A$1:$H$578,6,FALSE),\" \")","v":" "},{"$f":"IFERROR(VLOOKUP(A62,Hoja1!$A$1:$H$578,7,FALSE),\" \")","v":" "},{"$f":"IFERROR(VLOOKUP(A62,Hoja1!$A$1:$H$578,8,FALSE),\" \")","v":" "}]
[56,{"$f":"VLOOKUP(A63,Hoja1!$A$1:$H$578,3,FALSE)","v":{"$error":"#N/A"}},{"$f":"IFERROR(VLOOKUP(A63,Hoja1!$A$1:$H$578,4,FALSE),\" \")","v":" "},{"$f":"IFERROR(VLOOKUP(A63,Hoja1!$A$1:$H$578,5,FALSE),\" \")","v":" "},{"$f":"IFERROR(VLOOKUP(A63,Hoja1!$A$1:$H$578,6,FALSE),\" \")","v":" "},{"$f":"IFERROR(VLOOKUP(A63,Hoja1!$A$1:$H$578,7,FALSE),\" \")","v":" "},{"$f":"IFERROR(VLOOKUP(A63,Hoja1!$A$1:$H$578,8,FALSE),\" \")","v":" "}]
[57,{"$f":"VLOOKUP(A64,Hoja1!$A$1:$H$578,3,FALSE)","v":{"$error":"#N/A"}},{"$f":"IFERROR(VLOOKUP(A64,Hoja1!$A$1:$H$578,4,FALSE),\" \")","v":" "},{"$f":"IFERROR(VLOOKUP(A64,Hoja1!$A$1:$H$578,5,FALSE),\" \")","v":" "},{"$f":"IFERROR(VLOOKUP(A64,Hoja1!$A$1:$H$578,6,FALSE),\" \")","v":" "},{"$f":"IFERROR(VLOOKUP(A64,Hoja1!$A$1:$H$578,7,FALSE),\" \")","v":" "},{"$f":"IFERROR(VLOOKUP(A64,Hoja1!$A$1:$H$578,8,FALSE),\" \")","v":" "}]
[58,{"$f":"VLOOKUP(A65,Hoja1!$A$1:$H$578,3,FALSE)","v":{"$error":"#N/A"}},{"$f":"IFERROR(VLOOKUP(A65,Hoja1!$A$1:$H$578,4,FALSE),\" \")","v":" "},{"$f":"IFERROR(VLOOKUP(A65,Hoja1!$A$1:$H$578,5,FALSE),\" \")","v":" "},{"$f":"IFERROR(VLOOKUP(A65,Hoja1!$A$1:$H$578,6,FALSE),\" \")","v":" "},{"$f":"IFERROR(VLOOKUP(A65,Hoja1!$A$1:$H$578,7,FALSE),\" \")","v":" "},{"$f":"IFERROR(VLOOKUP(A65,Hoja1!$A$1:$H$578,8,FALSE),\" \")","v":" "}]
[59,{"$f":"VLOOKUP(A66,Hoja1!$A$1:$H$578,3,FALSE)","v":{"$error":"#N/A"}},{"$f":"IFERROR(VLOOKUP(A66,Hoja1!$A$1:$H$578,4,FALSE),\" \")","v":" "},{"$f":"IFERROR(VLOOKUP(A66,Hoja1!$A$1:$H$578,5,FALSE),\" \")","v":" "},{"$f":"IFERROR(VLOOKUP(A66,Hoja1!$A$1:$H$578,6,FALSE),\" \")","v":" "},{"$f":"IFERROR(VLOOKUP(A66,Hoja1!$A$1:$H$578,7,FALSE),\" \")","v":" "},{"$f":"IFERROR(VLOOKUP(A66,Hoja1!$A$1:$H$578,8,FALSE),\" \")","v":" "}]
[60,{"$f":"VLOOKUP(A67,Hoja1!$A$1:$H$578,3,FALSE)","v":{"$error":"#N/A"}},{"$f":"IFERROR(VLOOKUP(A67,Hoja1!$A$1:$H$578,4,FALSE),\" \")","v":" "},{"$f":"IFERROR(VLOOKUP(A67,Hoja1!$A$1:$H$578,5,FALSE),\" \")","v":" "},{"$f":"IFERROR(VLOOKUP(A67,Hoja1!$A$1:$H$578,6,FALSE),\" \")","v":" "},{"$f":"IFERROR(VLOOKUP(A67,Hoja1!$A$1:$H$578,7,FALSE),\" \")","v":" "},{"$f":"IFERROR(VLOOKUP(A67,Hoja1!$A$1:$H$578,8,FALSE),\" \")","v":" "}]
[61,{"$f":"VLOOKUP(A68,Hoja1!$A$1:$H$578,3,FALSE)","v":{"$error":"#N/A"}},{"$f":"IFERROR(VLOOKUP(A68,Hoja1!$A$1:$H$578,4,FALSE),\" \")","v":" "},{"$f":"IFERROR(VLOOKUP(A68,Hoja1!$A$1:$H$578,5,FALSE),\" \")","v":" "},{"$f":"IFERROR(VLOOKUP(A68,Hoja1!$A$1:$H$578,6,FALSE),\" \")","v":" "},{"$f":"IFERROR(VLOOKUP(A68,Hoja1!$A$1:$H$578,7,FALSE),\" \")","v":" "},{"$f":"IFERROR(VLOOKUP(A68,Hoja1!$A$1:$H$578,8,FALSE),\" \")","v":" "}]
[62,{"$f":"VLOOKUP(A69,Hoja1!$A$1:$H$578,3,FALSE)","v":{"$error":"#N/A"}},{"$f":"IFERROR(VLOOKUP(A69,Hoja1!$A$1:$H$578,4,FALSE),\" \")","v":" "},{"$f":"IFERROR(VLOOKUP(A69,Hoja1!$A$1:$H$578,5,FALSE),\" \")","v":" "},{"$f":"IFERROR(VLOOKUP(A69,Hoja1!$A$1:$H$578,6,FALSE),\" \")","v":" "},{"$f":"IFERROR(VLOOKUP(A69,Hoja1!$A$1:$H$578,7,FALSE),\" \")","v":" "},{"$f":"IFERROR(VLOOKUP(A69,Hoja1!$A$1:$H$578,8,FALSE),\" \")","v":" "}]
[63,{"$f":"VLOOKUP(A70,Hoja1!$A$1:$H$578,3,FALSE)","v":{"$error":"#N/A"}},{"$f":"IFERROR(VLOOKUP(A70,Hoja1!$A$1:$H$578,4,FALSE),\" \")","v":" "},{"$f":"IFERROR(VLOOKUP(A70,Hoja1!$A$1:$H$578,5,FALSE),\" \")","v":" "},{"$f":"IFERROR(VLOOKUP(A70,Hoja1!$A$1:$H$578,6,FALSE),\" \")","v":" "},{"$f":"IFERROR(VLOOKUP(A70,Hoja1!$A$1:$H$578,7,FALSE),\" \")","v":" "},{"$f":"IFERROR(VLOOKUP(A70,Hoja1!$A$1:$H$578,8,FALSE),\" \")","v":" "}]
[64,{"$f":"VLOOKUP(A71,Hoja1!$A$1:$H$578,3,FALSE)","v":{"$error":"#N/A"}},{"$f":"IFERROR(VLOOKUP(A71,Hoja1!$A$1:$H$578,4,FALSE),\" \")","v":" "},{"$f":"IFERROR(VLOOKUP(A71,Hoja1!$A$1:$H$578,5,FALSE),\" \")","v":" "},{"$f":"IFERROR(VLOOKUP(A71,Hoja1!$A$1:$H$578,6,FALSE),\" \")","v":" "},{"$f":"IFERROR(VLOOKUP(A71,Hoja1!$A$1:$H$578,7,FALSE),\" \")","v":" "},{"$f":"IFERROR(VLOOKUP(A71,Hoja1!$A$1:$H$578,8,FALSE),\" \")","v":" "}]
[65,{"$f":"VLOOKUP(A72,Hoja1!$A$1:$H$578,3,FALSE)","v":{"$error":"#N/A"}},{"$f":"IFERROR(VLOOKUP(A72,Hoja1!$A$1:$H$578,4,FALSE),\" \")","v":" "},{"$f":"IFERROR(VLOOKUP(A72,Hoja1!$A$1:$H$578,5,FALSE),\" \")","v":" "},{"$f":"IFERROR(VLOOKUP(A72,Hoja1!$A$1:$H$578,6,FALSE),\" \")","v":" "},{"$f":"IFERROR(VLOOKUP(A72,Hoja1!$A$1:$H$578,7,FALSE),\" \")","v":" "},{"$f":"IFERROR(VLOOKUP(A72,Hoja1!$A$1:$H$578,8,FALSE),\" \")","v":" "}]
[66,{"$f":"VLOOKUP(A73,Hoja1!$A$1:$H$578,3,FALSE)","v":{"$error":"#N/A"}},{"$f":"IFERROR(VLOOKUP(A73,Hoja1!$A$1:$H$578,4,FALSE),\" \")","v":" "},{"$f":"IFERROR(VLOOKUP(A73,Hoja1!$A$1:$H$578,5,FALSE),\" \")","v":" "},{"$f":"IFERROR(VLOOKUP(A73,Hoja1!$A$1:$H$578,6,FALSE),\" \")","v":" "},{"$f":"IFERROR(VLOOKUP(A73,Hoja1!$A$1:$H$578,7,FALSE),\" \")","v":" "},{"$f":"IFERROR(VLOOKUP(A73,Hoja1!$A$1:$H$578,8,FALSE),\" \")","v":" "}]
[67,{"$f":"VLOOKUP(A74,Hoja1!$A$1:$H$578,3,FALSE)","v":{"$error":"#N/A"}},{"$f":"IFERROR(VLOOKUP(A74,Hoja1!$A$1:$H$578,4,FALSE),\" \")","v":" "},{"$f":"IFERROR(VLOOKUP(A74,Hoja1!$A$1:$H$578,5,FALSE),\" \")","v":" "},{"$f":"IFERROR(VLOOKUP(A74,Hoja1!$A$1:$H$578,6,FALSE),\" \")","v":" "},{"$f":"IFERROR(VLOOKUP(A74,Hoja1!$A$1:$H$578,7,FALSE),\" \")","v":" "},{"$f":"IFERROR(VLOOKUP(A74,Hoja1!$A$1:$H$578,8,FALSE),\" \")","v":" "}]
[68,{"$f":"VLOOKUP(A75,Hoja1!$A$1:$H$578,3,FALSE)","v":{"$error":"#N/A"}},{"$f":"IFERROR(VLOOKUP(A75,Hoja1!$A$1:$H$578,4,FALSE),\" \")","v":" "},{"$f":"IFERROR(VLOOKUP(A75,Hoja1!$A$1:$H$578,5,FALSE),\" \")","v":" "},{"$f":"IFERROR(VLOOKUP(A75,Hoja1!$A$1:$H$578,6,FALSE),\" \")","v":" "},{"$f":"IFERROR(VLOOKUP(A75,Hoja1!$A$1:$H$578,7,FALSE),\" \")","v":" "},{"$f":"IFERROR(VLOOKUP(A75,Hoja1!$A$1:$H$578,8,FALSE),\" \")","v":" "}]
[69,{"$f":"VLOOKUP(A76,Hoja1!$A$1:$H$578,3,FALSE)","v":{"$error":"#N/A"}},{"$f":"IFERROR(VLOOKUP(A76,Hoja1!$A$1:$H$578,4,FALSE),\" \")","v":" "},{"$f":"IFERROR(VLOOKUP(A76,Hoja1!$A$1:$H$578,5,FALSE),\" \")","v":" "},{"$f":"IFERROR(VLOOKUP(A76,Hoja1!$A$1:$H$578,6,FALSE),\" \")","v":" "},{"$f":"IFERROR(VLOOKUP(A76,Hoja1!$A$1:$H$578,7,FALSE),\" \")","v":" "},{"$f":"IFERROR(VLOOKUP(A76,Hoja1!$A$1:$H$578,8,FALSE),\" \")","v":" "}]
[70,{"$f":"VLOOKUP(A77,Hoja1!$A$1:$H$578,3,FALSE)","v":{"$error":"#N/A"}},{"$f":"IFERROR(VLOOKUP(A77,Hoja1!$A$1:$H$578,4,FALSE),\" \")","v":" "},{"$f":"IFERROR(VLOOKUP(A77,Hoja1!$A$1:$H$578,5,FALSE),\" \")","v":" "},{"$f":"IFERROR(VLOOKUP(A77,Hoja1!$A$1:$H$578,6,FALSE),\" \")","v":" "},{"$f":"IFERROR(VLOOKUP(A77,Hoja1!$A$1:$H$578,7,FALSE),\" \")","v":" "},{"$f":"IFERROR(VLOOKUP(A77,Hoja1!$A$1:$H$578,8,FALSE),\" \")","v":" "}]
[71,{"$f":"VLOOKUP(A78,Hoja1!$A$1:$H$578,3,FALSE)","v":{"$error":"#N/A"}},{"$f":"IFERROR(VLOOKUP(A78,Hoja1!$A$1:$H$578,4,FALSE),\" \")","v":" "},{"$f":"IFERROR(VLOOKUP(A78,Hoja1!$A$1:$H$578,5,FALSE),\" \")","v":" "},{"$f":"IFERROR(VLOOKUP(A78,Hoja1!$A$1:$H$578,6,FALSE),\" \")","v":" "},{"$f":"IFERROR(VLOOKUP(A78,Hoja1!$A$1:$H$578,7,FALSE),\" \")","v":" "},{"$f":"IFERROR(VLOOKUP(A78,Hoja1!$A$1:$H$578,8,FALSE),\" \")","v":" "}]
[72,{"$f":"VLOOKUP(A79,Hoja1!$A$1:$H$578,3,FALSE)","v":{"$error":"#N/A"}},{"$f":"IFERROR(VLOOKUP(A79,Hoja1!$A$1:$H$578,4,FALSE),\" \")","v":" "},{"$f":"IFERROR(VLOOKUP(A79,Hoja1!$A$1:$H$578,5,FALSE),\" \")","v":" "},{"$f":"IFERROR(VLOOKUP(A79,Hoja1!$A$1:$H$578,6,FALSE),\" \")","v":" "},{"$f":"IFERROR(VLOOKUP(A79,Hoja1!$A$1:$H$578,7,FALSE),\" \")","v":" "},{"$f":"IFERROR(VLOOKUP(A79,Hoja1!$A$1:$H$578,8,FALSE),\" \")","v":" "}]
[73,{"$f":"VLOOKUP(A80,Hoja1!$A$1:$H$578,3,FALSE)","v":{"$error":"#N/A"}},{"$f":"IFERROR(VLOOKUP(A80,Hoja1!$A$1:$H$578,4,FALSE),\" \")","v":" "},{"$f":"IFERROR(VLOOKUP(A80,Hoja1!$A$1:$H$578,5,FALSE),\" \")","v":" "},{"$f":"IFERROR(VLOOKUP(A80,Hoja1!$A$1:$H$578,6,FALSE),\" \")","v":" "},{"$f":"IFERROR(VLOOKUP(A80,Hoja1!$A$1:$H$578,7,FALSE),\" \")","v":" "},{"$f":"IFERROR(VLOOKUP(A80,Hoja1!$A$1:$H$578,8,FALSE),\" \")","v":" "}]
[74,{"$f":"VLOOKUP(A81,Hoja1!$A$1:$H$578,3,FALSE)","v":{"$error":"#N/A"}},{"$f":"IFERROR(VLOOKUP(A81,Hoja1!$A$1:$H$578,4,FALSE),\" \")","v":" "},{"$f":"IFERROR(VLOOKUP(A81,Hoja1!$A$1:$H$578,5,FALSE),\" \")","v":" "},{"$f":"IFERROR(VLOOKUP(A81,Hoja1!$A$1:$H$578,6,FALSE),\" \")","v":" "},{"$f":"IFERROR(VLOOKUP(A81,Hoja1!$A$1:$H$578,7,FALSE),\" \")","v":" "},{"$f":"IFERROR(VLOOKUP(A81,Hoja1!$A$1:$H$578,8,FALSE),\" \")","v":" "}]
[75,{"$f":"VLOOKUP(A82,Hoja1!$A$1:$H$578,3,FALSE)","v":{"$error":"#N/A"}},{"$f":"IFERROR(VLOOKUP(A82,Hoja1!$A$1:$H$578,4,FALSE),\" \")","v":" "},{"$f":"IFERROR(VLOOKUP(A82,Hoja1!$A$1:$H$578,5,FALSE),\" \")","v":" "},{"$f":"IFERROR(VLOOKUP(A82,Hoja1!$A$1:$H$578,6,FALSE),\" \")","v":" "},{"$f":"IFERROR(VLOOKUP(A82,Hoja1!$A$1:$H$578,7,FALSE),\" \")","v":" "},{"$f":"IFERROR(VLOOKUP(A82,Hoja1!$A$1:$H$578,8,FALSE),\" \")","v":" "}]
[76,{"$f":"VLOOKUP(A83,Hoja1!$A$1:$H$578,3,FALSE)","v":{"$error":"#N/A"}},{"$f":"IFERROR(VLOOKUP(A83,Hoja1!$A$1:$H$578,4,FALSE),\" \")","v":" "},{"$f":"IFERROR(VLOOKUP(A83,Hoja1!$A$1:$H$578,5,FALSE),\" \")","v":" "},{"$f":"IFERROR(VLOOKUP(A83,Hoja1!$A$1:$H$578,6,FALSE),\" \")","v":" "},{"$f":"IFERROR(VLOOKUP(A83,Hoja1!$A$1:$H$578,7,FALSE),\" \")","v":" "},{"$f":"IFERROR(VLOOKUP(A83,Hoja1!$A$1:$H$578,8,FALSE),\" \")","v":" "}]
[77,{"$f":"VLOOKUP(A84,Hoja1!$A$1:$H$578,3,FALSE)","v":{"$error":"#N/A"}},{"$f":"IFERROR(VLOOKUP(A84,Hoja1!$A$1:$H$578,4,FALSE),\" \")","v":" "},{"$f":"IFERROR(VLOOKUP(A84,Hoja1!$A$1:$H$578,5,FALSE),\" \")","v":" "},{"$f":"IFERROR(VLOOKUP(A84,Hoja1!$A$1:$H$578,6,FALSE),\" \")","v":" "},{"$f":"IFERROR(VLOOKUP(A84,Hoja1!$A$1:$H$578,7,FALSE),\" \")","v":" "},{"$f":"IFERROR(VLOOKUP(A84,Hoja1!$A$1:$H$578,8,FALSE),\" \")","v":" "}]
[78,{"$f":"VLOOKUP(A85,Hoja1!$A$1:$H$578,3,FALSE)","v":{"$error":"#N/A"}},{"$f":"IFERROR(VLOOKUP(A85,Hoja1!$A$1:$H$578,4,FALSE),\" \")","v":" "},{"$f":"IFERROR(VLOOKUP(A85,Hoja1!$A$1:$H$578,5,FALSE),\" \")","v":" "},{"$f":"IFERROR(VLOOKUP(A85,Hoja1!$A$1:$H$578,6,FALSE),\" \")","v":" "},{"$f":"IFERROR(VLOOKUP(A85,Hoja1!$A$1:$H$578,7,FALSE),\" \")","v":" "},{"$f":"IFERROR(VLOOKUP(A85,Hoja1!$A$1:$H$578,8,FALSE),\" \")","v":" "}]
[79,{"$f":"VLOOKUP(A86,Hoja1!$A$1:$H$578,3,FALSE)","v":{"$error":"#N/A"}},{"$f":"IFERROR(VLOOKUP(A86,Hoja1!$A$1:$H$578,4,FALSE),\" \")","v":" "},{"$f":"IFERROR(VLOOKUP(A86,Hoja1!$A$1:$H$578,5,FALSE),\" \")","v":" "},{"$f":"IFERROR(VLOOKUP(A86,Hoja1!$A$1:$H$578,6,FALSE),\" \")","v":" "},{"$f":"IFERROR(VLOOKUP(A86,Hoja1!$A$1:$H$578,7,FALSE),\" \")","v":" "},{"$f":"IFERROR(VLOOKUP(A86,Hoja1!$A$1:$H$578,8,FALSE),\" \")","v":" "}]
[80,{"$f":"VLOOKUP(A87,Hoja1!$A$1:$H$578,3,FALSE)","v":{"$error":"#N/A"}},{"$f":"IFERROR(VLOOKUP(A87,Hoja1!$A$1:$H$578,4,FALSE),\" \")","v":" "},{"$f":"IFERROR(VLOOKUP(A87,Hoja1!$A$1:$H$578,5,FALSE),\" \")","v":" "},{"$f":"IFERROR(VLOOKUP(A87,Hoja1!$A$1:$H$578,6,FALSE),\" \")","v":" "},{"$f":"IFERROR(VLOOKUP(A87,Hoja1!$A$1:$H$578,7,FALSE),\" \")","v":" "},{"$f":"IFERROR(VLOOKUP(A87,Hoja1!$A$1:$H$578,8,FALSE),\" \")","v":" "}]
[81,{"$f":"VLOOKUP(A88,Hoja1!$A$1:$H$578,3,FALSE)","v":{"$error":"#N/A"}},{"$f":"IFERROR(VLOOKUP(A88,Hoja1!$A$1:$H$578,4,FALSE),\" \")","v":" "},{"$f":"IFERROR(VLOOKUP(A88,Hoja1!$A$1:$H$578,5,FALSE),\" \")","v":" "},{"$f":"IFERROR(VLOOKUP(A88,Hoja1!$A$1:$H$578,6,FALSE),\" \")","v":" "},{"$f":"IFERROR(VLOOKUP(A88,Hoja1!$A$1:$H$578,7,FALSE),\" \")","v":" "},{"$f":"IFERROR(VLOOKUP(A88,Hoja1!$A$1:$H$578,8,FALSE),\" \")","v":" "}]
[82,{"$f":"VLOOKUP(A89,Hoja1!$A$1:$H$578,3,FALSE)","v":{"$error":"#N/A"}},{"$f":"IFERROR(VLOOKUP(A89,Hoja1!$A$1:$H$578,4,FALSE),\" \")","v":" "},{"$f":"IFERROR(VLOOKUP(A89,Hoja1!$A$1:$H$578,5,FALSE),\" \")","v":" "},{"$f":"IFERROR(VLOOKUP(A89,Hoja1!$A$1:$H$578,6,FALSE),\" \")","v":" "},{"$f":"IFERROR(VLOOKUP(A89,Hoja1!$A$1:$H$578,7,FALSE),\" \")","v":" "},{"$f":"IFERROR(VLOOKUP(A89,Hoja1!$A$1:$H$578,8,FALSE),\" \")","v":" "}]
[83,{"$f":"VLOOKUP(A90,Hoja1!$A$1:$H$578,3,FALSE)","v":{"$error":"#N/A"}},{"$f":"IFERROR(VLOOKUP(A90,Hoja1!$A$1:$H$578,4,FALSE),\" \")","v":" "},{"$f":"IFERROR(VLOOKUP(A90,Hoja1!$A$1:$H$578,5,FALSE),\" \")","v":" "},{"$f":"IFERROR(VLOOKUP(A90,Hoja1!$A$1:$H$578,6,FALSE),\" \")","v":" "},{"$f":"IFERROR(VLOOKUP(A90,Hoja1!$A$1:$H$578,7,FALSE),\" \")","v":" "},{"$f":"IFERROR(VLOOKUP(A90,Hoja1!$A$1:$H$578,8,FALSE),\" \")","v":" "}]
[84,{"$f":"VLOOKUP(A91,Hoja1!$A$1:$H$578,3,FALSE)","v":{"$error":"#N/A"}},{"$f":"IFERROR(VLOOKUP(A91,Hoja1!$A$1:$H$578,4,FALSE),\" \")","v":" "},{"$f":"IFERROR(VLOOKUP(A91,Hoja1!$A$1:$H$578,5,FALSE),\" \")","v":" "},{"$f":"IFERROR(VLOOKUP(A91,Hoja1!$A$1:$H$578,6,FALSE),\" \")","v":" "},{"$f":"IFERROR(VLOOKUP(A91,Hoja1!$A$1:$H$578,7,FALSE),\" \")","v":" "},{"$f":"IFERROR(VLOOKUP(A91,Hoja1!$A$1:$H$578,8,FALSE),\" \")","v":" "}]
[85,{"$f":"VLOOKUP(A92,Hoja1!$A$1:$H$578,3,FALSE)","v":{"$error":"#N/A"}},{"$f":"IFERROR(VLOOKUP(A92,Hoja1!$A$1:$H$578,4,FALSE),\" \")","v":" "},{"$f":"IFERROR(VLOOKUP(A92,Hoja1!$A$1:$H$578,5,FALSE),\" \")","v":" "},{"$f":"IFERROR(VLOOKUP(A92,Hoja1!$A$1:$H$578,6,FALSE),\" \")","v":" "},{"$f":"IFERROR(VLOOKUP(A92,Hoja1!$A$1:$H$578,7,FALSE),\" \")","v":" "},{"$f":"IFERROR(VLOOKUP(A92,Hoja1!$A$1:$H$578,8,FALSE),\" \")","v":" "}]
[86,{"$f":"VLOOKUP(A93,Hoja1!$A$1:$H$578,3,FALSE)","v":{"$error":"#N/A"}},{"$f":"IFERROR(VLOOKUP(A93,Hoja1!$A$1:$H$578,4,FALSE),\" \")","v":" "},{"$f":"IFERROR(VLOOKUP(A93,Hoja1!$A$1:$H$578,5,FALSE),\" \")","v":" "},{"$f":"IFERROR(VLOOKUP(A93,Hoja1!$A$1:$H$578,6,FALSE),\" \")","v":" "},{"$f":"IFERROR(VLOOKUP(A93,Hoja1!$A$1:$H$578,7,FALSE),\" \")","v":" "},{"$f":"IFERROR(VLOOKUP(A93,Hoja1!$A$1:$H$578,8,FALSE),\" \")","v":" "}]
[87,{"$f":"VLOOKUP(A94,Hoja1!$A$1:$H$578,3,FALSE)","v":{"$error":"#N/A"}},{"$f":"IFERROR(VLOOKUP(A94,Hoja1!$A$1:$H$578,4,FALSE),\" \")","v":" "},{"$f":"IFERROR(VLOOKUP(A94,Hoja1!$A$1:$H$578,5,FALSE),\" \")","v":" "},{"$f":"IFERROR(VLOOKUP(A94,Hoja1!$A$1:$H$578,6,FALSE),\" \")","v":" "},{"$f":"IFERROR(VLOOKUP(A94,Hoja1!$A$1:$H$578,7,FALSE),\" \")","v":" "},{"$f":"IFERROR(VLOOKUP(A94,Hoja1!$A$1:$H$578,8,FALSE),\" \")","v":" "}]
[88,{"$f":"VLOOKUP(A95,Hoja1!$A$1:$H$578,3,FALSE)","v":{"$error":"#N/A"}},{"$f":"IFERROR(VLOOKUP(A95,Hoja1!$A$1:$H$578,4,FALSE),\" \")","v":" "},{"$f":"IFERROR(VLOOKUP(A95,Hoja1!$A$1:$H$578,5,FALSE),\" \")","v":" "},{"$f":"IFERROR(VLOOKUP(A95,Hoja1!$A$1:$H$578,6,FALSE),\" \")","v":" "},{"$f":"IFERROR(VLOOKUP(A95,Hoja1!$A$1:$H$578,7,FALSE),\" \")","v":" "},{"$f":"IFERROR(VLOOKUP(A95,Hoja1!$A$1:$H$578,8,FALSE),\" \")","v":" "}]
[89,{"$f":"VLOOKUP(A96,Hoja1!$A$1:$H$578,3,FALSE)","v":{"$error":"#N/A"}},{"$f":"IFERROR(VLOOKUP(A96,Hoja1!$A$1:$H$578,4,FALSE),\" \")","v":" "},{"$f":"IFERROR(VLOOKUP(A96,Hoja1!$A$1:$H$578,5,FALSE),\" \")","v":" "},{"$f":"IFERROR(VLOOKUP(A96,Hoja1!$A$1:$H$578,6,FALSE),\" \")","v":" "},{"$f":"IFERROR(VLOOKUP(A96,Hoja1!$A$1:$H$578,7,FALSE),\" \")","v":" "},{"$f":"IFERROR(VLOOKUP(A96,Hoja1!$A$1:$H$578,8,FALSE),\" \")","v":" "}]
[90,{"$f":"VLOOKUP(A97,Hoja1!$A$1:$H$578,3,FALSE)","v":{"$error":"#N/A"}},{"$f":"IFERROR(VLOOKUP(A97,Hoja1!$A$1:$H$578,4,FALSE),\" \")","v":" "},{"$f":"IFERROR(VLOOKUP(A97,Hoja1!$A$1:$H$578,5,FALSE),\" \")","v":" "},{"$f":"IFERROR(VLOOKUP(A97,Hoja1!$A$1:$H$578,6,FALSE),\" \")","v":" "},{"$f":"IFERROR(VLOOKUP(A97,Hoja1!$A$1:$H$578,7,FALSE),\" \")","v":" "},{"$f":"IFERROR(VLOOKUP(A97,Hoja1!$A$1:$H$578,8,FALSE),\" \")","v":" "}]
[91,{"$f":"VLOOKUP(A98,Hoja1!$A$1:$H$578,3,FALSE)","v":{"$error":"#N/A"}},{"$f":"IFERROR(VLOOKUP(A98,Hoja1!$A$1:$H$578,4,FALSE),\" \")","v":" "},{"$f":"IFERROR(VLOOKUP(A98,Hoja1!$A$1:$H$578,5,FALSE),\" \")","v":" "},{"$f":"IFERROR(VLOOKUP(A98,Hoja1!$A$1:$H$578,6,FALSE),\" \")","v":" "},{"$f":"IFERROR(VLOOKUP(A98,Hoja1!$A$1:$H$578,7,FALSE),\" \")","v":" "},{"$f":"IFERROR(VLOOKUP(A98,Hoja1!$A$1:$H$578,8,FALSE),\" \")","v":" "}]
[92,{"$f":"VLOOKUP(A99,Hoja1!$A$1:$H$578,3,FALSE)","v":{"$error":"#N/A"}},{"$f":"IFERROR(VLOOKUP(A99,Hoja1!$A$1:$H$578,4,FALSE),\" \")","v":" "},{"$f":"IFERROR(VLOOKUP(A99,Hoja1!$A$1:$H$578,5,FALSE),\" \")","v":" "},{"$f":"IFERROR(VLOOKUP(A99,Hoja1!$A$1:$H$578,6,FALSE),\" \")","v":" "},{"$f":"IFERROR(VLOOKUP(A99,Hoja1!$A$1:$H$578,7,FALSE),\" \")","v":" "},{"$f":"IFERROR(VLOOKUP(A99,Hoja1!$A$1:$H$578,8,FALSE),\" \")","v":" "}]
[93,{"$f":"VLOOKUP(A100,Hoja1!$A$1:$H$578,3,FALSE)","v":{"$error":"#N/A"}},{"$f":"IFERROR(VLOOKUP(A100,Hoja1!$A$1:$H$578,4,FALSE),\" \")","v":" "},{"$f":"IFERROR(VLOOKUP(A100,Hoja1!$A$1:$H$578,5,FALSE),\" \")","v":" "},{"$f":"IFERROR(VLOOKUP(A100,Hoja1!$A$1:$H$578,6,FALSE),\" \")","v":" "},{"$f":"IFERROR(VLOOKUP(A100,Hoja1!$A$1:$H$578,7,FALSE),\" \")","v":" "},{"$f":"IFERROR(VLOOKUP(A100,Hoja1!$A$1:$H$578,8,FALSE),\" \")","v":" "}]
[94,{"$f":"VLOOKUP(A101,Hoja1!$A$1:$H$578,3,FALSE)","v":{"$error":"#N/A"}},{"$f":"IFERROR(VLOOKUP(A101,Hoja1!$A$1:$H$578,4,FALSE),\" \")","v":" "},{"$f":"IFERROR(VLOOKUP(A101,Hoja1!$A$1:$H$578,5,FALSE),\" \")","v":" "},{"$f":"IFERROR(VLOOKUP(A101,Hoja1!$A$1:$H$578,6,FALSE),\" \")","v":" "},{"$f":"IFERROR(VLOOKUP(A101,Hoja1!$A$1:$H$578,7,FALSE),\" \")","v":" "},{"$f":"IFERROR(VLOOKUP(A101,Hoja1!$A$1:$H$578,8,FALSE),\" \")","v":" "}]
[95,{"$f":"VLOOKUP(A102,Hoja1!$A$1:$H$578,3,FALSE)","v":{"$error":"#N/A"}},{"$f":"IFERROR(VLOOKUP(A102,Hoja1!$A$1:$H$578,4,FALSE),\" \")","v":" "},{"$f":"IFERROR(VLOOKUP(A102,Hoja1!$A$1:$H$578,5,FALSE),\" \")","v":" "},{"$f":"IFERROR(VLOOKUP(A102,Hoja1!$A$1:$H$578,6,FALSE),\" \")","v":" "},{"$f":"IFERROR(VLOOKUP(A102,Hoja1!$A$1:$H$578,7,FALSE),\" \")","v":" "},{"$f":"IFERROR(VLOOKUP(A102,Hoja1!$A$1:$H$578,8,FALSE),\" \")","v":" "}]
[96,{"$f":"VLOOKUP(A103,Hoja1!$A$1:$H$578,3,FALSE)","v":{"$error":"#N/A"}},{"$f":"IFERROR(VLOOKUP(A103,Hoja1!$A$1:$H$578,4,FALSE),\" \")","v":" "},{"$f":"IFERROR(VLOOKUP(A103,Hoja1!$A$1:$H$578,5,FALSE),\" \")","v":" "},{"$f":"IFERROR(VLOOKUP(A103,Hoja1!$A$1:$H$578,6,FALSE),\" \")","v":" "},{"$f":"IFERROR(VLOOKUP(A103,Hoja1!$A$1:$H$578,7,FALSE),\" \")","v":" "},{"$f":"IFERROR(VLOOKUP(A103,Hoja1!$A$1:$H$578,8,FALSE),\" \")","v":" "}]
[97,{"$f":"VLOOKUP(A104,Hoja1!$A$1:$H$578,3,FALSE)","v":{"$error":"#N/A"}},{"$f":"IFERROR(VLOOKUP(A104,Hoja1!$A$1:$H$578,4,FALSE),\" \")","v":" "},{"$f":"IFERROR(VLOOKUP(A104,Hoja1!$A$1:$H$578,5,FALSE),\" \")","v":" "},{"$f":"IFERROR(VLOOKUP(A104,Hoja1!$A$1:$H$578,6,FALSE),\" \")","v":" "},{"$f":"IFERROR(VLOOKUP(A104,Hoja1!$A$1:$H$578,7,FALSE),\" \")","v":" "},{"$f":"IFERROR(VLOOKUP(A104,Hoja1!$A$1:$H$578,8,FALSE),\" \")","v":" "}]
[98,{"$f":"VLOOKUP(A105,Hoja1!$A$1:$H$578,3,FALSE)","v":{"$error":"#N/A"}},{"$f":"IFERROR(VLOOKUP(A105,Hoja1!$A$1:$H$578,4,FALSE),\" \")","v":" "},{"$f":"IFERROR(VLOOKUP(A105,Hoja1!$A$1:$H$578,5,FALSE),\" \")","v":" "},{"$f":"IFERROR(VLOOKUP(A105,Hoja1!$A$1:$H$578,6,FALSE),\" \")","v":" "},{"$f":"IFERROR(VLOOKUP(A105,Hoja1!$A$1:$H$578,7,FALSE),\" \")","v":" "},{"$f":"IFERROR(VLOOKUP(A105,Hoja1!$A$1:$H$578,8,FALSE),\" \")","v":" "}]
[99,{"$f":"VLOOKUP(A106,Hoja1!$A$1:$H$578,3,FALSE)","v":{"$error":"#N/A"}},{"$f":"IFERROR(VLOOKUP(A106,Hoja1!$A$1:$H$578,4,FALSE),\" \")","v":" "},{"$f":"IFERROR(VLOOKUP(A106,Hoja1!$A$1:$H$578,5,FALSE),\" \")","v":" "},{"$f":"IFERROR(VLOOKUP(A106,Hoja1!$A$1:$H$578,6,FALSE),\" \")","v":" "},{"$f":"IFERROR(VLOOKUP(A106,Hoja1!$A$1:$H$578,7,FALSE),\" \")","v":" "},{"$f":"IFERROR(VLOOKUP(A106,Hoja1!$A$1:$H$578,8,FALSE),\" \")","v":" "}]
[100,{"$f":"VLOOKUP(A107,Hoja1!$A$1:$H$578,3,FALSE)","v":{"$error":"#N/A"}},{"$f":"IFERROR(VLOOKUP(A107,Hoja1!$A$1:$H$578,4,FALSE),\" \")","v":" "},{"$f":"IFERROR(VLOOKUP(A107,Hoja1!$A$1:$H$578,5,FALSE),\" \")","v":" "},{"$f":"IFERROR(VLOOKUP(A107,Hoja1!$A$1:$H$578,6,FALSE),\" \")","v":" "},{"$f":"IFERROR(VLOOKUP(A107,Hoja1!$A$1:$H$578,7,FALSE),\" \")","v":" "},{"$f":"IFERROR(VLOOKUP(A107,Hoja1!$A$1:$H$578,8,FALSE),\" \")","v":" "}]
[101,{"$f":"VLOOKUP(A108,Hoja1!$A$1:$H$578,3,FALSE)","v":{"$error":"#N/A"}},{"$f":"IFERROR(VLOOKUP(A108,Hoja1!$A$1:$H$578,4,FALSE),\" \")","v":" "},{"$f":"IFERROR(VLOOKUP(A108,Hoja1!$A$1:$H$578,5,FALSE),\" \")","v":" "},{"$f":"IFERROR(VLOOKUP(A108,Hoja1!$A$1:$H$578,6,FALSE),\" \")","v":" "},{"$f":"IFERROR(VLOOKUP(A108,Hoja1!$A$1:$H$578,7,FALSE),\" \")","v":" "},{"$f":"IFERROR(VLOOKUP(A108,Hoja1!$A$1:$H$578,8,FALSE),\" \")","v":" "}]
[102,{"$f":"VLOOKUP(A109,Hoja1!$A$1:$H$578,3,FALSE)","v":{"$error":"#N/A"}},{"$f":"IFERROR(VLOOKUP(A109,Hoja1!$A$1:$H$578,4,FALSE),\" \")","v":" "},{"$f":"IFERROR(VLOOKUP(A109,Hoja1!$A$1:$H$578,5,FALSE),\" \")","v":" "},{"$f":"IFERROR(VLOOKUP(A109,Hoja1!$A$1:$H$578,6,FALSE),\" \")","v":" "},{"$f":"IFERROR(VLOOKUP(A109,Hoja1!$A$1:$H$578,7,FALSE),\" \")","v":" "},{"$f":"IFERROR(VLOOKUP(A109,Hoja1!$A$1:$H$578,8,FALSE),\" \")","v":" "}]
[103,{"$f":"VLOOKUP(A110,Hoja1!$A$1:$H$578,3,FALSE)","v":{"$error":"#N/A"}},{"$f":"IFERROR(VLOOKUP(A110,Hoja1!$A$1:$H$578,4,FALSE),\" \")","v":" "},{"$f":"IFERROR(VLOOKUP(A110,Hoja1!$A$1:$H$578,5,FALSE),\" \")","v":" "},{"$f":"IFERROR(VLOOKUP(A110,Hoja1!$A$1:$H$578,6,FALSE),\" \")","v":" "},{"$f":"IFERROR(VLOOKUP(A110,Hoja1!$A$1:$H$578,7,FALSE),\" \")","v":" "},{"$f":"IFERROR(VLOOKUP(A110,Hoja1!$A$1:$H$578,8,FALSE),\" \")","v":" "}]
[104,{"$f":"VLOOKUP(A111,Hoja1!$A$1:$H$578,3,FALSE)","v":{"$error":"#N/A"}},{"$f":"IFERROR(VLOOKUP(A111,Hoja1!$A$1:$H$578,4,FALSE),\" \")","v":" "},{"$f":"IFERROR(VLOOKUP(A111,Hoja1!$A$1:$H$578,5,FALSE),\" \")","v":" "},{"$f":"IFERROR(VLOOKUP(A111,Hoja1!$A$1:$H$578,6,FALSE),\" \")","v":" "},{"$f":"IFERROR(VLOOKUP(A111,Hoja1!$A$1:$H$578,7,FALSE),\" \")","v":" "},{"$f":"IFERROR(VLOOKUP(A111,Hoja1!$A$1:$H$578,8,FALSE),\" \")","v":" "}]
[105,{"$f":"VLOOKUP(A112,Hoja1!$A$1:$H$578,3,FALSE)","v":{"$error":"#N/A"}},{"$f":"IFERROR(VLOOKUP(A112,Hoja1!$A$1:$H$578,4,FALSE),\" \")","v":" "},{"$f":"IFERROR(VLOOKUP(A112,Hoja1!$A$1:$H$578,5,FALSE),\" \")","v":" "},{"$f":"IFERROR(VLOOKUP(A112,Hoja1!$A$1:$H$578,6,FALSE),\" \")","v":" "},{"$f":"IFERROR(VLOOKUP(A112,Hoja1!$A$1:$H$578,7,FALSE),\" \")","v":" "},{"$f":"IFERROR(VLOOKUP(A112,Hoja1!$A$1:$H$578,8,FALSE),\" \")","v":" "}]
[106,{"$f":"VLOOKUP(A113,Hoja1!$A$1:$H$578,3,FALSE)","v":{"$error":"#N/A"}},{"$f":"IFERROR(VLOOKUP(A113,Hoja1!$A$1:$H$578,4,FALSE),\" \")","v":" "},{"$f":"IFERROR(VLOOKUP(A113,Hoja1!$A$1:$H$578,5,FALSE),\" \")","v":" "},{"$f":"IFERROR(VLOOKUP(A113,Hoja1!$A$1:$H$578,6,FALSE),\" \")","v":" "},{"$f":"IFERROR(VLOOKUP(A113,Hoja1!$A$1:$H$578,7,FALSE),\" \")","v":" "},{"$f":"IFERROR(VLOOKUP(A113,Hoja1!$A$1:$H$578,8,FALSE),\" \")","v":" "}]
[107,{"$f":"VLOOKUP(A114,Hoja1!$A$1:$H$578,3,FALSE)","v":{"$error":"#N/A"}},{"$f":"IFERROR(VLOOKUP(A114,Hoja1!$A$1:$H$578,4,FALSE),\" \")","v":" "},{"$f":"IFERROR(VLOOKUP(A114,Hoja1!$A$1:$H$578,5,FALSE),\" \")","v":" "},{"$f":"IFERROR(VLOOKUP(A114,Hoja1!$A$1:$H$578,6,FALSE),\" \")","v":" "},{"$f":"IFERROR(VLOOKUP(A114,Hoja1!$A$1:$H$578,7,FALSE),\" \")","v":" "},{"$f":"IFERROR(VLOOKUP(A114,Hoja1!$A$1:$H$578,8,FALSE),\" \")","v":" "}]
[108,{"$f":"VLOOKUP(A115,Hoja1!$A$1:$H$578,3,FALSE)","v":{"$error":"#N/A"}},{"$f":"IFERROR(VLOOKUP(A115,Hoja1!$A$1:$H$578,4,FALSE),\" \")","v":" "},{"$f":"IFERROR(VLOOKUP(A115,Hoja1!$A$1:$H$578,5,FALSE),\" \")","v":" "},{"$f":"IFERROR(VLOOKUP(A115,Hoja1!$A$1:$H$578,6,FALSE),\" \")","v":" "},{"$f":"IFERROR(VLOOKUP(A115,Hoja1!$A$1:$H$578,7,FALSE),\" \")","v":" "},{"$f":"IFERROR(VLOOKUP(A115,Hoja1!$A$1:$H$578,8,FALSE),\" \")","v":" "}]
[109,{"$f":"VLOOKUP(A116,Hoja1!$A$1:$H$578,3,FALSE)","v":{"$error":"#N/A"}},{"$f":"IFERROR(VLOOKUP(A116,Hoja1!$A$1:$H$578,4,FALSE),\" \")","v":" "},{"$f":"IFERROR(VLOOKUP(A116,Hoja1!$A$1:$H$578,5,FALSE),\" \")","v":" "},{"$f":"IFERROR(VLOOKUP(A116,Hoja1!$A$1:$H$578,6,FALSE),\" \")","v":" "},{"$f":"IFERROR(VLOOKUP(A116,Hoja1!$A$1:$H$578,7,FALSE),\" \")","v":" "},{"$f":"IFERROR(VLOOKUP(A116,Hoja1!$A$1:$H$578,8,FALSE),\" \")","v":" "}]
[110,{"$f":"VLOOKUP(A117,Hoja1!$A$1:$H$578,3,FALSE)","v":{"$error":"#N/A"}},{"$f":"IFERROR(VLOOKUP(A117,Hoja1!$A$1:$H$578,4,FALSE),\" \")","v":" "},{"$f":"IFERROR(VLOOKUP(A117,Hoja1!$A$1:$H$578,5,FALSE),\" \")","v":" "},{"$f":"IFERROR(VLOOKUP(A117,Hoja1!$A$1:$H$578,6,FALSE),\" \")","v":" "},{"$f":"IFERROR(VLOOKUP(A117,Hoja1!$A$1:$H$578,7,FALSE),\" \")","v":" "},{"$f":"IFERROR(VLOOKUP(A117,Hoja1!$A$1:$H$578,8,FALSE),\" \")","v":" "}]
[111,{"$f":"VLOOKUP(A118,Hoja1!$A$1:$H$578,3,FALSE)","v":{"$error":"#N/A"}},{"$f":"IFERROR(VLOOKUP(A118,Hoja1!$A$1:$H$578,4,FALSE),\" \")","v":" "},{"$f":"IFERROR(VLOOKUP(A118,Hoja1!$A$1:$H$578,5,FALSE),\" \")","v":" "},{"$f":"IFERROR(VLOOKUP(A118,Hoja1!$A$1:$H$578,6,FALSE),\" \")","v":" "},{"$f":"IFERROR(VLOOKUP(A118,Hoja1!$A$1:$H$578,7,FALSE),\" \")","v":" "},{"$f":"IFERROR(VLOOKUP(A118,Hoja1!$A$1:$H$578,8,FALSE),\" \")","v":" "}]
[112,{"$f":"VLOOKUP(A119,Hoja1!$A$1:$H$578,3,FALSE)","v":{"$error":"#N/A"}},{"$f":"IFERROR(VLOOKUP(A119,Hoja1!$A$1:$H$578,4,FALSE),\" \")","v":" "},{"$f":"IFERROR(VLOOKUP(A119,Hoja1!$A$1:$H$578,5,FALSE),\" \")","v":" "},{"$f":"IFERROR(VLOOKUP(A119,Hoja1!$A$1:$H$578,6,FALSE),\" \")","v":" "},{"$f":"IFERROR(VLOOKUP(A119,Hoja1!$A$1:$H$578,7,FALSE),\" \")","v":" "},{"$f":"IFERROR(VLOOKUP(A119,Hoja1!$A$1:$H$578,8,FALSE),\" \")","v":" "}]
[113,{"$f":"VLOOKUP(A120,Hoja1!$A$1:$H$578,3,FALSE)","v":{"$error":"#N/A"}},{"$f":"IFERROR(VLOOKUP(A120,Hoja1!$A$1:$H$578,4,FALSE),\" \")","v":" "},{"$f":"IFERROR(VLOOKUP(A120,Hoja1!$A$1:$H$578,5,FALSE),\" \")","v":" "},{"$f":"IFERROR(VLOOKUP(A120,Hoja1!$A$1:$H$578,6,FALSE),\" \")","v":" "},{"$f":"IFERROR(VLOOKUP(A120,Hoja1!$A$1:$H$578,7,FALSE),\" \")","v":" "},{"$f":"IFERROR(VLOOKUP(A120,Hoja1!$A$1:$H$578,8,FALSE),\" \")","v":" "}]
[114,{"$f":"VLOOKUP(A121,Hoja1!$A$1:$H$578,3,FALSE)","v":{"$error":"#N/A"}},{"$f":"IFERROR(VLOOKUP(A121,Hoja1!$A$1:$H$578,4,FALSE),\" \")","v":" "},{"$f":"IFERROR(VLOOKUP(A121,Hoja1!$A$1:$H$578,5,FALSE),\" \")","v":" "},{"$f":"IFERROR(VLOOKUP(A121,Hoja1!$A$1:$H$578,6,FALSE),\" \")","v":" "},{"$f":"IFERROR(VLOOKUP(A121,Hoja1!$A$1:$H$578,7,FALSE),\" \")","v":" "},{"$f":"IFERROR(VLOOKUP(A121,Hoja1!$A$1:$H$578,8,FALSE),\" \")","v":" "}]
[115,{"$f":"VLOOKUP(A122,Hoja1!$A$1:$H$578,3,FALSE)","v":{"$error":"#N/A"}},{"$f":"IFERROR(VLOOKUP(A122,Hoja1!$A$1:$H$578,4,FALSE),\" \")","v":" "},{"$f":"IFERROR(VLOOKUP(A122,Hoja1!$A$1:$H$578,5,FALSE),\" \")","v":" "},{"$f":"IFERROR(VLOOKUP(A122,Hoja1!$A$1:$H$578,6,FALSE),\" \")","v":" "},{"$f":"IFERROR(VLOOKUP(A122,Hoja1!$A$1:$H$578,7,FALSE),\" \")","v":" "},{"$f":"IFERROR(VLOOKUP(A122,Hoja1!$A$1:$H$578,8,FALSE),\" \")","v":" "}]
[116,{"$f":"VLOOKUP(A123,Hoja1!$A$1:$H$578,3,FALSE)","v":{"$error":"#N/A"}},{"$f":"IFERROR(VLOOKUP(A123,Hoja1!$A$1:$H$578,4,FALSE),\" \")","v":" "},{"$f":"IFERROR(VLOOKUP(A123,Hoja1!$A$1:$H$578,5,FALSE),\" \")","v":" "},{"$f":"IFERROR(VLOOKUP(A123,Hoja1!$A$1:$H$578,6,FALSE),\" \")","v":" "},{"$f":"IFERROR(VLOOKUP(A123,Hoja1!$A$1:$H$578,7,FALSE),\" \")","v":" "},{"$f":"IFERROR(VLOOKUP(A123,Hoja1!$A$1:$H$578,8,FALSE),\" \")","v":" "}]
[117,{"$f":"VLOOKUP(A124,Hoja1!$A$1:$H$578,3,FALSE)","v":{"$error":"#N/A"}},{"$f":"IFERROR(VLOOKUP(A124,Hoja1!$A$1:$H$578,4,FALSE),\" \")","v":" "},{"$f":"IFERROR(VLOOKUP(A124,Hoja1!$A$1:$H$578,5,FALSE),\" \")","v":" "},{"$f":"IFERROR(VLOOKUP(A124,Hoja1!$A$1:$H$578,6,FALSE),\" \")","v":" "},{"$f":"IFERROR(VLOOKUP(A124,Hoja1!$A$1:$H$578,7,FALSE),\" \")","v":" "},{"$f":"IFERROR(VLOOKUP(A124,Hoja1!$A$1:$H$578,8,FALSE),\" \")","v":" "}]
[118,{"$f":"VLOOKUP(A125,Hoja1!$A$1:$H$578,3,FALSE)","v":{"$error":"#N/A"}},{"$f":"IFERROR(VLOOKUP(A125,Hoja1!$A$1:$H$578,4,FALSE),\" \")","v":" "},{"$f":"IFERROR(VLOOKUP(A125,Hoja1!$A$1:$H$578,5,FALSE),\" \")","v":" "},{"$f":"IFERROR(VLOOKUP(A125,Hoja1!$A$1:$H$578,6,FALSE),\" \")","v":" "},{"$f":"IFERROR(VLOOKUP(A125,Hoja1!$A$1:$H$578,7,FALSE),\" \")","v":" "},{"$f":"IFERROR(VLOOKUP(A125,Hoja1!$A$1:$H$578,8,FALSE),\" \")","v":" "}]
[119,{"$f":"VLOOKUP(A126,Hoja1!$A$1:$H$578,3,FALSE)","v":{"$error":"#N/A"}},{"$f":"IFERROR(VLOOKUP(A126,Hoja1!$A$1:$H$578,4,FALSE),\" \")","v":" "},{"$f":"IFERROR(VLOOKUP(A126,Hoja1!$A$1:$H$578,5,FALSE),\" \")","v":" "},{"$f":"IFERROR(VLOOKUP(A126,Hoja1!$A$1:$H$578,6,FALSE),\" \")","v":" "},{"$f":"IFERROR(VLOOKUP(A126,Hoja1!$A$1:$H$578,7,FALSE),\" \")","v":" "},{"$f":"IFERROR(VLOOKUP(A126,Hoja1!$A$1:$H$578,8,FALSE),\" \")","v":" "}]
[120,{"$f":"VLOOKUP(A127,Hoja1!$A$1:$H$578,3,FALSE)","v":{"$error":"#N/A"}},{"$f":"IFERROR(VLOOKUP(A127,Hoja1!$A$1:$H$578,4,FALSE),\" \")","v":" "},{"$f":"IFERROR(VLOOKUP(A127,Hoja1!$A$1:$H$578,5,FALSE),\" \")","v":" "},{"$f":"IFERROR(VLOOKUP(A127,Hoja1!$A$1:$H$578,6,FALSE),\" \")","v":" "},{"$f":"IFERROR(VLOOKUP(A127,Hoja1!$A$1:$H$578,7,FALSE),\" \")","v":" "},{"$f":"IFERROR(VLOOKUP(A127,Hoja1!$A$1:$H$578,8,FALSE),\" \")","v":" "}]
[121,{"$f":"VLOOKUP(A128,Hoja1!$A$1:$H$578,3,FALSE)","v":{"$error":"#N/A"}},{"$f":"IFERROR(VLOOKUP(A128,Hoja1!$A$1:$H$578,4,FALSE),\" \")","v":" "},{"$f":"IFERROR(VLOOKUP(A128,Hoja1!$A$1:$H$578,5,FALSE),\" \")","v":" "},{"$f":"IFERROR(VLOOKUP(A128,Hoja1!$A$1:$H$578,6,FALSE),\" \")","v":" "},{"$f":"IFERROR(VLOOKUP(A128,Hoja1!$A$1:$H$578,7,FALSE),\" \")","v":" "},{"$f":"IFERROR(VLOOKUP(A128,Hoja1!$A$1:$H$578,8,FALSE),\" \")","v":" "}]
[122,{"$f":"VLOOKUP(A129,Hoja1!$A$1:$H$578,3,FALSE)","v":{"$error":"#N/A"}},{"$f":"IFERROR(VLOOKUP(A129,Hoja1!$A$1:$H$578,4,FALSE),\" \")","v":" "},{"$f":"IFERROR(VLOOKUP(A129,Hoja1!$A$1:$H$578,5,FALSE),\" \")","v":" "},{"$f":"IFERROR(VLOOKUP(A129,Hoja1!$A$1:$H$578,6,FALSE),\" \")","v":" "},{"$f":"IFERROR(VLOOKUP(A129,Hoja1!$A$1:$H$578,7,FALSE),\" \")","v":" "},{"$f":"IFERROR(VLOOKUP(A129,Hoja1!$A$1:$H$578,8,FALSE),\" \")","v":" "}]
[]
[]
[]
[]
[]
[]
[]
[]
[]
[]
[]
[]
[]
[]
[]
[]
[]
[]
[]
[]
[]
[]
[]
[]
[]
[]
[]
[]
[]
[]
[]
[]
[]
[]
[]
[]
[]
[]
[]
[]
[]
[]
[]
[]
[]
[]
[]
[]
[]
[]
[]
[]
[]
[]
[]
[]
[]
[]
[]
[]
[]
[]
[]
[]
[]
[]
[]
[]
[]
[]
[]
[]
[]
[]
[]
[]
[]
[]
[]
[]
[]
[]
[]
[]
[]
[]
[]
[]
[]
[]
[]
[]
[]
[]
[]
[]
[]
[]
[]
[]
[]
[]
[]
[]
[]
[]
[]
[]
[]
[]
[]
[]
[]
[]
[]
[]
[]
[]
[]
[]
[]
[]
[]
[]
[]
[]
[]
[]
[]
[]
[]
[]
[]
[]
[]
[]
[]
[]
[]
[]
[]
[]
[]
[]
[]
[]
[]
[]
[]
[]
[]
[]
[]
[]
[]
[]
[]
[]
[]
[]
[]
[]
[]
[]
[]
[]
[]
[]
[]
[]
[]
[]
[]
[]
[]
[]
[]
[]
[]
[]
[]
[]
[]
[]
[]
[]
[]
[]
[]
[]
[]
[]
[]
[]
[]
[]
[]
[]
[]
[]
[]
[]
[]
[]
[]
[]
[]
[]
[]
[]
[]
[]
[]
[]
[]
[]
[]
[]
[]
[]
[]
[]
[]
[]
[]
[]
[]
[]
[]
[]
[]
[]
[]
[]
[]
[]
[]
[]
[]
[]
[]
[]
[]
[]
[]
[]
[]
[]
[]
[]
[]
[]
[]
[]
[]
[]
[]
[]
[]
[]
[]
[]
[]
[]
[]
[]
[]
[]
[]
[]
[]
[]
[]
[]
[]
[]
[]
[]
[]
[]
[]
[]
[]
[]
[]
[]
[]
[]
[]
[]
[]
[]
[]
[]
[]
[]
[]
[]
[]
[]
[]
[]
[]
[]
[]
[]
[]
[]
[]
[]
[]
[]
[]
[]
[]
[]
[]
[]
[]
[]
[]
[]
[]
[]
[]
[]
[]
[]
[]
[]
[]
[]
[]
[]
[]
[]
[]
[]
[]
[]
[]
[]
[]
[]
[]
[]
[]
[]
[]
[]
[]
[]
[]
[]
[]
[]
[]
[]
[]
[]
[]
[]
[]
[]
[]
[]
[]
[]
[]
[]
[]
[]
[]
[]
[]
[]
[]
[]
[]
[]
[]
[]
[]
[]
[]
[]
[]
[]
[]
[]
[]
[]
[]
[]
[]
[]
[]
[]
[]
[]
[]
[]
[]
[]
[]
[]
[]
[]
[]
[]
[]
[]
[]
[]
[]
[]
[]
[]
[]
[]
[]
[]
[]
[]
[]
[]
[]
[]
[]
[]
[]
[]
[]
[]
[]
[]
[]
[]
[]
[]
[]
[]
[]
[]
[]
[]
[]
[]
[]
[]
[]
[]
[]
[]
[]
[]
[]
[]
[]
[]
[]
[]
[]
[]
[]
[]
[]
[]
[]
[]
[]
[]
[]
[]
[]
[]
[]
[600]
[601]
[602]
[603]
[604]
[605]
[606]
[607]
[608]
[609]
[610]
[611]
[612]
[613]
[614]
[615]
[616]
[617]
[618]
[619]
[620]
[621]
[622]
[623]
[624]
[625]
[626]
[627]
[628]
[629]
[630]
[631]
[632]
[633]
[634]
[635]
[636]
[637]
[638]
[639]
[640]
[641]
[642]
[643]
[644]
[645]
[646]
[647]
[648]
[649]
[650]
[651]
[652]
[653]
[654]
[655]
[656]
[657]
[658]
[659]
[660]
[661]
[662]
[663]
[664]
[665]
[666]
[667]
[668]
[669]
[670]
[671]
[672]
[673]
[674]
[675]
[676]
[677]
[678]
[679]
[680]
[681]
[682]
[683]
[684]
[685]
[686]
[687]
[688]
[689]
[690]
[691]
[692]
[693]
[694]
[695]
[696]
[697]
[698]
[699]
[700]
[701]
[702]
[703]
[704]
[705]
[706]
[707]
[708]
[709]
[710]
[711]
[712]
[713]
[714]
[715]
[716]
[717]
[718]
[719]
[720]
[721]
[722]
[723]
[724]
[725]
[726]
[727]
[728]
[729]
[730]
[731]
[732]
[733]
[734]
[735]
[736]
[737]
[738]
[739]
[740]
[741]
[742]
[743]
[744]
[745]
[746]
[747]
[748]
[749]
[750]
[751]
[752]
[753]
[754]
[755]
[756]
[757]
[758]
[759]
[760]
[761]
[762]
[763]
[764]
[765]
[766]
[767]
[768]
[769]
[770]
[771]
[772]
[773]
[774]
[775]
[776]
[777]
[778]
[779]
[780]
[781]
[782]
[783]
[784]
[785]
[786]
[787]
[788]
[789]
[790]
[791]
[792]
[793]
[794]
[795]
[796]
[797]
[798]
[799]
[800]
[801]
[802]
[803]
[804]
[805]
[806]
[807]
[808]
[809]
[810]
[811]
[812]
[813]
[814]
[815]
[816]
[817]
[818]
[819]
[820]
[821]
[822]
[823]
[824]
[825]
[826]
[827]
[828]
[829]
[830]
[831]
[832]
[833]
[834]
[835]
[836]
[837]
[838]
[839]
[840]
[841]
[842]
[843]
[844]
[845]
[846]
[847]
[848]
[849]
[850]
[851]
[852]
[853]
[854]
[855]
[856]
[857]
[858]
[859]
[860]
[861]
[862]
[863]
[864]
[865]
[866]
[867]
[868]
[869]
[870]
[871]
[872]
[873]
[874]
[875]
[876]
[877]
[878]
[879]
[880]
[881]
[882]
[883]
[884]
[885]
[886]
[887]
[888]
[889]
[890]
[891]
[892]
[893]
[894]
[895]
[896]
[897]

{"sheet":"NOTA","index":2,"n_rows":0,"n_cols":0,"rows_kept":0,"cut":false,"hidden":false,"merged":[]}